Workbook

Sheet Menu
Z1: 2
Z4: 2
A6: Central Texas Extension District - 8
D8: Budgets
D11: Forage Crops
D13: =CoastalEstablishFarmland!A3 -> Coastal Bermudagrass Establishment - Farmland
D14: =CoastalEstablishNative!A3 -> Coastal Bermudagrass Establishment - Native Prairie
D15: =CoastalHay!A3 -> Coastal Bermudagrass Hay
D16: =CoastalPasture!A3 -> Coastal Bermudagrass Pasture
D17: =SmallGrainGrazing!A3 -> Small Grain with Grazing
B18: Comparative Returns | D18: =CornSilageDryland!A3 -> RR Corn Silage - Dryland
D19: =CornSilageIrrigated!A3 -> RR Corn Silage - Irrigated
D21: Field Crops
D23: =Barley!A3 -> Malting Barley
D24: =Canola!A3 -> Canola
D25: =+Corn!A3 -> Herbicide Resistant Corn
D26: =CornReducedTill!A3 -> Herbicide Resistant Corn - Reduced Tillage
D27: =Cotton!A3 -> Stacked Cotton
D28: =OatsGrain!A3 -> Oats for Grain
D29: =Sorghum!A3 -> Grain Sorghum
D30: =Wheat!A3 -> Hard Red Winter Wheat
D32: Livestock
D34: =+CowCalfImprove!A3 -> Cow-Calf Improved Pasture
D35: =CowCalfNative!A3 -> Cow-Calf Native Pasture
D36: =+StockersNative!A3 -> Stockers on Native Pasture
D38: Other Budgets
D40: ='Livestock Budget'!A3 -> Livestock Enterprise
D41: ='Crop Budget'!A3 -> Crop Enterprise
A59: Developed by Jason Johnson, Associate Professor and Extension Economist, Texas A&M AgriLife Extension, 254-968-4144.

Sheet Corn
A1: Projections for Planning Purposes Only -- Not to be Used without Updating
A2: 2018 Estimated Costs and Returns per Acre
A3: Herbicide Resistant Corn
A4: Enter your name for this budget in the cell above.
A5: Enter Your Values in the cells highlighed in MAROON.
E6: Your Acres | R6: Your
C7: Crop Acres | D7: 500 | L7: Your | Q7: Enterprise | R7: Enterprise
E8: Your | H8: Your | I8: Cash | J8: Your | K8: Landlord | L8: Landlord | N8: Your | P8: Your | Q8: Total | R8: Total
A9: REVENUE | D9: Quantity | E9: Quantity | F9: Units | G9: $/Unit | H9: $/Unit | I9: Total | J9: Total | K9: Share | L9: Share | M9: Landlord | N9: Landlord | O9: Tenant | P9: Tenant | Q9: (500 acres) | R9: ="(" & E7 & " acres)" -> ( acres)
B10: Corn | D10: 90 | F10: Bushel | G10: 3.85 | I10: 346.5 | J10: =E10*H10 -> 0 | K10: 0 | M10: 0 | N10: =J10*L10 -> 0 | O10: 346.5 | P10: =+J10-N10 -> 0 | Q10: 173250 | R10: =+J10*E$7 -> 0
D11: 0 | G11: 0 | I11: 0 | J11: 0 | K11: 0 | M11: 0 | N11: 0 | O11: 0 | P11: 0 | Q11: 0 | R11: 0
D12: 0 | G12: 0 | I12: 0 | J12: 0 | K12: 0 | M12: 0 | N12: 0 | O12: 0 | P12: 0 | Q12: 0 | R12: 0
A13: Total Revenue | I13: 346.5 | J13: =SUM(J10:J12) -> 0 | M13: 0 | N13: =SUM(N10:N12) -> 0 | O13: 346.5 | P13: =SUM(P10:P12) -> 0 | Q13: 173250 | R13: =SUM(R10:R12) -> 0
Q14: Enterprise | R14: Enterprise
A15: VARIABLE COSTS | D15: Quantity | E15: Quantity | F15: Units | G15: $/Unit | H15: $/Unit | I15: Total | J15: Total | K15: Share | L15: Share | M15: Landlord | N15: Landlord | O15: Tenant | P15: Tenant | Q15: Total | R15: Total
A16: Production Costs
B17: Custom
C18: Liquid Fertilizer Rig | D18: 1 | F18: Acre | G18: 4 | I18: 4 | J18: =E18*H18 -> 0 | K18: 0 | M18: 0 | N18: =J18*L18 -> 0 | O18: 4 | P18: =+J18-N18 -> 0 | Q18: 2000 | R18: =+J18*E$7 -> 0
C19: Custom Grain Haul | D19: 90 | F19: Bushel | G19: 0.17 | I19: 15.3 | J19: 0 | K19: 0 | M19: 0 | N19: 0 | O19: 15.3 | P19: 0 | Q19: 7650 | R19: 0
B20: Fertilizer
C21: Fertilizer - N, P, Zinc, S | D21: 1 | F21: Acre | G21: 100 | I21: 100 | J21: 0 | K21: 0 | M21: 0 | N21: 0 | O21: 100 | P21: 0 | Q21: 50000 | R21: 0
B22: Herbicide
C23: Herbicide, Atrazine | D23: 2 | F23: Pound | G23: 4 | I23: 8 | J23: 0 | K23: 0 | M23: 0 | N23: 0 | O23: 8 | P23: 0 | Q23: 4000 | R23: 0
C24: Corn Herbicide | D24: 32 | F24: Ounce | G24: 0.2 | I24: 6.4 | J24: 0 | K24: 0 | M24: 0 | N24: 0 | O24: 6.4 | P24: 0 | Q24: 3200 | R24: 0
C25: Weed Burndown | D25: 32 | F25: Ounce | G25: 0.2 | I25: 6.4 | J25: 0 | K25: 0 | M25: 0 | N25: 0 | O25: 6.4 | P25: 0 | Q25: 3200 | R25: 0
B26: Seed
C27: Herbicide Resistant Corn Seed | D27: 1 | F27: Acre | G27: 85 | I27: 85 | J27: 0 | K27: 0 | M27: 0 | N27: 0 | O27: 85 | P27: 0 | Q27: 42500 | R27: 0
B28: Miscellaneous
C29: Insurance - Corn 70% | D29: 1 | F29: Acre | G29: 15 | I29: 15 | J29: 0 | K29: 0 | M29: 0 | N29: 0 | O29: 15 | P29: 0 | Q29: 7500 | R29: 0
C30: Insurance - Corn SCO | D30: 1 | F30: Acre | G30: 4 | I30: 4 | J30: 0 | K30: 0 | M30: 0 | N30: 0 | O30: 4 | P30: 0 | Q30: 2000 | R30: 0
B31: Insecticide
C32: Corn Insecticide | D32: 1 | F32: Acre | G32: 14.41 | I32: 14.41 | J32: 0 | K32: 0 | M32: 0 | N32: 0 | O32: 14.41 | P32: 0 | Q32: 7205 | R32: 0
D33: 0 | G33: 0 | I33: 0 | J33: 0 | K33: 0 | M33: 0 | N33: 0 | O33: 0 | P33: 0 | Q33: 0 | R33: 0
D34: 0 | G34: 0 | I34: 0 | J34: 0 | K34: 0 | M34: 0 | N34: 0 | O34: 0 | P34: 0 | Q34: 0 | R34: 0
D35: 0 | G35: 0 | I35: 0 | J35: =E35*H35 -> 0 | K35: 0 | M35: 0 | N35: =J35*L35 -> 0 | O35: 0 | P35: =+J35-N35 -> 0 | Q35: 0 | R35: =+J35*E$7 -> 0
B36: Machinery Labor
C37: Tractors/Self-Propelled | D37: 0.94 | F37: Hour | G37: 10 | I37: 9.4 | J37: =E37*H37 -> 0 | K37: 0 | M37: 0 | N37: =J37*L37 -> 0 | O37: 9.4 | P37: =+J37-N37 -> 0 | Q37: 4700 | R37: =+J37*E$7 -> 0
C38: Other Labor | D38: 0 | F38: Hour | G38: 10 | I38: 0 | J38: =E38*H38 -> 0 | K38: 0 | M38: 0 | N38: =J38*L38 -> 0 | O38: 0 | P38: =+J38-N38 -> 0 | Q38: 0 | R38: =+J38*E$7 -> 0
B40: Diesel Fuel
C41: Pickup/General Use Equipment | D41: 1 | F41: Acre | G41: 0 | I41: 0 | J41: =E41*H41 -> 0 | K41: 0 | M41: 0 | N41: =J41*L41 -> 0 | O41: 0 | P41: =+J41-N41 -> 0 | Q41: 0 | R41: =+J41*E$7 -> 0
C42: Tractors/Self-Propelled | D42: 9.14 | F42: Gallon | G42: 2.4 | I42: 21.936 | J42: =E42*H42 -> 0 | K42: 0 | M42: 0 | N42: =J42*L42 -> 0 | O42: 21.936 | P42: =+J42-N42 -> 0 | Q42: 10968 | R42: =+J42*E$7 -> 0
B44: Gasoline
C45: Pickup/General Use Equipment | D45: 1 | F45: Acre | G45: 3.3 | I45: 3.3 | J45: =E45*H45 -> 0 | K45: 0 | M45: 0 | N45: =J45*L45 -> 0 | O45: 3.3 | P45: =+J45-N45 -> 0 | Q45: 1650 | R45: =+J45*E$7 -> 0
C46: Tractors/Self-Propelled | D46: 0 | F46: Gallon | G46: 2.2 | I46: 0 | J46: =E46*H46 -> 0 | K46: 0 | M46: 0 | N46: =J46*L46 -> 0 | O46: 0 | P46: =+J46-N46 -> 0 | Q46: 0 | R46: =+J46*E$7 -> 0
B48: Repairs & Maintenance
C49: Pickup/General Use Equipment | D49: 1 | F49: Acre | G49: 0.672 | I49: 0.672 | J49: =E49*H49 -> 0 | K49: 0 | M49: 0 | N49: =J49*L49 -> 0 | O49: 0.672 | P49: =+J49-N49 -> 0 | Q49: 336 | R49: =+J49*E$7 -> 0
C50: Irrigation Equipment | D50: 1 | F50: Acre | G50: 0 | I50: 0 | J50: 0 | K50: 0 | M50: 0 | N50: 0 | O50: 0 | P50: 0 | Q50: 0 | R50: 0
C51: Tractors/Self-Propelled | D51: 1 | F51: Acre | G51: 31.29148648 | I51: 31.29148648 | J51: 0 | K51: 0 | M51: 0 | N51: 0 | O51: 31.29148648 | P51: 0 | Q51: 15645.74324 | R51: 0
C52: Implements | D52: 1 | F52: Acre | G52: 19.87655019 | I52: 19.87655019 | J52: 0 | K52: 0 | M52: 0 | N52: 0 | O52: 19.87655019 | P52: 0 | Q52: 9938.275094 | R52: 0
I53: 0 | J53: 0 | K53: 0 | M53: 0 | N53: 0 | O53: 0 | P53: 0 | Q53: 0 | R53: =+J53*E$7 -> 0
I54: 0 | J54: 0 | K54: 0 | M54: 0 | N54: 0 | O54: 0 | P54: 0 | Q54: 0 | R54: 0
B55: Interest on Credit Line | G55: 0.0475 | I55: 7.434205996 | J55: =+SUM(J17:J54)/2*H55 -> 0 | M55: 0 | N55: =+SUM(N17:N54)/2*L55 -> 0 | O55: 7.434205996 | P55: =+SUM(P17:P54)/2*L55 -> 0 | Q55: 3717.102998 | R55: =+J55*E$7 -> 0
A56: Total Variable Costs | I56: 352.4202427 | J56: =SUM(J18:J55) -> 0 | M56: 0 | N56: =SUM(N18:N55) -> 0 | O56: 352.4202427 | P56: =SUM(P18:P55) -> 0 | Q56: 176210.1213 | R56: =SUM(R18:R55) -> 0
A57: Planned Returns Above Variable Costs: | I57: -5.920242665 | J57: =+J13-J56 -> 0 | M57: 0 | N57: =+N13-N56 -> 0 | O57: -5.920242665 | P57: =+P13-P56 -> 0 | Q57: -2960.121332 | R57: =+R13-R56 -> 0
B58: Breakeven Price to Cover Variable Costs | G58: 3.915780474 | H58: =IF(E10=0,"n/a",(YVarExp-(YTotExp+YTotRet-J10))/E10) -> n/a | I58: Bushel
Q59: Enterprise | R59: Enterprise
A60: FIXED COSTS | D60: Quantity | E60: Quantity | F60: Units | G60: $/Unit | H60: $/Unit | J60: Total | K60: Share | L60: Share | M60: Landlord | N60: Landlord | O60: Tenant | P60: Tenant | Q60: Total | R60: Total
B61: Machinery Depreciation
C62: Pickup/General Use Equipment | D62: 1 | F62: Acre | G62: 0.6972 | I62: 0.6972 | J62: =E62*H62 -> 0 | K62: 0 | M62: 0 | N62: =J62*L62 -> 0 | O62: 0.6972 | P62: =+J62-N62 -> 0 | Q62: 348.6 | R62: =+J62*E$7 -> 0
C63: Tractors/Self-Propelled | D63: 1 | F63: Acre | G63: 30.01775227 | I63: 30.01775227 | J63: 0 | K63: 0 | M63: 0 | N63: =J63*L63 -> 0 | O63: 30.01775227 | P63: 0 | Q63: 15008.87614 | R63: 0
C64: Implements | D64: 1 | F64: Acre | G64: 24.61496563 | I64: 24.61496563 | J64: 0 | K64: 0 | M64: 0 | N64: =J64*L64 -> 0 | O64: 24.61496563 | P64: 0 | Q64: 12307.48281 | R64: 0
B65: Equipment Investment
C66: Pickup/General Use Equipment | D66: 4.914 | F66: Dollars | G66: 0.06 | I66: 0.29484 | J66: =E66*H66 -> 0 | K66: 0 | M66: 0 | N66: =J66*L66 -> 0 | O66: 0.29484 | P66: =+J66-N66 -> 0 | Q66: 147.42 | R66: =+J66*E$7 -> 0
C67: Tractors/Self-Propelled | D67: 229.2163726 | F67: Dollars | G67: 0.06 | I67: 13.75298235 | J67: 0 | K67: 0 | M67: 0 | N67: =J67*L67 -> 0 | O67: 13.75298235 | P67: 0 | Q67: 6876.491177 | R67: 0
C68: Implements | D68: 121.0201635 | F68: Dollars | G68: 0.06 | I68: 7.261209813 | J68: 0 | K68: 0 | M68: 0 | N68: =J68*L68 -> 0 | O68: 7.261209813 | P68: 0 | Q68: 3630.604906 | R68: 0
B69: Salaried Labor | D69: 1 | F69: Acre | G69: 0 | I69: 0 | J69: 0 | K69: 0 | M69: 0 | N69: =J69*L69 -> 0 | O69: 0 | P69: =+J69-N69 -> 0 | Q69: 0 | R69: =+J69*E$7 -> 0
B70: Management Fee, Owner/Operator Labor | D70: 1 | F70: Acre | G70: 0 | I70: 0 | J70: 0 | K70: 0 | M70: 0 | N70: 0 | O70: 0 | P70: 0 | Q70: 0 | R70: 0
B71: Allocated Establishment Cost | D71: 1 | F71: Acre | G71: 0 | I71: 0 | J71: 0 | K71: 0 | M71: 0 | N71: 0 | O71: 0 | P71: 0 | Q71: 0 | R71: 0
B72: Corn Land Rent | D72: 1 | F72: Acre | G72: 50 | I72: 50 | J72: 0 | K72: 0 | M72: 0 | N72: 0 | O72: 50 | P72: 0 | Q72: 25000 | R72: 0
B73: Property Taxes | D73: 1 | F73: Acre | G73: 0 | I73: 0 | J73: =E73*H73 -> 0 | K73: 0 | M73: 0 | N73: 0 | O73: 0 | P73: 0 | Q73: 0 | R73: =+J73*E$7 -> 0
B74: Whole Farm Insurance | D74: 1 | F74: Acre | G74: 0 | I74: 0 | J74: 0 | K74: 0 | M74: 0 | N74: 0 | O74: 0 | P74: 0 | Q74: 0 | R74: 0
D75: 1 | G75: 0 | I75: 0 | J75: 0 | K75: 0 | M75: 0 | N75: 0 | O75: 0 | P75: 0 | Q75: 0 | R75: 0
D76: 1 | G76: 0 | I76: 0 | J76: 0 | K76: 0 | M76: 0 | N76: 0 | O76: 0 | P76: 0 | Q76: 0 | R76: 0
A77: Total Fixed Costs | I77: 126.6389501 | J77: =+SUM(J62:J76) -> 0 | M77: 0 | N77: =+SUM(N62:N76) -> 0 | O77: 126.6389501 | P77: =+SUM(P62:P76) -> 0 | Q77: 63319.47503 | R77: =+SUM(R62:R76) -> 0
A78: Total Specified Costs | I78: 479.0591927 | J78: =+J56+J77 -> 0 | M78: 0 | N78: =+N56+N77 -> 0 | O78: 479.0591927 | P78: =+P56+P77 -> 0 | Q78: 239529.5964 | R78: =+R56+R77 -> 0
A80: Returns Above Specified Costs | I80: -132.5591927 | J80: =+J13-J78 -> 0 | M80: 0 | N80: =+N13-N78 -> 0 | O80: -132.5591927 | P80: =+P13-P78 -> 0 | Q80: -66279.59637 | R80: =+R13-R78 -> 0
A82: Breakeven Price to Cover Total Costs | G82: 5.322879919 | H82: =IF(E10=0,"n/a",(YTotExp-(YTotExp+YTotRet-J10))/E10) -> n/a | I82: Bushel
D84: Example Breakeven Prices
B85: Example | C85: Example | D85: To Cover | G85: To Cover
B86: Yield | C86: Yield | D86: Variable | G86: Total
B87: Percent | C87: Bushel | D87: Costs | G87: Costs
B88: 0.75 | C88: 67.5 | D88: 5.221040632 | G88: 7.097173226
B89: 0.9 | C89: 81 | D89: 4.350867193 | G89: 5.914311021
B90: 1 | C90: 90 | D90: 3.915780474 | G90: 5.322879919
B91: 1.1 | C91: 99 | D91: 3.559800431 | G91: 4.838981745
B92: 1.25 | C92: 112.5 | D92: 3.132624379 | G92: 4.258303935
D94: Your Breakeven Prices
B95: Your | C95: Your | E95: To Cover | H95: To Cover
B96: Yield | C96: Yield | E96: Variable | H96: Total
B97: Percent | C97: Bushel | E97: Costs | H97: Costs
B98: 0.75 | C98: =E10*YPER1 -> 0 | E98: =IF($E$10=0,0,(YVarExp-(YTotExp+YTotRet-J10))/($E$10*YPER1)) -> 0 | H98: =IF($E$10=0,0,(YTotExp-(YTotExp+YTotRet-J10))/($E$10*YPER1)) -> 0
B99: 0.9 | C99: =E10*YPER2 -> 0 | E99: =IF($E$10=0,0,(YVarExp-(YTotExp+YTotRet-J10))/($E$10*YPER2)) -> 0 | H99: =IF($E$10=0,0,(YTotExp-(YTotExp+YTotRet-J10))/($E$10*YPER2)) -> 0
B100: 1 | C100: =+E10 -> 0 | E100: =IF($E$10=0,0,(YVarExp-(YTotExp+YTotRet-J10))/($E$10*YPER3)) -> 0 | H100: =IF($E$10=0,0,(YTotExp-(YTotExp+YTotRet-J10))/($E$10*YPER3)) -> 0
B101: 1.1 | C101: =E10*YPER4 -> 0 | E101: =IF($E$10=0,0,(YVarExp-(YTotExp+YTotRet-J10))/($E$10*YPER4)) -> 0 | H101: =IF($E$10=0,0,(YTotExp-(YTotExp+YTotRet-J10))/($E$10*YPER4)) -> 0
B102: 1.25 | C102: =E10*YPER5 -> 0 | E102: =IF($E$10=0,0,(YVarExp-(YTotExp+YTotRet-J10))/($E$10*YPER5)) -> 0 | H102: =IF($E$10=0,0,(YTotExp-(YTotExp+YTotRet-J10))/($E$10*YPER5)) -> 0
A104: Developed by Jason Johnson, Associate Professor and Extension Economist, Texas A&M AgriLife Extension, 254-968-4144.
A106: Information presented is prepared solely as a general guide and not intended to recognize or predict the costs and returns from any one operation. Brand names are mentioned only as examples and imply no endorsement.

Sheet CornReducedTill
A1: Projections for Planning Purposes Only -- Not to be Used without Updating
A2: 2018 Estimated Costs and Returns per Acre
A3: Herbicide Resistant Corn - Reduced Tillage
A4: Enter your name for this budget in the cell above.
A5: Enter Your Values in the cells highlighed in MAROON.
E6: Your Acres | R6: Your
C7: Crop Acres | D7: 500 | L7: Your | Q7: Enterprise | R7: Enterprise
E8: Your | H8: Your | I8: Cash | J8: Your | K8: Landlord | L8: Landlord | N8: Your | P8: Your | Q8: Total | R8: Total
A9: REVENUE | D9: Quantity | E9: Quantity | F9: Units | G9: $/Unit | H9: $/Unit | I9: Total | J9: Total | K9: Share | L9: Share | M9: Landlord | N9: Landlord | O9: Tenant | P9: Tenant | Q9: (500 acres) | R9: ="(" & E7 & " acres)" -> ( acres)
B10: Corn | D10: 90 | F10: Bushel | G10: 3.85 | I10: 346.5 | J10: =E10*H10 -> 0 | K10: 0 | M10: 0 | N10: =J10*L10 -> 0 | O10: 346.5 | P10: =+J10-N10 -> 0 | Q10: 173250 | R10: =+J10*E$7 -> 0
D11: 0 | G11: 0 | I11: 0 | J11: 0 | K11: 0 | M11: 0 | N11: 0 | O11: 0 | P11: =+J11-N11 -> 0 | Q11: 0 | R11: 0
D12: 0 | G12: 0 | I12: 0 | J12: 0 | K12: 0 | M12: 0 | N12: 0 | O12: 0 | P12: 0 | Q12: 0 | R12: 0
A13: Total Revenue | I13: 346.5 | J13: =SUM(J10:J12) -> 0 | M13: 0 | N13: =SUM(N10:N12) -> 0 | O13: 346.5 | P13: =SUM(P10:P12) -> 0 | Q13: 173250 | R13: =SUM(R10:R12) -> 0
Q14: Enterprise | R14: Enterprise
A15: VARIABLE COSTS | D15: Quantity | E15: Quantity | F15: Units | G15: $/Unit | H15: $/Unit | I15: Total | J15: Total | K15: Share | L15: Share | M15: Landlord | N15: Landlord | O15: Tenant | P15: Tenant | Q15: Total | R15: Total
A16: Production Costs
B17: Custom
C18: Liquid Fertilizer Rig | D18: 1 | F18: Acre | G18: 4 | I18: 4 | J18: =E18*H18 -> 0 | K18: 0 | M18: 0 | N18: =J18*L18 -> 0 | O18: 4 | P18: =+J18-N18 -> 0 | Q18: 2000 | R18: =+J18*E$7 -> 0
C19: Custom Grain Haul | D19: 90 | F19: Bushel | G19: 0.17 | I19: 15.3 | J19: 0 | K19: 0 | M19: 0 | N19: 0 | O19: 15.3 | P19: 0 | Q19: 7650 | R19: 0
B20: Fertilizer
C21: Fertilizer - N, P, Zinc, S | D21: 1 | F21: Acre | G21: 100 | I21: 100 | J21: 0 | K21: 0 | M21: 0 | N21: 0 | O21: 100 | P21: 0 | Q21: 50000 | R21: 0
B22: Herbicide
C23: Herbicide, Atrazine | D23: 2 | F23: Pound | G23: 4 | I23: 8 | J23: 0 | K23: 0 | M23: 0 | N23: 0 | O23: 8 | P23: 0 | Q23: 4000 | R23: 0
C24: Corn Herbicide | D24: 32 | F24: Ounce | G24: 0.2 | I24: 6.4 | J24: 0 | K24: 0 | M24: 0 | N24: 0 | O24: 6.4 | P24: 0 | Q24: 3200 | R24: 0
C25: Weed Burndown | D25: 32 | F25: Ounce | G25: 0.2 | I25: 6.4 | J25: 0 | K25: 0 | M25: 0 | N25: 0 | O25: 6.4 | P25: 0 | Q25: 3200 | R25: 0
B26: Insecticide
C27: Corn Insecticide | D27: 1 | F27: Acre | G27: 14.41 | I27: 14.41 | J27: 0 | K27: 0 | M27: 0 | N27: 0 | O27: 14.41 | P27: 0 | Q27: 7205 | R27: 0
B28: Miscellaneous
C29: Insurance - Corn 70% | D29: 1 | F29: Acre | G29: 15 | I29: 15 | J29: 0 | K29: 0 | M29: 0 | N29: 0 | O29: 15 | P29: 0 | Q29: 7500 | R29: 0
C30: Insurance - Corn SCO | D30: 1 | F30: Acre | G30: 4 | I30: 4 | J30: 0 | K30: 0 | M30: 0 | N30: 0 | O30: 4 | P30: 0 | Q30: 2000 | R30: 0
B31: Seed
C32: Herbicide Resistant Corn Seed | D32: 1 | F32: Acre | G32: 85 | I32: 85 | J32: 0 | K32: 0 | M32: 0 | N32: 0 | O32: 85 | P32: 0 | Q32: 42500 | R32: 0
D33: 0 | G33: 0 | I33: 0 | J33: 0 | K33: 0 | M33: 0 | N33: 0 | O33: 0 | P33: 0 | Q33: 0 | R33: 0
D34: 0 | G34: 0 | I34: 0 | J34: 0 | K34: 0 | M34: 0 | N34: 0 | O34: 0 | P34: 0 | Q34: 0 | R34: 0
D35: 0 | G35: 0 | I35: 0 | J35: =E35*H35 -> 0 | K35: 0 | M35: 0 | N35: =J35*L35 -> 0 | O35: 0 | P35: =+J35-N35 -> 0 | Q35: 0 | R35: =+J35*E$7 -> 0
B36: Machinery Labor
C37: Tractors/Self-Propelled | D37: 0.88 | F37: Hour | G37: 10 | I37: 8.8 | J37: =E37*H37 -> 0 | K37: 0 | M37: 0 | N37: =J37*L37 -> 0 | O37: 8.8 | P37: =+J37-N37 -> 0 | Q37: 4400 | R37: =+J37*E$7 -> 0
C38: Other Labor | D38: 0 | F38: Hour | G38: 10 | I38: 0 | J38: =E38*H38 -> 0 | K38: 0 | M38: 0 | N38: =J38*L38 -> 0 | O38: 0 | P38: =+J38-N38 -> 0 | Q38: 0 | R38: =+J38*E$7 -> 0
B40: Diesel Fuel
C41: Pickup/General Use Equipment | D41: 1 | F41: Acre | G41: 0 | I41: 0 | J41: =E41*H41 -> 0 | K41: 0 | M41: 0 | N41: =J41*L41 -> 0 | O41: 0 | P41: =+J41-N41 -> 0 | Q41: 0 | R41: =+J41*E$7 -> 0
C42: Tractors/Self-Propelled | D42: 8.5 | F42: Gallon | G42: 2.4 | I42: 20.4 | J42: =E42*H42 -> 0 | K42: 0 | M42: 0 | N42: =J42*L42 -> 0 | O42: 20.4 | P42: =+J42-N42 -> 0 | Q42: 10200 | R42: =+J42*E$7 -> 0
B44: Gasoline
C45: Pickup/General Use Equipment | D45: 1 | F45: Acre | G45: 3.3 | I45: 3.3 | J45: =E45*H45 -> 0 | K45: 0 | M45: 0 | N45: =J45*L45 -> 0 | O45: 3.3 | P45: =+J45-N45 -> 0 | Q45: 1650 | R45: =+J45*E$7 -> 0
C46: Tractors/Self-Propelled | D46: 0 | F46: Gallon | G46: 2.2 | I46: 0 | J46: =E46*H46 -> 0 | K46: 0 | M46: 0 | N46: =J46*L46 -> 0 | O46: 0 | P46: =+J46-N46 -> 0 | Q46: 0 | R46: =+J46*E$7 -> 0
B48: Repairs & Maintenance
C49: Pickup/General Use Equipment | D49: 1 | F49: Acre | G49: 0.672 | I49: 0.672 | J49: =E49*H49 -> 0 | K49: 0 | M49: 0 | N49: =J49*L49 -> 0 | O49: 0.672 | P49: =+J49-N49 -> 0 | Q49: 336 | R49: =+J49*E$7 -> 0
C50: Irrigation Equipment | D50: 1 | F50: Acre | G50: 0 | I50: 0 | J50: 0 | K50: 0 | M50: 0 | N50: 0 | O50: 0 | P50: 0 | Q50: 0 | R50: 0
C51: Tractors/Self-Propelled | D51: 1 | F51: Acre | G51: 29.76610344 | I51: 29.76610344 | J51: 0 | K51: 0 | M51: 0 | N51: 0 | O51: 29.76610344 | P51: 0 | Q51: 14883.05172 | R51: 0
C52: Implements | D52: 1 | F52: Acre | G52: 17.09129082 | I52: 17.09129082 | J52: 0 | K52: 0 | M52: 0 | N52: 0 | O52: 17.09129082 | P52: 0 | Q52: 8545.645411 | R52: 0
I53: 0 | J53: 0 | K53: 0 | M53: 0 | N53: 0 | O53: 0 | P53: 0 | Q53: 0 | R53: 0
I54: 0 | J54: 0 | K54: 0 | M54: 0 | N54: 0 | O54: 0 | P54: 0 | Q54: 0 | R54: 0
B55: Interest on Credit Line | G55: 0.0475 | I55: 7.246817951 | J55: =+SUM(J17:J54)/2*H55 -> 0 | M55: 0 | N55: =+SUM(N17:N54)/2*L55 -> 0 | O55: 7.246817951 | P55: =+SUM(P17:P54)/2*L55 -> 0 | Q55: 3623.408976 | R55: =+J55*E$7 -> 0
A56: Total Variable Costs | I56: 345.7862122 | J56: =SUM(J18:J55) -> 0 | M56: 0 | N56: =SUM(N18:N55) -> 0 | O56: 345.7862122 | P56: =SUM(P18:P55) -> 0 | Q56: 172893.1061 | R56: =SUM(R18:R55) -> 0
A57: Planned Returns Above Variable Costs: | I57: 0.7137877906 | J57: =+J13-J56 -> 0 | M57: 0 | N57: =+N13-N56 -> 0 | O57: 0.7137877906 | P57: =+P13-P56 -> 0 | Q57: 356.8938953 | R57: =+R13-R56 -> 0
B58: Breakeven Price to Cover Variable Costs | G58: 3.842069025 | H58: =IF(E10=0,"n/a",(YVarExp-(YTotExp+YTotRet-J10))/E10) -> n/a | I58: Bushel
Q59: Enterprise | R59: Enterprise
A60: FIXED COSTS | D60: Quantity | E60: Quantity | F60: Units | G60: $/Unit | H60: $/Unit | I60: Total | J60: Total | K60: Share | L60: Share | M60: Landlord | N60: Landlord | O60: Tenant | P60: Tenant | Q60: Total | R60: Total
B61: Machinery Depreciation
C62: Pickup/General Use Equipment | D62: 1 | F62: Acre | G62: 0.6972 | I62: 0.6972 | J62: =E62*H62 -> 0 | K62: 0 | M62: 0 | N62: =J62*L62 -> 0 | O62: 0.6972 | P62: =+J62-N62 -> 0 | Q62: 348.6 | R62: =+J62*E$7 -> 0
C63: Tractors/Self-Propelled | D63: 1 | F63: Acre | G63: 28.44152313 | I63: 28.44152313 | J63: 0 | K63: 0 | M63: 0 | N63: =J63*L63 -> 0 | O63: 28.44152313 | P63: 0 | Q63: 14220.76156 | R63: 0
C64: Implements | D64: 1 | F64: Acre | G64: 21.98706017 | I64: 21.98706017 | J64: 0 | K64: 0 | M64: 0 | N64: =J64*L64 -> 0 | O64: 21.98706017 | P64: 0 | Q64: 10993.53008 | R64: 0
B65: Equipment Investment
C66: Pickup/General Use Equipment | D66: 4.914 | F66: Dollars | G66: 0.06 | I66: 0.29484 | J66: =E66*H66 -> 0 | K66: 0 | M66: 0 | N66: =J66*L66 -> 0 | O66: 0.29484 | P66: =+J66-N66 -> 0 | Q66: 147.42 | R66: =+J66*E$7 -> 0
C67: Tractors/Self-Propelled | D67: 216.937039 | F67: Dollars | G67: 0.06 | I67: 13.01622234 | J67: 0 | K67: 0 | M67: 0 | N67: =J67*L67 -> 0 | O67: 13.01622234 | P67: 0 | Q67: 6508.111171 | R67: 0
C68: Implements | D68: 109.778568 | F68: Dollars | G68: 0.06 | I68: 6.586714077 | J68: 0 | K68: 0 | M68: 0 | N68: =J68*L68 -> 0 | O68: 6.586714077 | P68: 0 | Q68: 3293.357039 | R68: 0
B69: Salaried Labor | D69: 1 | F69: Acre | G69: 0 | I69: 0 | J69: 0 | K69: 0 | M69: 0 | N69: =J69*L69 -> 0 | O69: 0 | P69: =+J69-N69 -> 0 | Q69: 0 | R69: =+J69*E$7 -> 0
B70: Management Fee, Owner/Operator Labor | D70: 1 | F70: Acre | G70: 0 | I70: 0 | J70: 0 | K70: 0 | M70: 0 | N70: 0 | O70: 0 | P70: 0 | Q70: 0 | R70: 0
B71: Allocated Establishment Cost | D71: 1 | F71: Acre | G71: 0 | I71: 0 | J71: 0 | K71: 0 | M71: 0 | N71: 0 | O71: 0 | P71: 0 | Q71: 0 | R71: 0
B72: Corn Land Rent | D72: 1 | F72: Acre | G72: 50 | I72: 50 | J72: 0 | K72: 0 | M72: 0 | N72: 0 | O72: 50 | P72: 0 | Q72: 25000 | R72: 0
B73: Property Taxes | D73: 1 | F73: Acre | G73: 0 | I73: 0 | J73: 0 | K73: 0 | M73: 0 | N73: 0 | O73: 0 | P73: 0 | Q73: 0 | R73: 0
B74: Whole Farm Insurance | D74: 1 | F74: Acre | G74: 0 | I74: 0 | J74: 0 | K74: 0 | M74: 0 | N74: 0 | O74: 0 | P74: 0 | Q74: 0 | R74: 0
D75: 1 | G75: 0 | I75: 0 | J75: 0 | K75: 0 | M75: 0 | N75: 0 | O75: 0 | P75: 0 | Q75: 0 | R75: 0
D76: 1 | G76: 0 | I76: 0 | J76: =E76*H76 -> 0 | K76: 0 | M76: 0 | N76: 0 | O76: 0 | P76: 0 | Q76: 0 | R76: 0
A77: Total Fixed Costs | I77: 121.0235597 | J77: =+SUM(J62:J76) -> 0 | M77: 0 | N77: =+SUM(N62:N76) -> 0 | O77: 121.0235597 | P77: =+SUM(P62:P76) -> 0 | Q77: 60511.77986 | R77: =+SUM(R62:R76) -> 0
A78: Total Specified Costs | I78: 466.8097719 | J78: =+J56+J77 -> 0 | M78: 0 | N78: =+N56+N77 -> 0 | O78: 466.8097719 | P78: =+P56+P77 -> 0 | Q78: 233404.886 | R78: =+R56+R77 -> 0
A80: Returns Above Specified Costs | I80: -120.3097719 | J80: =+J13-J78 -> 0 | M80: 0 | N80: =+N13-N78 -> 0 | O80: -120.3097719 | P80: =+P13-P78 -> 0 | Q80: -60154.88596 | R80: =+R13-R78 -> 0
A82: Breakeven Price to Cover Total Costs | G82: 5.186775244 | H82: =IF(E10=0,"n/a",(YTotExp-(YTotExp+YTotRet-J10))/E10) -> n/a | I82: Bushel
D84: Example Breakeven Prices
B85: Example | C85: Example | D85: To Cover | G85: To Cover
B86: Yield | C86: Yield | D86: Variable | G86: Total
B87: Percent | C87: Bushel | D87: Costs | G87: Costs
B88: 0.75 | C88: 67.5 | D88: 5.122758699 | G88: 6.915700325
B89: 0.9 | C89: 81 | D89: 4.268965583 | G89: 5.763083604
B90: 1 | C90: 90 | D90: 3.842069025 | G90: 5.186775244
B91: 1.1 | C91: 99 | D91: 3.492790022 | G91: 4.715250221
B92: 1.25 | C92: 112.5 | D92: 3.07365522 | G92: 4.149420195
D94: Your Breakeven Prices
B95: Your | C95: Your | E95: To Cover | H95: To Cover
B96: Yield | C96: Yield | E96: Variable | H96: Total
B97: Percent | C97: Bushel | E97: Costs | H97: Costs
B98: 0.75 | C98: =E10*YPER1 -> 0 | E98: =IF($E$10=0,0,(YVarExp-(YTotExp+YTotRet-J10))/($E$10*YPER1)) -> 0 | H98: =IF($E$10=0,0,(YTotExp-(YTotExp+YTotRet-J10))/($E$10*YPER1)) -> 0
B99: 0.9 | C99: =E10*YPER2 -> 0 | E99: =IF($E$10=0,0,(YVarExp-(YTotExp+YTotRet-J10))/($E$10*YPER2)) -> 0 | H99: =IF($E$10=0,0,(YTotExp-(YTotExp+YTotRet-J10))/($E$10*YPER2)) -> 0
B100: 1 | C100: =+E10 -> 0 | E100: =IF($E$10=0,0,(YVarExp-(YTotExp+YTotRet-J10))/($E$10*YPER3)) -> 0 | H100: =IF($E$10=0,0,(YTotExp-(YTotExp+YTotRet-J10))/($E$10*YPER3)) -> 0
B101: 1.1 | C101: =E10*YPER4 -> 0 | E101: =IF($E$10=0,0,(YVarExp-(YTotExp+YTotRet-J10))/($E$10*YPER4)) -> 0 | H101: =IF($E$10=0,0,(YTotExp-(YTotExp+YTotRet-J10))/($E$10*YPER4)) -> 0
B102: 1.25 | C102: =E10*YPER5 -> 0 | E102: =IF($E$10=0,0,(YVarExp-(YTotExp+YTotRet-J10))/($E$10*YPER5)) -> 0 | H102: =IF($E$10=0,0,(YTotExp-(YTotExp+YTotRet-J10))/($E$10*YPER5)) -> 0
A104: Developed by Jason Johnson, Associate Professor and Extension Economist, Texas A&M AgriLife Extension, 254-968-4144.
A106: Information presented is prepared solely as a general guide and not intended to recognize or predict the costs and returns from any one operation. Brand names are mentioned only as examples and imply no endorsement.

Sheet Cotton
A1: Projections for Planning Purposes Only -- Not to be Used without Updating
A2: 2018 Estimated Costs and Returns per Acre
A3: Stacked Cotton
A4: Enter your name for this budget in the cell above.
A5: Enter Your Values in the cells highlighed in MAROON.
E6: Your Acres | R6: Your
C7: Crop Acres | D7: 500 | L7: Your | Q7: Enterprise | R7: Enterprise
E8: Your | H8: Your | I8: Cash | J8: Your | K8: Landlord | L8: Landlord | N8: Your | P8: Your | Q8: Total | R8: Total
A9: REVENUE | D9: Quantity | E9: Quantity | F9: Units | G9: $/Unit | H9: $/Unit | I9: Total | J9: Total | K9: Share | L9: Share | M9: Landlord | N9: Landlord | O9: Tenant | P9: Tenant | Q9: (500 acres) | R9: ="(" & E7 & " acres)" -> ( acres)
B10: Cotton Lint | D10: 500 | F10: Pound | G10: 0.67 | I10: 335 | J10: =E10*H10 -> 0 | K10: 0 | M10: 0 | N10: =J10*L10 -> 0 | O10: 335 | P10: =+J10-N10 -> 0 | Q10: 167500 | R10: =+J10*E$7 -> 0
B11: Cottonseed | D11: 0.33 | F11: Ton | G11: 150 | I11: 49.5 | J11: 0 | K11: 0 | M11: 0 | N11: 0 | O11: 49.5 | P11: =+J11-N11 -> 0 | Q11: 24750 | R11: 0
D12: 0 | G12: 0 | I12: 0 | J12: 0 | K12: 0 | M12: 0 | N12: 0 | O12: 0 | P12: 0 | Q12: 0 | R12: 0
D13: 0 | G13: 0 | I13: 0 | J13: 0 | K13: 0 | M13: 0 | N13: 0 | O13: 0 | P13: 0 | Q13: 0 | R13: 0
A14: Total Revenue | I14: 384.5 | J14: =SUM(J10:J13) -> 0 | M14: 0 | N14: =SUM(N10:N13) -> 0 | O14: 384.5 | P14: =SUM(P10:P13) -> 0 | Q14: 192250 | R14: =SUM(R10:R13) -> 0
Q15: Enterprise | R15: Enterprise
A16: VARIABLE COSTS | D16: Quantity | E16: Quantity | F16: Units | G16: $/Unit | H16: $/Unit | I16: Total | J16: Total | K16: Share | L16: Share | M16: Landlord | N16: Landlord | O16: Tenant | P16: Tenant | Q16: Total | R16: Total
A17: Production Costs
B18: Custom
C19: Stripping | D19: 500 | F19: Pound | G19: 0.1 | I19: 50 | J19: =E19*H19 -> 0 | K19: 0 | M19: 0 | N19: =J19*L19 -> 0 | O19: 50 | P19: =+J19-N19 -> 0 | Q19: 25000 | R19: =+J19*E$7 -> 0
C20: Ginning | D20: 500 | F20: Pound | G20: 0.1 | I20: 50 | J20: 0 | K20: 0 | M20: 0 | N20: 0 | O20: 50 | P20: 0 | Q20: 25000 | R20: 0
B21: Fertilizer
C22: Fertilizer - N, P, K | D22: 1 | F22: Acre | G22: 60 | I22: 60 | J22: 0 | K22: 0 | M22: 0 | N22: 0 | O22: 60 | P22: 0 | Q22: 30000 | R22: 0
B23: Herbicide
C24: Yellow Herbicide | D24: 1 | F24: Acre | G24: 4 | I24: 4 | J24: 0 | K24: 0 | M24: 0 | N24: 0 | O24: 4 | P24: 0 | Q24: 2000 | R24: 0
C25: Planting Burndown | D25: 32 | F25: Ounce | G25: 0.2 | I25: 6.4 | J25: 0 | K25: 0 | M25: 0 | N25: 0 | O25: 6.4 | P25: 0 | Q25: 3200 | R25: 0
C26: Herbicide 1st Application | D26: 32 | F26: Ounce | G26: 0.2 | I26: 6.4 | J26: 0 | K26: 0 | M26: 0 | N26: 0 | O26: 6.4 | P26: 0 | Q26: 3200 | R26: 0
C27: Herbicide 2nd Application | D27: 32 | F27: Ounce | G27: 0.2 | I27: 6.4 | J27: 0 | K27: 0 | M27: 0 | N27: 0 | O27: 6.4 | P27: 0 | Q27: 3200 | R27: 0
B28: Insecticide
C29: Insecticide 1st Application | D29: 1 | F29: Acre | G29: 4 | I29: 4 | J29: 0 | K29: 0 | M29: 0 | N29: 0 | O29: 4 | P29: 0 | Q29: 2000 | R29: 0
C30: Insecticide 2nd Application | D30: 1 | F30: Acre | G30: 4 | I30: 4 | J30: 0 | K30: 0 | M30: 0 | N30: 0 | O30: 4 | P30: 0 | Q30: 2000 | R30: 0
C31: Boll Weevil Eradication | D31: 1 | F31: Acre | G31: 10 | I31: 10 | J31: 0 | K31: 0 | M31: 0 | N31: 0 | O31: 10 | P31: 0 | Q31: 5000 | R31: 0
B32: Miscellaneous
C33: Insurance - Cotton | D33: 1 | F33: Acre | G33: 20 | I33: 20 | J33: 0 | K33: 0 | M33: 0 | N33: 0 | O33: 20 | P33: 0 | Q33: 10000 | R33: 0
C34: Insurance - Cotton SCO/STAX | D34: 1 | F34: Acre | G34: 5 | I34: 5 | J34: 0 | K34: 0 | M34: 0 | N34: 0 | O34: 5 | P34: 0 | Q34: 2500 | R34: 0
B35: Seed
C36: Stacked Cotton Seed | D36: 1 | F36: Acre | G36: 28 | I36: 28 | J36: 0 | K36: 0 | M36: 0 | N36: 0 | O36: 28 | P36: 0 | Q36: 14000 | R36: 0
C37: Herbicide Tech Fee | D37: 1 | F37: Acre | G37: 18 | I37: 18 | J37: 0 | K37: 0 | M37: 0 | N37: 0 | O37: 18 | P37: 0 | Q37: 9000 | R37: 0
C38: bt Tech Fee | D38: 1 | F38: Acre | G38: 9 | I38: 9 | J38: 0 | K38: 0 | M38: 0 | N38: 0 | O38: 9 | P38: 0 | Q38: 4500 | R38: 0
B39: Other Chemicals
C40: Defoliant | D40: 1 | F40: Acre | G40: 12 | I40: 12 | J40: 0 | K40: 0 | M40: 0 | N40: 0 | O40: 12 | P40: 0 | Q40: 6000 | R40: 0
C41: Dessicant | D41: 1 | F41: Acre | G41: 10 | I41: 10 | J41: 0 | K41: 0 | M41: 0 | N41: 0 | O41: 10 | P41: 0 | Q41: 5000 | R41: 0
D42: 0 | G42: 0 | I42: 0 | J42: 0 | K42: 0 | M42: 0 | N42: 0 | O42: 0 | P42: 0 | Q42: 0 | R42: 0
D43: 0 | G43: 0 | I43: 0 | J43: 0 | K43: 0 | M43: 0 | N43: 0 | O43: 0 | P43: 0 | Q43: 0 | R43: 0
D44: 0 | G44: 0 | I44: 0 | J44: =E44*H44 -> 0 | K44: 0 | M44: 0 | N44: =J44*L44 -> 0 | O44: 0 | P44: =+J44-N44 -> 0 | Q44: 0 | R44: =+J44*E$7 -> 0
B45: Machinery Labor
C46: Tractors/Self-Propelled | D46: 0.86 | F46: Hour | G46: 10 | I46: 8.6 | J46: =E46*H46 -> 0 | K46: 0 | M46: 0 | N46: =J46*L46 -> 0 | O46: 8.6 | P46: =+J46-N46 -> 0 | Q46: 4300 | R46: =+J46*E$7 -> 0
C47: Other Labor | D47: 0 | F47: Hour | G47: 10 | I47: 0 | J47: =E47*H47 -> 0 | K47: 0 | M47: 0 | N47: =J47*L47 -> 0 | O47: 0 | P47: =+J47-N47 -> 0 | Q47: 0 | R47: =+J47*E$7 -> 0
B49: Diesel Fuel
C50: Pickup/General Use Equipment | D50: 1 | F50: Acre | G50: 0 | I50: 0 | J50: =E50*H50 -> 0 | K50: 0 | M50: 0 | N50: =J50*L50 -> 0 | O50: 0 | P50: =+J50-N50 -> 0 | Q50: 0 | R50: =+J50*E$7 -> 0
C51: Tractors/Self-Propelled | D51: 7.17 | F51: Gallon | G51: 2.4 | I51: 17.208 | J51: =E51*H51 -> 0 | K51: 0 | M51: 0 | N51: =J51*L51 -> 0 | O51: 17.208 | P51: =+J51-N51 -> 0 | Q51: 8604 | R51: =+J51*E$7 -> 0
B53: Gasoline
C54: Pickup/General Use Equipment | D54: 1 | F54: Acre | G54: 3.3 | I54: 3.3 | J54: =E54*H54 -> 0 | K54: 0 | M54: 0 | N54: =J54*L54 -> 0 | O54: 3.3 | P54: =+J54-N54 -> 0 | Q54: 1650 | R54: =+J54*E$7 -> 0
C55: Tractors/Self-Propelled | D55: 0 | F55: Gallon | G55: 2.2 | I55: 0 | J55: =E55*H55 -> 0 | K55: 0 | M55: 0 | N55: =J55*L55 -> 0 | O55: 0 | P55: =+J55-N55 -> 0 | Q55: 0 | R55: =+J55*E$7 -> 0
B57: Repairs & Maintenance
C58: Pickup/General Use Equipment | D58: 1 | F58: Acre | G58: 0.672 | I58: 0.672 | J58: =E58*H58 -> 0 | K58: 0 | M58: 0 | N58: =J58*L58 -> 0 | O58: 0.672 | P58: =+J58-N58 -> 0 | Q58: 336 | R58: =+J58*E$7 -> 0
C59: Irrigation Equipment | D59: 1 | F59: Acre | G59: 0 | I59: 0 | J59: 0 | K59: 0 | M59: 0 | N59: 0 | O59: 0 | P59: 0 | Q59: 0 | R59: 0
C60: Tractors/Self-Propelled | D60: 1 | F60: Acre | G60: 16.60723483 | I60: 16.60723483 | J60: 0 | K60: 0 | M60: 0 | N60: 0 | O60: 16.60723483 | P60: 0 | Q60: 8303.617415 | R60: 0
C61: Implements | D61: 1 | F61: Acre | G61: 17.82349434 | I61: 17.82349434 | J61: 0 | K61: 0 | M61: 0 | N61: 0 | O61: 17.82349434 | P61: 0 | Q61: 8911.747171 | R61: 0
I62: 0 | J62: 0 | K62: 0 | M62: 0 | N62: 0 | O62: 0 | P62: 0 | Q62: 0 | R62: 0
I63: 0 | J63: 0 | K63: 0 | M63: 0 | N63: 0 | O63: 0 | P63: 0 | Q63: 0 | R63: 0
B64: Interest on Credit Line | G64: 0.0475 | I64: 5.616102999 | J64: =+SUM(J18:J63)/2*H64 -> 0 | M64: 0 | N64: =+SUM(N18:N63)/2*L64 -> 0 | O64: 5.616102999 | P64: =+SUM(P18:P63)/2*L64 -> 0 | Q64: 2808.051499 | R64: =+J64*E$7 -> 0
A65: Total Variable Costs | I65: 373.0268322 | J65: =SUM(J19:J64) -> 0 | M65: 0 | N65: =SUM(N19:N64) -> 0 | O65: 373.0268322 | P65: =SUM(P19:P64) -> 0 | Q65: 186513.4161 | R65: =SUM(R19:R64) -> 0
A66: Planned Returns Above Variable Costs: | I66: 11.47316783 | J66: =+J14-J65 -> 0 | M66: 0 | N66: =+N14-N65 -> 0 | O66: 11.47316783 | P66: =+P14-P65 -> 0 | Q66: 5736.583915 | R66: =+R14-R65 -> 0
B67: Breakeven Price to Cover Variable Costs | G67: 0.6470536643 | H67: =IF(E10=0,"n/a",(YVarExp-(YTotExp+YTotRet-J10))/E10) -> n/a | I67: Pound
Q68: Enterprise | R68: Enterprise
A69: FIXED COSTS | D69: Quantity | E69: Quantity | F69: Units | G69: $/Unit | H69: $/Unit | I69: Total | J69: Total | K69: Share | L69: Share | M69: Landlord | N69: Landlord | O69: Tenant | P69: Tenant | Q69: Total | R69: Total
B70: Machinery Depreciation
C71: Pickup/General Use Equipment | D71: 1 | F71: Acre | G71: 0.6972 | I71: 0.6972 | J71: =E71*H71 -> 0 | K71: 0 | M71: 0 | N71: =J71*L71 -> 0 | O71: 0.6972 | P71: =+J71-N71 -> 0 | Q71: 348.6 | R71: =+J71*E$7 -> 0
C72: Tractors/Self-Propelled | D72: 1 | F72: Acre | G72: 17.16080932 | I72: 17.16080932 | J72: 0 | K72: 0 | M72: 0 | N72: =J72*L72 -> 0 | O72: 17.16080932 | P72: 0 | Q72: 8580.404662 | R72: 0
C73: Implements | D73: 1 | F73: Acre | G73: 22.92600592 | I73: 22.92600592 | J73: 0 | K73: 0 | M73: 0 | N73: =J73*L73 -> 0 | O73: 22.92600592 | P73: 0 | Q73: 11463.00296 | R73: 0
B74: Equipment Investment
C75: Pickup/General Use Equipment | D75: 4.914 | F75: Dollars | G75: 0.06 | I75: 0.29484 | J75: =E75*H75 -> 0 | K75: 0 | M75: 0 | N75: =J75*L75 -> 0 | O75: 0.29484 | P75: =+J75-N75 -> 0 | Q75: 147.42 | R75: =+J75*E$7 -> 0
C76: Tractors/Self-Propelled | D76: 133.6882404 | F76: Dollars | G76: 0.06 | I76: 8.021294422 | J76: 0 | K76: 0 | M76: 0 | N76: =J76*L76 -> 0 | O76: 8.021294422 | P76: 0 | Q76: 4010.647211 | R76: 0
C77: Implements | D77: 98.07235866 | F77: Dollars | G77: 0.06 | I77: 5.88434152 | J77: 0 | K77: 0 | M77: 0 | N77: =J77*L77 -> 0 | O77: 5.88434152 | P77: 0 | Q77: 2942.17076 | R77: 0
B78: Salaried Labor | D78: 1 | F78: Acre | G78: 0 | I78: 0 | J78: 0 | K78: 0 | M78: 0 | N78: =J78*L78 -> 0 | O78: 0 | P78: =+J78-N78 -> 0 | Q78: 0 | R78: =+J78*E$7 -> 0
B79: Management Fee, Owner/Operator Labor | D79: 1 | F79: Acre | G79: 0 | I79: 0 | J79: 0 | K79: 0 | M79: 0 | N79: 0 | O79: 0 | P79: 0 | Q79: 0 | R79: 0
B80: Allocated Establishment Cost | D80: 1 | F80: Acre | G80: 0 | I80: 0 | J80: 0 | K80: 0 | M80: 0 | N80: 0 | O80: 0 | P80: 0 | Q80: 0 | R80: 0
B81: Cotton Land Rent | D81: 1 | F81: Acre | G81: 50 | I81: 50 | J81: 0 | K81: 0 | M81: 0 | N81: 0 | O81: 50 | P81: 0 | Q81: 25000 | R81: 0
B82: Property Taxes | D82: 1 | F82: Acre | G82: 0 | I82: 0 | J82: 0 | K82: 0 | M82: 0 | N82: 0 | O82: 0 | P82: 0 | Q82: 0 | R82: 0
B83: Whole Farm Insurance | D83: 1 | F83: Acre | G83: 0 | I83: 0 | J83: 0 | K83: 0 | M83: 0 | N83: 0 | O83: 0 | P83: 0 | Q83: 0 | R83: 0
D84: 1 | G84: 0 | I84: 0 | J84: 0 | K84: 0 | M84: 0 | N84: 0 | O84: 0 | P84: 0 | Q84: 0 | R84: 0
D85: 1 | G85: 0 | I85: 0 | J85: =E85*H85 -> 0 | K85: 0 | M85: 0 | N85: 0 | O85: 0 | P85: 0 | Q85: 0 | R85: 0
A86: Total Fixed Costs | I86: 104.9844912 | J86: =+SUM(J71:J85) -> 0 | M86: 0 | N86: =+SUM(N71:N85) -> 0 | O86: 104.9844912 | P86: =+SUM(P71:P85) -> 0 | Q86: 52492.24559 | R86: =+SUM(R71:R85) -> 0
A87: Total Specified Costs | I87: 478.0113234 | J87: =+J65+J86 -> 0 | M87: 0 | N87: =+N65+N86 -> 0 | O87: 478.0113234 | P87: =+P65+P86 -> 0 | Q87: 239005.6617 | R87: =+R65+R86 -> 0
A89: Returns Above Specified Costs | I89: -93.51132336 | J89: =+J14-J87 -> 0 | M89: 0 | N89: =+N14-N87 -> 0 | O89: -93.51132336 | P89: =+P14-P87 -> 0 | Q89: -46755.66168 | R89: =+R14-R87 -> 0
A91: Breakeven Price to Cover Total Costs | G91: 0.8570226467 | H91: =IF(E10=0,"n/a",(YTotExp-(YTotExp+YTotRet-J10))/E10) -> n/a | I91: Pound
D93: Example Breakeven Prices
B94: Example | C94: Example | D94: To Cover | G94: To Cover
B95: Yield | C95: Yield | D95: Variable | G95: Total
B96: Percent | C96: Pound | D96: Costs | G96: Costs
B97: 0.75 | C97: 375 | D97: 0.8627382191 | G97: 1.142696862
B98: 0.9 | C98: 450 | D98: 0.7189485159 | G98: 0.9522473852
B99: 1 | C99: 500 | D99: 0.6470536643 | G99: 0.8570226467
B100: 1.1 | C100: 550 | D100: 0.5882306039 | G100: 0.779111497
B101: 1.25 | C101: 625 | D101: 0.5176429315 | G101: 0.6856181174
D103: Your Breakeven Prices
B104: Your | C104: Your | E104: To Cover | H104: To Cover
B105: Yield | C105: Yield | E105: Variable | H105: Total
B106: Percent | C106: Pound | E106: Costs | H106: Costs
B107: 0.75 | C107: =E10*YPER1 -> 0 | E107: =IF($E$10=0,0,(YVarExp-(YTotExp+YTotRet-J10))/($E$10*YPER1)) -> 0 | H107: =IF($E$10=0,0,(YTotExp-(YTotExp+YTotRet-J10))/($E$10*YPER1)) -> 0
B108: 0.9 | C108: =E10*YPER2 -> 0 | E108: =IF($E$10=0,0,(YVarExp-(YTotExp+YTotRet-J10))/($E$10*YPER2)) -> 0 | H108: =IF($E$10=0,0,(YTotExp-(YTotExp+YTotRet-J10))/($E$10*YPER2)) -> 0
B109: 1 | C109: =+E10 -> 0 | E109: =IF($E$10=0,0,(YVarExp-(YTotExp+YTotRet-J10))/($E$10*YPER3)) -> 0 | H109: =IF($E$10=0,0,(YTotExp-(YTotExp+YTotRet-J10))/($E$10*YPER3)) -> 0
B110: 1.1 | C110: =E10*YPER4 -> 0 | E110: =IF($E$10=0,0,(YVarExp-(YTotExp+YTotRet-J10))/($E$10*YPER4)) -> 0 | H110: =IF($E$10=0,0,(YTotExp-(YTotExp+YTotRet-J10))/($E$10*YPER4)) -> 0
B111: 1.25 | C111: =E10*YPER5 -> 0 | E111: =IF($E$10=0,0,(YVarExp-(YTotExp+YTotRet-J10))/($E$10*YPER5)) -> 0 | H111: =IF($E$10=0,0,(YTotExp-(YTotExp+YTotRet-J10))/($E$10*YPER5)) -> 0
A113: Developed by Jason Johnson, Associate Professor and Extension Economist, Texas A&M AgriLife Extension, 254-968-4144.
A115: Information presented is prepared solely as a general guide and not intended to recognize or predict the costs and returns from any one operation. Brand names are mentioned only as examples and imply no endorsement.

Sheet CoastalEstablishFarmland
A1: Projections for Planning Purposes Only -- Not to be Used without Updating
A2: 2018 Estimated Costs and Returns per Acre
A3: Coastal Bermudagrass Establishment - Farmland
A4: Enter your name for this budget in the cell above.
A5: Enter Your Values in the cells highlighed in MAROON.
E6: Your Acres | R6: Your
C7: Crop Acres | D7: 100 | L7: Your | Q7: Enterprise | R7: Enterprise
E8: Your | H8: Your | I8: Cash | J8: Your | K8: Landlord | L8: Landlord | N8: Your | P8: Your | Q8: Total | R8: Total
A9: REVENUE | D9: Quantity | E9: Quantity | F9: Units | G9: $/Unit | H9: $/Unit | I9: Total | J9: Total | K9: Share | L9: Share | M9: Landlord | N9: Landlord | O9: Tenant | P9: Tenant | Q9: (100 acres) | R9: ="(" & E7 & " acres)" -> ( acres)
B10: 0 | D10: 0 | G10: 0 | I10: 0 | J10: =E10*H10 -> 0 | K10: 0 | M10: 0 | N10: =J10*L10 -> 0 | O10: 0 | P10: =+J10-N10 -> 0 | Q10: 0 | R10: =+J10*E$7 -> 0
D11: 0 | G11: 0 | I11: 0 | J11: 0 | K11: 0 | M11: 0 | N11: 0 | O11: 0 | P11: =+J11-N11 -> 0 | Q11: 0 | R11: 0
D12: 0 | G12: 0 | I12: 0 | J12: 0 | K12: 0 | M12: 0 | N12: 0 | O12: 0 | P12: 0 | Q12: 0 | R12: 0
A13: Total Revenue | I13: 0 | J13: =SUM(J10:J12) -> 0 | M13: 0 | N13: =SUM(N10:N12) -> 0 | O13: 0 | P13: =SUM(P10:P12) -> 0 | Q13: 0 | R13: =SUM(R10:R12) -> 0
Q14: Enterprise | R14: Enterprise
A15: VARIABLE COSTS | D15: Quantity | E15: Quantity | F15: Units | G15: $/Unit | H15: $/Unit | I15: Total | J15: Total | K15: Share | L15: Share | M15: Landlord | N15: Landlord | O15: Tenant | P15: Tenant | Q15: Total | R15: Total
A16: Production Costs
B17: Custom
C18: Custom Sprig | D18: 1 | F18: Acre | G18: 60 | I18: 60 | J18: =E18*H18 -> 0 | K18: 0 | M18: 0 | N18: =J18*L18 -> 0 | O18: 60 | P18: =+J18-N18 -> 0 | Q18: 6000 | R18: =+J18*E$7 -> 0
B19: Fertilizer
C20: 18-46-0 | D20: 100 | F20: Pound | G20: 0.23 | I20: 23 | J20: 0 | K20: 0 | M20: 0 | N20: 0 | O20: 23 | P20: 0 | Q20: 2300 | R20: 0
B21: Seed
C22: Bermuda Sprigs | D22: 30 | F22: Bushel | G22: 1 | I22: 30 | J22: 0 | K22: 0 | M22: 0 | N22: 0 | O22: 30 | P22: 0 | Q22: 3000 | R22: 0
D23: 0 | G23: 0 | I23: 0 | J23: 0 | K23: 0 | M23: 0 | N23: 0 | O23: 0 | P23: 0 | Q23: 0 | R23: 0
D24: 0 | G24: 0 | I24: 0 | J24: 0 | K24: 0 | M24: 0 | N24: 0 | O24: 0 | P24: 0 | Q24: 0 | R24: 0
D25: 0 | G25: 0 | I25: 0 | J25: =E25*H25 -> 0 | K25: 0 | M25: 0 | N25: =J25*L25 -> 0 | O25: 0 | P25: =+J25-N25 -> 0 | Q25: 0 | R25: =+J25*E$7 -> 0
B26: Machinery Labor
C27: Tractors/Self-Propelled | D27: 0.67 | F27: Hour | G27: 10 | I27: 6.7 | J27: =E27*H27 -> 0 | K27: 0 | M27: 0 | N27: =J27*L27 -> 0 | O27: 6.7 | P27: =+J27-N27 -> 0 | Q27: 670 | R27: =+J27*E$7 -> 0
C28: Other Labor | D28: 0 | F28: Hour | G28: 10 | I28: 0 | J28: =E28*H28 -> 0 | K28: 0 | M28: 0 | N28: =J28*L28 -> 0 | O28: 0 | P28: =+J28-N28 -> 0 | Q28: 0 | R28: =+J28*E$7 -> 0
B30: Diesel Fuel
C31: Pickup/General Use Equipment | D31: 1 | F31: Acre | G31: 0 | I31: 0 | J31: =E31*H31 -> 0 | K31: 0 | M31: 0 | N31: =J31*L31 -> 0 | O31: 0 | P31: =+J31-N31 -> 0 | Q31: 0 | R31: =+J31*E$7 -> 0
C32: Tractors/Self-Propelled | D32: 2.16 | F32: Gallon | G32: 2.4 | I32: 5.184 | J32: =E32*H32 -> 0 | K32: 0 | M32: 0 | N32: =J32*L32 -> 0 | O32: 5.184 | P32: =+J32-N32 -> 0 | Q32: 518.4 | R32: =+J32*E$7 -> 0
B34: Gasoline
C35: Pickup/General Use Equipment | D35: 1 | F35: Acre | G35: 0 | I35: 0 | J35: =E35*H35 -> 0 | K35: 0 | M35: 0 | N35: =J35*L35 -> 0 | O35: 0 | P35: =+J35-N35 -> 0 | Q35: 0 | R35: =+J35*E$7 -> 0
C36: Tractors/Self-Propelled | D36: 0 | F36: Gallon | G36: 2.2 | I36: 0 | J36: =E36*H36 -> 0 | K36: 0 | M36: 0 | N36: =J36*L36 -> 0 | O36: 0 | P36: =+J36-N36 -> 0 | Q36: 0 | R36: =+J36*E$7 -> 0
B38: Repairs & Maintenance
C39: Pickup/General Use Equipment | D39: 1 | F39: Acre | G39: 0 | I39: 0 | J39: =E39*H39 -> 0 | K39: 0 | M39: 0 | N39: =J39*L39 -> 0 | O39: 0 | P39: =+J39-N39 -> 0 | Q39: 0 | R39: =+J39*E$7 -> 0
C40: Irrigation Equipment | D40: 1 | F40: Acre | G40: 0 | I40: 0 | J40: 0 | K40: 0 | M40: 0 | N40: 0 | O40: 0 | P40: 0 | Q40: 0 | R40: 0
C41: Tractors/Self-Propelled | D41: 1 | F41: Acre | G41: 2.812046396 | I41: 2.812046396 | J41: 0 | K41: 0 | M41: 0 | N41: 0 | O41: 2.812046396 | P41: 0 | Q41: 281.2046396 | R41: 0
C42: Implements | D42: 1 | F42: Acre | G42: 2.456003717 | I42: 2.456003717 | J42: 0 | K42: 0 | M42: 0 | N42: 0 | O42: 2.456003717 | P42: 0 | Q42: 245.6003717 | R42: 0
I43: 0 | J43: 0 | K43: 0 | M43: 0 | N43: 0 | O43: 0 | P43: 0 | Q43: 0 | R43: 0
I44: 0 | J44: 0 | K44: 0 | M44: 0 | N44: 0 | O44: 0 | P44: 0 | Q44: 0 | R44: 0
B45: Interest on Credit Line | G45: 0.0475 | I45: 3.238651013 | J45: =+SUM(J17:J44)/2*H45 -> 0 | M45: 0 | N45: =+SUM(N17:N44)/2*L45 -> 0 | O45: 3.238651013 | P45: =+SUM(P17:P44)/2*L45 -> 0 | Q45: 323.8651013 | R45: =+J45*E$7 -> 0
A46: Total Variable Costs | I46: 133.3907011 | J46: =SUM(J18:J45) -> 0 | M46: 0 | N46: =SUM(N18:N45) -> 0 | O46: 133.3907011 | P46: =SUM(P18:P45) -> 0 | Q46: 13339.07011 | R46: =SUM(R18:R45) -> 0
A47: Planned Returns Above Variable Costs: | I47: -133.3907011 | J47: =+J13-J46 -> 0 | M47: 0 | N47: =+N13-N46 -> 0 | O47: -133.3907011 | P47: =+P13-P46 -> 0 | Q47: -13339.07011 | R47: =+R13-R46 -> 0
B48: Breakeven Price to Cover Variable Costs | G48: n/a | H48: =IF(E10=0,"n/a",(YVarExp-(YTotExp+YTotRet-J10))/E10) -> n/a
Q49: Enterprise | R49: Enterprise
A50: FIXED COSTS | D50: Quantity | E50: Quantity | F50: Units | G50: $/Unit | H50: $/Unit | I50: Total | J50: Total | K50: Share | L50: Share | M50: Landlord | N50: Landlord | O50: Tenant | P50: Tenant | Q50: Total | R50: Total
B51: Machinery Depreciation
C52: Tractors/Self-Propelled | D52: 1 | F52: Acre | G52: 2.324625021 | I52: 2.324625021 | J52: =E52*H52 -> 0 | K52: 0 | M52: 0 | N52: =J52*L52 -> 0 | O52: 2.324625021 | P52: =+J52-N52 -> 0 | Q52: 232.4625021 | R52: =+J52*E$7 -> 0
C53: Implements | D53: 1 | F53: Acre | G53: 2.957558418 | I53: 2.957558418 | J53: 0 | K53: 0 | M53: 0 | N53: =J53*L53 -> 0 | O53: 2.957558418 | P53: 0 | Q53: 295.7558418 | R53: 0
B54: Equipment Investment
C55: Tractors/Self-Propelled | D55: 18.10957879 | F55: Dollars | G55: 0.06 | I55: 1.086574728 | J55: =E55*H55 -> 0 | K55: 0 | M55: 0 | N55: =J55*L55 -> 0 | O55: 1.086574728 | P55: =+J55-N55 -> 0 | Q55: 108.6574728 | R55: =+J55*E$7 -> 0
C56: Implements | D56: 14.53298816 | F56: Dollars | G56: 0.06 | I56: 0.8719792894 | J56: 0 | K56: 0 | M56: 0 | N56: =J56*L56 -> 0 | O56: 0.8719792894 | P56: 0 | Q56: 87.19792894 | R56: 0
B57: Salaried Labor | D57: 1 | F57: Acre | G57: 0 | I57: 0 | J57: 0 | K57: 0 | M57: 0 | N57: =J57*L57 -> 0 | O57: 0 | P57: =+J57-N57 -> 0 | Q57: 0 | R57: =+J57*E$7 -> 0
B58: Management Fee, Owner/Operator Labor | D58: 1 | F58: Acre | G58: 0 | I58: 0 | J58: 0 | K58: 0 | M58: 0 | N58: 0 | O58: 0 | P58: 0 | Q58: 0 | R58: 0
B59: Allocated Establishment Cost | D59: 1 | F59: Acre | G59: 0 | I59: 0 | J59: 0 | K59: 0 | M59: 0 | N59: 0 | O59: 0 | P59: 0 | Q59: 0 | R59: 0
B60: None | D60: 1 | F60: Acre | G60: 0 | I60: 0 | J60: 0 | K60: 0 | M60: 0 | N60: 0 | O60: 0 | P60: 0 | Q60: 0 | R60: 0
B61: Property Taxes | D61: 1 | F61: Acre | G61: 0 | I61: 0 | J61: 0 | K61: 0 | M61: 0 | N61: 0 | O61: 0 | P61: 0 | Q61: 0 | R61: 0
B62: Whole Farm Insurance | D62: 1 | F62: Acre | G62: 0 | I62: 0 | J62: 0 | K62: 0 | M62: 0 | N62: 0 | O62: 0 | P62: 0 | Q62: 0 | R62: 0
D63: 1 | G63: 0 | I63: 0 | J63: 0 | K63: 0 | M63: 0 | N63: 0 | O63: 0 | P63: 0 | Q63: 0 | R63: 0
D64: 1 | G64: 0 | I64: 0 | J64: =E64*H64 -> 0 | K64: 0 | M64: 0 | N64: 0 | O64: 0 | P64: 0 | Q64: 0 | R64: 0
A65: Total Fixed Costs | I65: 7.240737456 | J65: =+SUM(J52:J64) -> 0 | M65: 0 | N65: =+SUM(N52:N64) -> 0 | O65: 7.240737456 | P65: =+SUM(P52:P64) -> 0 | Q65: 724.0737456 | R65: =+SUM(R52:R64) -> 0
A66: Total Specified Costs | I66: 140.6314386 | J66: =+J46+J65 -> 0 | M66: 0 | N66: =+N46+N65 -> 0 | O66: 140.6314386 | P66: =+P46+P65 -> 0 | Q66: 14063.14386 | R66: =+R46+R65 -> 0
A68: Returns Above Specified Costs | I68: -140.6314386 | J68: =+J13-J66 -> 0 | M68: 0 | N68: =+N13-N66 -> 0 | O68: -140.6314386 | P68: =+P13-P66 -> 0 | Q68: -14063.14386 | R68: =+R13-R66 -> 0
A70: Breakeven Price to Cover Total Costs | G70: n/a | H70: =IF(E10=0,"n/a",(YTotExp-(YTotExp+YTotRet-J10))/E10) -> n/a
D72: Example Breakeven Prices
B73: Example | C73: Example | D73: To Cover | G73: To Cover
B74: Yield | C74: Yield | D74: Variable | G74: Total
B75: Percent | D75: Costs | G75: Costs
B76: 0.75 | C76: 0 | D76: 0 | G76: 0
B77: 0.9 | C77: 0 | D77: 0 | G77: 0
B78: 1 | C78: 0 | D78: 0 | G78: 0
B79: 1.1 | C79: 0 | D79: 0 | G79: 0
B80: 1.25 | C80: 0 | D80: 0 | G80: 0
D82: Your Breakeven Prices
B83: Your | C83: Your | E83: To Cover | H83: To Cover
B84: Yield | C84: Yield | E84: Variable | H84: Total
B85: Percent | E85: Costs | H85: Costs
B86: 0.75 | C86: =E10*YPER1 -> 0 | E86: =IF($E$10=0,0,(YVarExp-(YTotExp+YTotRet-J10))/($E$10*YPER1)) -> 0 | H86: =IF($E$10=0,0,(YTotExp-(YTotExp+YTotRet-J10))/($E$10*YPER1)) -> 0
B87: 0.9 | C87: =E10*YPER2 -> 0 | E87: =IF($E$10=0,0,(YVarExp-(YTotExp+YTotRet-J10))/($E$10*YPER2)) -> 0 | H87: =IF($E$10=0,0,(YTotExp-(YTotExp+YTotRet-J10))/($E$10*YPER2)) -> 0
B88: 1 | C88: =+E10 -> 0 | E88: =IF($E$10=0,0,(YVarExp-(YTotExp+YTotRet-J10))/($E$10*YPER3)) -> 0 | H88: =IF($E$10=0,0,(YTotExp-(YTotExp+YTotRet-J10))/($E$10*YPER3)) -> 0
B89: 1.1 | C89: =E10*YPER4 -> 0 | E89: =IF($E$10=0,0,(YVarExp-(YTotExp+YTotRet-J10))/($E$10*YPER4)) -> 0 | H89: =IF($E$10=0,0,(YTotExp-(YTotExp+YTotRet-J10))/($E$10*YPER4)) -> 0
B90: 1.25 | C90: =E10*YPER5 -> 0 | E90: =IF($E$10=0,0,(YVarExp-(YTotExp+YTotRet-J10))/($E$10*YPER5)) -> 0 | H90: =IF($E$10=0,0,(YTotExp-(YTotExp+YTotRet-J10))/($E$10*YPER5)) -> 0
A92: Developed by Jason Johnson, Associate Professor and Extension Economist, Texas A&M AgriLife Extension, 254-968-4144.
A94: Information presented is prepared solely as a general guide and not intended to recognize or predict the costs and returns from any one operation. Brand names are mentioned only as examples and imply no endorsement.

Sheet CoastalEstablishNative
A1: Projections for Planning Purposes Only -- Not to be Used without Updating
A2: 2018 Estimated Costs and Returns per Acre
A3: Coastal Bermudagrass Establishment - Native Prairie
A4: Enter your name for this budget in the cell above.
A5: Enter Your Values in the cells highlighed in MAROON.
E6: Your Acres | R6: Your
C7: Crop Acres | D7: 100 | L7: Your | Q7: Enterprise | R7: Enterprise
E8: Your | H8: Your | I8: Cash | J8: Your | K8: Landlord | L8: Landlord | N8: Your | P8: Your | Q8: Total | R8: Total
A9: REVENUE | D9: Quantity | E9: Quantity | F9: Units | G9: $/Unit | H9: $/Unit | I9: Total | J9: Total | K9: Share | L9: Share | M9: Landlord | N9: Landlord | O9: Tenant | P9: Tenant | Q9: (100 acres) | R9: ="(" & E7 & " acres)" -> ( acres)
B10: 0 | D10: 0 | G10: 0 | I10: 0 | J10: =E10*H10 -> 0 | K10: 0 | M10: 0 | N10: =J10*L10 -> 0 | O10: 0 | P10: =+J10-N10 -> 0 | Q10: 0 | R10: =+J10*E$7 -> 0
D11: 0 | G11: 0 | I11: 0 | J11: 0 | K11: 0 | M11: 0 | N11: 0 | O11: 0 | P11: =+J11-N11 -> 0 | Q11: 0 | R11: 0
D12: 0 | G12: 0 | I12: 0 | J12: 0 | K12: 0 | M12: 0 | N12: 0 | O12: 0 | P12: 0 | Q12: 0 | R12: 0
A13: Total Revenue | I13: 0 | J13: =SUM(J10:J12) -> 0 | M13: 0 | N13: =SUM(N10:N12) -> 0 | O13: 0 | P13: =SUM(P10:P12) -> 0 | Q13: 0 | R13: =SUM(R10:R12) -> 0
Q14: Enterprise | R14: Enterprise
A15: VARIABLE COSTS | D15: Quantity | E15: Quantity | F15: Units | G15: $/Unit | H15: $/Unit | I15: Total | J15: Total | K15: Share | L15: Share | M15: Landlord | N15: Landlord | O15: Tenant | P15: Tenant | Q15: Total | R15: Total
A16: Production Costs
B17: Custom
C18: Tree & Brush Removal | D18: 1 | F18: Acre | G18: 150 | I18: 150 | J18: =E18*H18 -> 0 | K18: 0 | M18: 0 | N18: =J18*L18 -> 0 | O18: 150 | P18: =+J18-N18 -> 0 | Q18: 15000 | R18: =+J18*E$7 -> 0
C19: Custom Sprig | D19: 1 | F19: Acre | G19: 60 | I19: 60 | J19: 0 | K19: 0 | M19: 0 | N19: 0 | O19: 60 | P19: 0 | Q19: 6000 | R19: 0
B20: Fertilizer
C21: 18-46-0 | D21: 100 | F21: Pound | G21: 0.23 | I21: 23 | J21: 0 | K21: 0 | M21: 0 | N21: 0 | O21: 23 | P21: 0 | Q21: 2300 | R21: 0
B22: Seed
C23: Bermuda Sprigs | D23: 30 | F23: Bushel | G23: 1 | I23: 30 | J23: 0 | K23: 0 | M23: 0 | N23: 0 | O23: 30 | P23: 0 | Q23: 3000 | R23: 0
D24: 0 | G24: 0 | I24: 0 | J24: 0 | K24: 0 | M24: 0 | N24: 0 | O24: 0 | P24: 0 | Q24: 0 | R24: 0
D25: 0 | G25: 0 | I25: 0 | J25: 0 | K25: 0 | M25: 0 | N25: 0 | O25: 0 | P25: 0 | Q25: 0 | R25: 0
D26: 0 | G26: 0 | I26: 0 | J26: =E26*H26 -> 0 | K26: 0 | M26: 0 | N26: =J26*L26 -> 0 | O26: 0 | P26: =+J26-N26 -> 0 | Q26: 0 | R26: =+J26*E$7 -> 0
B27: Machinery Labor
C28: Tractors/Self-Propelled | D28: 0.97 | F28: Hour | G28: 10 | I28: 9.7 | J28: =E28*H28 -> 0 | K28: 0 | M28: 0 | N28: =J28*L28 -> 0 | O28: 9.7 | P28: =+J28-N28 -> 0 | Q28: 970 | R28: =+J28*E$7 -> 0
C29: Other Labor | D29: 0 | F29: Hour | G29: 10 | I29: 0 | J29: =E29*H29 -> 0 | K29: 0 | M29: 0 | N29: =J29*L29 -> 0 | O29: 0 | P29: =+J29-N29 -> 0 | Q29: 0 | R29: =+J29*E$7 -> 0
B31: Diesel Fuel
C32: Pickup/General Use Equipment | D32: 1 | F32: Acre | G32: 0 | I32: 0 | J32: =E32*H32 -> 0 | K32: 0 | M32: 0 | N32: =J32*L32 -> 0 | O32: 0 | P32: =+J32-N32 -> 0 | Q32: 0 | R32: =+J32*E$7 -> 0
C33: Tractors/Self-Propelled | D33: 3.17 | F33: Gallon | G33: 2.4 | I33: 7.608 | J33: =E33*H33 -> 0 | K33: 0 | M33: 0 | N33: =J33*L33 -> 0 | O33: 7.608 | P33: =+J33-N33 -> 0 | Q33: 760.8 | R33: =+J33*E$7 -> 0
B35: Gasoline
C36: Pickup/General Use Equipment | D36: 1 | F36: Acre | G36: 0 | I36: 0 | J36: =E36*H36 -> 0 | K36: 0 | M36: 0 | N36: =J36*L36 -> 0 | O36: 0 | P36: =+J36-N36 -> 0 | Q36: 0 | R36: =+J36*E$7 -> 0
C37: Tractors/Self-Propelled | D37: 0 | F37: Gallon | G37: 2.2 | I37: 0 | J37: =E37*H37 -> 0 | K37: 0 | M37: 0 | N37: =J37*L37 -> 0 | O37: 0 | P37: =+J37-N37 -> 0 | Q37: 0 | R37: =+J37*E$7 -> 0
B39: Repairs & Maintenance
C40: Pickup/General Use Equipment | D40: 1 | F40: Acre | G40: 0 | I40: 0 | J40: =E40*H40 -> 0 | K40: 0 | M40: 0 | N40: =J40*L40 -> 0 | O40: 0 | P40: =+J40-N40 -> 0 | Q40: 0 | R40: =+J40*E$7 -> 0
C41: Irrigation Equipment | D41: 1 | F41: Acre | G41: 0 | I41: 0 | J41: 0 | K41: 0 | M41: 0 | N41: 0 | O41: 0 | P41: 0 | Q41: 0 | R41: 0
C42: Tractors/Self-Propelled | D42: 1 | F42: Acre | G42: 4.117850502 | I42: 4.117850502 | J42: 0 | K42: 0 | M42: 0 | N42: 0 | O42: 4.117850502 | P42: 0 | Q42: 411.7850502 | R42: 0
C43: Implements | D43: 1 | F43: Acre | G43: 4.252484943 | I43: 4.252484943 | J43: 0 | K43: 0 | M43: 0 | N43: 0 | O43: 4.252484943 | P43: 0 | Q43: 425.2484943 | R43: 0
I44: 0 | J44: 0 | K44: 0 | M44: 0 | N44: 0 | O44: 0 | P44: 0 | Q44: 0 | R44: 0
I45: 0 | J45: 0 | K45: 0 | M45: 0 | N45: 0 | O45: 0 | P45: 0 | Q45: 0 | R45: 0
B46: Interest on Credit Line | G46: 0.0475 | I46: 11.02617712 | J46: =+SUM(J17:J45)/2*H46 -> 0 | M46: 0 | N46: =+SUM(N17:N45)/2*L46 -> 0 | O46: 11.02617712 | P46: =+SUM(P17:P45)/2*L46 -> 0 | Q46: 1102.617712 | R46: =+J46*E$7 -> 0
A47: Total Variable Costs | I47: 299.7045126 | J47: =SUM(J18:J46) -> 0 | M47: 0 | N47: =SUM(N18:N46) -> 0 | O47: 299.7045126 | P47: =SUM(P18:P46) -> 0 | Q47: 29970.45126 | R47: =SUM(R18:R46) -> 0
A48: Planned Returns Above Variable Costs: | I48: -299.7045126 | J48: =+J13-J47 -> 0 | M48: 0 | N48: =+N13-N47 -> 0 | O48: -299.7045126 | P48: =+P13-P47 -> 0 | Q48: -29970.45126 | R48: =+R13-R47 -> 0
B49: Breakeven Price to Cover Variable Costs | G49: n/a | H49: =IF(E10=0,"n/a",(YVarExp-(YTotExp+YTotRet-J10))/E10) -> n/a
Q50: Enterprise | R50: Enterprise
A51: FIXED COSTS | D51: Quantity | E51: Quantity | F51: Units | G51: $/Unit | H51: $/Unit | I51: Total | J51: Total | K51: Share | L51: Share | M51: Landlord | N51: Landlord | O51: Tenant | P51: Tenant | Q51: Total | R51: Total
B52: Machinery Depreciation
C53: Tractors/Self-Propelled | D53: 1 | F53: Acre | G53: 3.404089748 | I53: 3.404089748 | J53: =E53*H53 -> 0 | K53: 0 | M53: 0 | N53: =J53*L53 -> 0 | O53: 3.404089748 | P53: =+J53-N53 -> 0 | Q53: 340.4089748 | R53: =+J53*E$7 -> 0
C54: Implements | D54: 1 | F54: Acre | G54: 5.013190725 | I54: 5.013190725 | J54: 0 | K54: 0 | M54: 0 | N54: =J54*L54 -> 0 | O54: 5.013190725 | P54: 0 | Q54: 501.3190725 | R54: 0
B55: Equipment Investment
C56: Tractors/Self-Propelled | D56: 26.51895723 | F56: Dollars | G56: 0.06 | I56: 1.591137434 | J56: =E56*H56 -> 0 | K56: 0 | M56: 0 | N56: =J56*L56 -> 0 | O56: 1.591137434 | P56: =+J56-N56 -> 0 | Q56: 159.1137434 | R56: =+J56*E$7 -> 0
C57: Implements | D57: 23.32652636 | F57: Dollars | G57: 0.06 | I57: 1.399591581 | J57: 0 | K57: 0 | M57: 0 | N57: =J57*L57 -> 0 | O57: 1.399591581 | P57: 0 | Q57: 139.9591581 | R57: 0
B58: Salaried Labor | D58: 1 | F58: Acre | G58: 0 | I58: 0 | J58: 0 | K58: 0 | M58: 0 | N58: =J58*L58 -> 0 | O58: 0 | P58: =+J58-N58 -> 0 | Q58: 0 | R58: =+J58*E$7 -> 0
B59: Management Fee, Owner/Operator Labor | D59: 1 | F59: Acre | G59: 0 | I59: 0 | J59: 0 | K59: 0 | M59: 0 | N59: 0 | O59: 0 | P59: 0 | Q59: 0 | R59: 0
B60: Allocated Establishment Cost | D60: 1 | F60: Acre | G60: 0 | I60: 0 | J60: 0 | K60: 0 | M60: 0 | N60: 0 | O60: 0 | P60: 0 | Q60: 0 | R60: 0
B61: None | D61: 1 | F61: Acre | G61: 0 | I61: 0 | J61: 0 | K61: 0 | M61: 0 | N61: 0 | O61: 0 | P61: 0 | Q61: 0 | R61: 0
B62: Property Taxes | D62: 1 | F62: Acre | G62: 0 | I62: 0 | J62: 0 | K62: 0 | M62: 0 | N62: 0 | O62: 0 | P62: 0 | Q62: 0 | R62: 0
B63: Whole Farm Insurance | D63: 1 | F63: Acre | G63: 0 | I63: 0 | J63: 0 | K63: 0 | M63: 0 | N63: 0 | O63: 0 | P63: 0 | Q63: 0 | R63: 0
D64: 1 | G64: 0 | I64: 0 | J64: 0 | K64: 0 | M64: 0 | N64: 0 | O64: 0 | P64: 0 | Q64: 0 | R64: 0
D65: 1 | G65: 0 | I65: 0 | J65: =E65*H65 -> 0 | K65: 0 | M65: 0 | N65: 0 | O65: 0 | P65: 0 | Q65: 0 | R65: 0
A66: Total Fixed Costs | I66: 11.40800949 | J66: =+SUM(J53:J65) -> 0 | M66: 0 | N66: =+SUM(N53:N65) -> 0 | O66: 11.40800949 | P66: =+SUM(P53:P65) -> 0 | Q66: 1140.800949 | R66: =+SUM(R53:R65) -> 0
A67: Total Specified Costs | I67: 311.1125221 | J67: =+J47+J66 -> 0 | M67: 0 | N67: =+N47+N66 -> 0 | O67: 311.1125221 | P67: =+P47+P66 -> 0 | Q67: 31111.25221 | R67: =+R47+R66 -> 0
A69: Returns Above Specified Costs | I69: -311.1125221 | J69: =+J13-J67 -> 0 | M69: 0 | N69: =+N13-N67 -> 0 | O69: -311.1125221 | P69: =+P13-P67 -> 0 | Q69: -31111.25221 | R69: =+R13-R67 -> 0
A71: Breakeven Price to Cover Total Costs | G71: n/a | H71: =IF(E10=0,"n/a",(YTotExp-(YTotExp+YTotRet-J10))/E10) -> n/a
D73: Example Breakeven Prices
B74: Example | C74: Example | D74: To Cover | G74: To Cover
B75: Yield | C75: Yield | D75: Variable | G75: Total
B76: Percent | D76: Costs | G76: Costs
B77: 0.75 | C77: 0 | D77: 0 | G77: 0
B78: 0.9 | C78: 0 | D78: 0 | G78: 0
B79: 1 | C79: 0 | D79: 0 | G79: 0
B80: 1.1 | C80: 0 | D80: 0 | G80: 0
B81: 1.25 | C81: 0 | D81: 0 | G81: 0
D83: Your Breakeven Prices
B84: Your | C84: Your | E84: To Cover | H84: To Cover
B85: Yield | C85: Yield | E85: Variable | H85: Total
B86: Percent | E86: Costs | H86: Costs
B87: 0.75 | C87: =E10*YPER1 -> 0 | E87: =IF($E$10=0,0,(YVarExp-(YTotExp+YTotRet-J10))/($E$10*YPER1)) -> 0 | H87: =IF($E$10=0,0,(YTotExp-(YTotExp+YTotRet-J10))/($E$10*YPER1)) -> 0
B88: 0.9 | C88: =E10*YPER2 -> 0 | E88: =IF($E$10=0,0,(YVarExp-(YTotExp+YTotRet-J10))/($E$10*YPER2)) -> 0 | H88: =IF($E$10=0,0,(YTotExp-(YTotExp+YTotRet-J10))/($E$10*YPER2)) -> 0
B89: 1 | C89: =+E10 -> 0 | E89: =IF($E$10=0,0,(YVarExp-(YTotExp+YTotRet-J10))/($E$10*YPER3)) -> 0 | H89: =IF($E$10=0,0,(YTotExp-(YTotExp+YTotRet-J10))/($E$10*YPER3)) -> 0
B90: 1.1 | C90: =E10*YPER4 -> 0 | E90: =IF($E$10=0,0,(YVarExp-(YTotExp+YTotRet-J10))/($E$10*YPER4)) -> 0 | H90: =IF($E$10=0,0,(YTotExp-(YTotExp+YTotRet-J10))/($E$10*YPER4)) -> 0
B91: 1.25 | C91: =E10*YPER5 -> 0 | E91: =IF($E$10=0,0,(YVarExp-(YTotExp+YTotRet-J10))/($E$10*YPER5)) -> 0 | H91: =IF($E$10=0,0,(YTotExp-(YTotExp+YTotRet-J10))/($E$10*YPER5)) -> 0
A93: Developed by Jason Johnson, Associate Professor and Extension Economist, Texas A&M AgriLife Extension, 254-968-4144.
A95: Information presented is prepared solely as a general guide and not intended to recognize or predict the costs and returns from any one operation. Brand names are mentioned only as examples and imply no endorsement.

Sheet CoastalHay
A1: Projections for Planning Purposes Only -- Not to be Used without Updating
A2: 2018 Estimated Costs and Returns per Acre
A3: Coastal Bermudagrass Hay
A4: Enter your name for this budget in the cell above.
A5: Enter Your Values in the cells highlighed in MAROON.
E6: Your Acres | R6: Your
C7: Crop Acres | D7: 100 | L7: Your | Q7: Enterprise | R7: Enterprise
E8: Your | H8: Your | I8: Cash | J8: Your | K8: Landlord | L8: Landlord | N8: Your | P8: Your | Q8: Total | R8: Total
A9: REVENUE | D9: Quantity | E9: Quantity | F9: Units | G9: $/Unit | H9: $/Unit | I9: Total | J9: Total | K9: Share | L9: Share | M9: Landlord | N9: Landlord | O9: Tenant | P9: Tenant | Q9: (100 acres) | R9: ="(" & E7 & " acres)" -> ( acres)
B10: Bermuda Hay | D10: 6 | F10: Roll | G10: 55 | I10: 330 | J10: =E10*H10 -> 0 | K10: 0 | M10: 0 | N10: =J10*L10 -> 0 | O10: 330 | P10: =+J10-N10 -> 0 | Q10: 33000 | R10: =+J10*E$7 -> 0
D11: 0 | G11: 0 | I11: 0 | J11: 0 | K11: 0 | M11: 0 | N11: 0 | O11: 0 | P11: =+J11-N11 -> 0 | Q11: 0 | R11: 0
D12: 0 | G12: 0 | I12: 0 | J12: 0 | K12: 0 | M12: 0 | N12: 0 | O12: 0 | P12: 0 | Q12: 0 | R12: 0
A13: Total Revenue | I13: 330 | J13: =SUM(J10:J12) -> 0 | M13: 0 | N13: =SUM(N10:N12) -> 0 | O13: 330 | P13: =SUM(P10:P12) -> 0 | Q13: 33000 | R13: =SUM(R10:R12) -> 0
Q14: Enterprise | R14: Enterprise
A15: VARIABLE COSTS | D15: Quantity | E15: Quantity | F15: Units | G15: $/Unit | H15: $/Unit | I15: Total | J15: Total | K15: Share | L15: Share | M15: Landlord | N15: Landlord | O15: Tenant | P15: Tenant | Q15: Total | R15: Total
A16: Production Costs
B17: Custom
C18: Land Renovation | D18: 1 | F18: Acre | G18: 5 | I18: 5 | J18: =E18*H18 -> 0 | K18: 0 | M18: 0 | N18: =J18*L18 -> 0 | O18: 5 | P18: =+J18-N18 -> 0 | Q18: 500 | R18: =+J18*E$7 -> 0
C19: Custom Spray | D19: 3 | F19: Acre | G19: 5 | I19: 15 | J19: 0 | K19: 0 | M19: 0 | N19: 0 | O19: 15 | P19: 0 | Q19: 1500 | R19: 0
C20: Cut and Bale | D20: 3 | F20: Acre | G20: 40 | I20: 120 | J20: 0 | K20: 0 | M20: 0 | N20: 0 | O20: 120 | P20: 0 | Q20: 12000 | R20: 0
B21: Fertilizer
C22: 24-6-12 | D22: 300 | F22: Pound | G22: 0.18 | I22: 54 | J22: 0 | K22: 0 | M22: 0 | N22: 0 | O22: 54 | P22: 0 | Q22: 5400 | R22: 0
C23: 34-0-0 | D23: 300 | F23: Pound | G23: 0.18 | I23: 54 | J23: 0 | K23: 0 | M23: 0 | N23: 0 | O23: 54 | P23: 0 | Q23: 5400 | R23: 0
B24: Insecticide
C25: Hay Pre and Post Herbicide | D25: 1 | F25: Acre | G25: 6.75 | I25: 6.75 | J25: 0 | K25: 0 | M25: 0 | N25: 0 | O25: 6.75 | P25: 0 | Q25: 675 | R25: 0
D26: 0 | G26: 0 | I26: 0 | J26: 0 | K26: 0 | M26: 0 | N26: 0 | O26: 0 | P26: 0 | Q26: 0 | R26: 0
D27: 0 | G27: 0 | I27: 0 | J27: 0 | K27: 0 | M27: 0 | N27: 0 | O27: 0 | P27: 0 | Q27: 0 | R27: 0
D28: 0 | G28: 0 | I28: 0 | J28: =E28*H28 -> 0 | K28: 0 | M28: 0 | N28: =J28*L28 -> 0 | O28: 0 | P28: =+J28-N28 -> 0 | Q28: 0 | R28: =+J28*E$7 -> 0
B29: Machinery Labor
C30: Tractors/Self-Propelled | D30: 1.43 | F30: Hour | G30: 10 | I30: 14.3 | J30: =E30*H30 -> 0 | K30: 0 | M30: 0 | N30: =J30*L30 -> 0 | O30: 14.3 | P30: =+J30-N30 -> 0 | Q30: 1430 | R30: =+J30*E$7 -> 0
C31: Other Labor | D31: 0 | F31: Hour | G31: 10 | I31: 0 | J31: =E31*H31 -> 0 | K31: 0 | M31: 0 | N31: =J31*L31 -> 0 | O31: 0 | P31: =+J31-N31 -> 0 | Q31: 0 | R31: =+J31*E$7 -> 0
B33: Diesel Fuel
C34: Pickup/General Use Equipment | D34: 1 | F34: Acre | G34: 0 | I34: 0 | J34: =E34*H34 -> 0 | K34: 0 | M34: 0 | N34: =J34*L34 -> 0 | O34: 0 | P34: =+J34-N34 -> 0 | Q34: 0 | R34: =+J34*E$7 -> 0
C35: Tractors/Self-Propelled | D35: 4.64 | F35: Gallon | G35: 2.4 | I35: 11.136 | J35: =E35*H35 -> 0 | K35: 0 | M35: 0 | N35: =J35*L35 -> 0 | O35: 11.136 | P35: =+J35-N35 -> 0 | Q35: 1113.6 | R35: =+J35*E$7 -> 0
B37: Gasoline
C38: Pickup/General Use Equipment | D38: 1 | F38: Acre | G38: 0 | I38: 0 | J38: =E38*H38 -> 0 | K38: 0 | M38: 0 | N38: =J38*L38 -> 0 | O38: 0 | P38: =+J38-N38 -> 0 | Q38: 0 | R38: =+J38*E$7 -> 0
C39: Tractors/Self-Propelled | D39: 0 | F39: Gallon | G39: 2.2 | I39: 0 | J39: =E39*H39 -> 0 | K39: 0 | M39: 0 | N39: =J39*L39 -> 0 | O39: 0 | P39: =+J39-N39 -> 0 | Q39: 0 | R39: =+J39*E$7 -> 0
B41: Repairs & Maintenance
C42: Pickup/General Use Equipment | D42: 1 | F42: Acre | G42: 0 | I42: 0 | J42: =E42*H42 -> 0 | K42: 0 | M42: 0 | N42: =J42*L42 -> 0 | O42: 0 | P42: =+J42-N42 -> 0 | Q42: 0 | R42: =+J42*E$7 -> 0
C43: Irrigation Equipment | D43: 1 | F43: Acre | G43: 0 | I43: 0 | J43: 0 | K43: 0 | M43: 0 | N43: 0 | O43: 0 | P43: 0 | Q43: 0 | R43: 0
C44: Tractors/Self-Propelled | D44: 1 | F44: Acre | G44: 6.026400952 | I44: 6.026400952 | J44: 0 | K44: 0 | M44: 0 | N44: 0 | O44: 6.026400952 | P44: 0 | Q44: 602.6400952 | R44: 0
C45: Implements | D45: 1 | F45: Acre | G45: 0.6168087197 | I45: 0.6168087197 | J45: 0 | K45: 0 | M45: 0 | N45: 0 | O45: 0.6168087197 | P45: 0 | Q45: 61.68087197 | R45: 0
I46: 0 | J46: 0 | K46: 0 | M46: 0 | N46: 0 | O46: 0 | P46: 0 | Q46: 0 | R46: 0
I47: 0 | J47: 0 | K47: 0 | M47: 0 | N47: 0 | O47: 0 | P47: 0 | Q47: 0 | R47: 0
B48: Interest on Credit Line | G48: 0.0475 | I48: 3.019998992 | J48: =+SUM(J17:J47)/2*H48 -> 0 | M48: 0 | N48: =+SUM(N17:N47)/2*L48 -> 0 | O48: 3.019998992 | P48: =+SUM(P17:P47)/2*L48 -> 0 | Q48: 301.9998992 | R48: =+J48*E$7 -> 0
A49: Total Variable Costs | I49: 289.8492087 | J49: =SUM(J18:J48) -> 0 | M49: 0 | N49: =SUM(N18:N48) -> 0 | O49: 289.8492087 | P49: =SUM(P18:P48) -> 0 | Q49: 28984.92087 | R49: =SUM(R18:R48) -> 0
A50: Planned Returns Above Variable Costs: | I50: 40.15079134 | J50: =+J13-J49 -> 0 | M50: 0 | N50: =+N13-N49 -> 0 | O50: 40.15079134 | P50: =+P13-P49 -> 0 | Q50: 4015.079134 | R50: =+R13-R49 -> 0
B51: Breakeven Price to Cover Variable Costs | G51: 48.30820144 | H51: =IF(E10=0,"n/a",(YVarExp-(YTotExp+YTotRet-J10))/E10) -> n/a | I51: Roll
Q52: Enterprise | R52: Enterprise
A53: FIXED COSTS | D53: Quantity | E53: Quantity | F53: Units | G53: $/Unit | H53: $/Unit | I53: Total | J53: Total | K53: Share | L53: Share | M53: Landlord | N53: Landlord | O53: Tenant | P53: Tenant | Q53: Total | R53: Total
B54: Machinery Depreciation
C55: Tractors/Self-Propelled | D55: 1 | F55: Acre | G55: 4.981824787 | I55: 4.981824787 | J55: =E55*H55 -> 0 | K55: 0 | M55: 0 | N55: =J55*L55 -> 0 | O55: 4.981824787 | P55: =+J55-N55 -> 0 | Q55: 498.1824787 | R55: =+J55*E$7 -> 0
C56: Implements | D56: 1 | F56: Acre | G56: 0.8058201274 | I56: 0.8058201274 | J56: 0 | K56: 0 | M56: 0 | N56: =J56*L56 -> 0 | O56: 0.8058201274 | P56: 0 | Q56: 80.58201274 | R56: 0
B57: Equipment Investment
C58: Tractors/Self-Propelled | D58: 38.81002213 | F58: Dollars | G58: 0.06 | I58: 2.328601328 | J58: =E58*H58 -> 0 | K58: 0 | M58: 0 | N58: =J58*L58 -> 0 | O58: 2.328601328 | P58: =+J58-N58 -> 0 | Q58: 232.8601328 | R58: =+J58*E$7 -> 0
C59: Implements | D59: 6.251381582 | F59: Dollars | G59: 0.06 | I59: 0.3750828949 | J59: 0 | K59: 0 | M59: 0 | N59: =J59*L59 -> 0 | O59: 0.3750828949 | P59: 0 | Q59: 37.50828949 | R59: 0
B60: Salaried Labor | D60: 1 | F60: Acre | G60: 0 | I60: 0 | J60: 0 | K60: 0 | M60: 0 | N60: =J60*L60 -> 0 | O60: 0 | P60: =+J60-N60 -> 0 | Q60: 0 | R60: =+J60*E$7 -> 0
B61: Management Fee, Owner/Operator Labor | D61: 1 | F61: Acre | G61: 0 | I61: 0 | J61: 0 | K61: 0 | M61: 0 | N61: 0 | O61: 0 | P61: 0 | Q61: 0 | R61: 0
B62: Allocated Establishment Cost | D62: 1 | F62: Acre | G62: 0 | I62: 0 | J62: 0 | K62: 0 | M62: 0 | N62: 0 | O62: 0 | P62: 0 | Q62: 0 | R62: 0
B63: None | D63: 1 | F63: Acre | G63: 0 | I63: 0 | J63: 0 | K63: 0 | M63: 0 | N63: 0 | O63: 0 | P63: 0 | Q63: 0 | R63: 0
B64: Property Taxes | D64: 1 | F64: Acre | G64: 0 | I64: 0 | J64: 0 | K64: 0 | M64: 0 | N64: 0 | O64: 0 | P64: 0 | Q64: 0 | R64: 0
B65: Whole Farm Insurance | D65: 1 | F65: Acre | G65: 0 | I65: 0 | J65: 0 | K65: 0 | M65: 0 | N65: 0 | O65: 0 | P65: 0 | Q65: 0 | R65: 0
D66: 1 | G66: 0 | I66: 0 | J66: 0 | K66: 0 | M66: 0 | N66: 0 | O66: 0 | P66: 0 | Q66: 0 | R66: 0
D67: 1 | G67: 0 | I67: 0 | J67: =E67*H67 -> 0 | K67: 0 | M67: 0 | N67: 0 | O67: 0 | P67: 0 | Q67: 0 | R67: 0
A68: Total Fixed Costs | I68: 8.491329137 | J68: =+SUM(J55:J67) -> 0 | M68: 0 | N68: =+SUM(N55:N67) -> 0 | O68: 8.491329137 | P68: =+SUM(P55:P67) -> 0 | Q68: 849.1329137 | R68: =+SUM(R55:R67) -> 0
A69: Total Specified Costs | I69: 298.3405378 | J69: =+J49+J68 -> 0 | M69: 0 | N69: =+N49+N68 -> 0 | O69: 298.3405378 | P69: =+P49+P68 -> 0 | Q69: 29834.05378 | R69: =+R49+R68 -> 0
A71: Returns Above Specified Costs | I71: 31.6594622 | J71: =+J13-J69 -> 0 | M71: 0 | N71: =+N13-N69 -> 0 | O71: 31.6594622 | P71: =+P13-P69 -> 0 | Q71: 3165.94622 | R71: =+R13-R69 -> 0
A73: Breakeven Price to Cover Total Costs | G73: 49.72342297 | H73: =IF(E10=0,"n/a",(YTotExp-(YTotExp+YTotRet-J10))/E10) -> n/a | I73: Roll
D75: Example Breakeven Prices
B76: Example | C76: Example | D76: To Cover | G76: To Cover
B77: Yield | C77: Yield | D77: Variable | G77: Total
B78: Percent | C78: Roll | D78: Costs | G78: Costs
B79: 0.75 | C79: 4.5 | D79: 64.41093526 | G79: 66.29789729
B80: 0.9 | C80: 5.4 | D80: 53.67577938 | G80: 55.24824774
B81: 1 | C81: 6 | D81: 48.30820144 | G81: 49.72342297
B82: 1.1 | C82: 6.6 | D82: 43.91654677 | G82: 45.20311179
B83: 1.25 | C83: 7.5 | D83: 38.64656116 | G83: 39.77873837
D85: Your Breakeven Prices
B86: Your | C86: Your | E86: To Cover | H86: To Cover
B87: Yield | C87: Yield | E87: Variable | H87: Total
B88: Percent | C88: Roll | E88: Costs | H88: Costs
B89: 0.75 | C89: =E10*YPER1 -> 0 | E89: =IF($E$10=0,0,(YVarExp-(YTotExp+YTotRet-J10))/($E$10*YPER1)) -> 0 | H89: =IF($E$10=0,0,(YTotExp-(YTotExp+YTotRet-J10))/($E$10*YPER1)) -> 0
B90: 0.9 | C90: =E10*YPER2 -> 0 | E90: =IF($E$10=0,0,(YVarExp-(YTotExp+YTotRet-J10))/($E$10*YPER2)) -> 0 | H90: =IF($E$10=0,0,(YTotExp-(YTotExp+YTotRet-J10))/($E$10*YPER2)) -> 0
B91: 1 | C91: =+E10 -> 0 | E91: =IF($E$10=0,0,(YVarExp-(YTotExp+YTotRet-J10))/($E$10*YPER3)) -> 0 | H91: =IF($E$10=0,0,(YTotExp-(YTotExp+YTotRet-J10))/($E$10*YPER3)) -> 0
B92: 1.1 | C92: =E10*YPER4 -> 0 | E92: =IF($E$10=0,0,(YVarExp-(YTotExp+YTotRet-J10))/($E$10*YPER4)) -> 0 | H92: =IF($E$10=0,0,(YTotExp-(YTotExp+YTotRet-J10))/($E$10*YPER4)) -> 0
B93: 1.25 | C93: =E10*YPER5 -> 0 | E93: =IF($E$10=0,0,(YVarExp-(YTotExp+YTotRet-J10))/($E$10*YPER5)) -> 0 | H93: =IF($E$10=0,0,(YTotExp-(YTotExp+YTotRet-J10))/($E$10*YPER5)) -> 0
A95: Developed by Jason Johnson, Associate Professor and Extension Economist, Texas A&M AgriLife Extension, 254-968-4144.
A97: Information presented is prepared solely as a general guide and not intended to recognize or predict the costs and returns from any one operation. Brand names are mentioned only as examples and imply no endorsement.

Sheet CoastalPasture
A1: Projections for Planning Purposes Only -- Not to be Used without Updating
A2: 2018 Estimated Costs and Returns per Acre
A3: Coastal Bermudagrass Pasture
A4: Enter your name for this budget in the cell above.
A5: Enter Your Values in the cells highlighed in MAROON.
E6: Your Acres | R6: Your
C7: Crop Acres | D7: 100 | L7: Your | Q7: Enterprise | R7: Enterprise
E8: Your | H8: Your | I8: Cash | J8: Your | K8: Landlord | L8: Landlord | N8: Your | P8: Your | Q8: Total | R8: Total
A9: REVENUE | D9: Quantity | E9: Quantity | F9: Units | G9: $/Unit | H9: $/Unit | I9: Total | J9: Total | K9: Share | L9: Share | M9: Landlord | N9: Landlord | O9: Tenant | P9: Tenant | Q9: (100 acres) | R9: ="(" & E7 & " acres)" -> ( acres)
B10: Livestock Grazing | D10: 5 | F10: AUM | G10: 22 | I10: 110 | J10: =E10*H10 -> 0 | K10: 0 | M10: 0 | N10: =J10*L10 -> 0 | O10: 110 | P10: =+J10-N10 -> 0 | Q10: 11000 | R10: =+J10*E$7 -> 0
D11: 0 | G11: 0 | I11: 0 | J11: 0 | K11: 0 | M11: 0 | N11: 0 | O11: 0 | P11: =+J11-N11 -> 0 | Q11: 0 | R11: 0
D12: 0 | G12: 0 | I12: 0 | J12: 0 | K12: 0 | M12: 0 | N12: 0 | O12: 0 | P12: 0 | Q12: 0 | R12: 0
A13: Total Revenue | I13: 110 | J13: =SUM(J10:J12) -> 0 | M13: 0 | N13: =SUM(N10:N12) -> 0 | O13: 110 | P13: =SUM(P10:P12) -> 0 | Q13: 11000 | R13: =SUM(R10:R12) -> 0
Q14: Enterprise | R14: Enterprise
A15: VARIABLE COSTS | D15: Quantity | E15: Quantity | F15: Units | G15: $/Unit | H15: $/Unit | I15: Total | J15: Total | K15: Share | L15: Share | M15: Landlord | N15: Landlord | O15: Tenant | P15: Tenant | Q15: Total | R15: Total
A16: Production Costs
B17: Custom
C18: Custom Spray | D18: 2 | F18: Acre | G18: 5 | I18: 10 | J18: =E18*H18 -> 0 | K18: 0 | M18: 0 | N18: =J18*L18 -> 0 | O18: 10 | P18: =+J18-N18 -> 0 | Q18: 1000 | R18: =+J18*E$7 -> 0
B19: Fertilizer
C20: 24-6-12 | D20: 200 | F20: Pound | G20: 0.18 | I20: 36 | J20: 0 | K20: 0 | M20: 0 | N20: 0 | O20: 36 | P20: 0 | Q20: 3600 | R20: 0
B21: Insecticide
C22: Hay Pre and Post Herbicide | D22: 1 | F22: Acre | G22: 6.75 | I22: 6.75 | J22: 0 | K22: 0 | M22: 0 | N22: 0 | O22: 6.75 | P22: 0 | Q22: 675 | R22: 0
D23: 0 | G23: 0 | I23: 0 | J23: 0 | K23: 0 | M23: 0 | N23: 0 | O23: 0 | P23: 0 | Q23: 0 | R23: 0
D24: 0 | G24: 0 | I24: 0 | J24: 0 | K24: 0 | M24: 0 | N24: 0 | O24: 0 | P24: 0 | Q24: 0 | R24: 0
D25: 0 | G25: 0 | I25: 0 | J25: =E25*H25 -> 0 | K25: 0 | M25: 0 | N25: =J25*L25 -> 0 | O25: 0 | P25: =+J25-N25 -> 0 | Q25: 0 | R25: =+J25*E$7 -> 0
B26: Machinery Labor
C27: Tractors/Self-Propelled | D27: 0 | F27: Hour | G27: 10 | I27: 0 | J27: =E27*H27 -> 0 | K27: 0 | M27: 0 | N27: =J27*L27 -> 0 | O27: 0 | P27: =+J27-N27 -> 0 | Q27: 0 | R27: =+J27*E$7 -> 0
C28: Other Labor | D28: 0 | F28: Hour | G28: 10 | I28: 0 | J28: =E28*H28 -> 0 | K28: 0 | M28: 0 | N28: =J28*L28 -> 0 | O28: 0 | P28: =+J28-N28 -> 0 | Q28: 0 | R28: =+J28*E$7 -> 0
B30: Diesel Fuel
C31: Pickup/General Use Equipment | D31: 1 | F31: Acre | G31: 0 | I31: 0 | J31: =E31*H31 -> 0 | K31: 0 | M31: 0 | N31: =J31*L31 -> 0 | O31: 0 | P31: =+J31-N31 -> 0 | Q31: 0 | R31: =+J31*E$7 -> 0
C32: Tractors/Self-Propelled | D32: 0 | F32: Gallon | G32: 2.4 | I32: 0 | J32: =E32*H32 -> 0 | K32: 0 | M32: 0 | N32: =J32*L32 -> 0 | O32: 0 | P32: =+J32-N32 -> 0 | Q32: 0 | R32: =+J32*E$7 -> 0
B34: Gasoline
C35: Pickup/General Use Equipment | D35: 1 | F35: Acre | G35: 0 | I35: 0 | J35: =E35*H35 -> 0 | K35: 0 | M35: 0 | N35: =J35*L35 -> 0 | O35: 0 | P35: =+J35-N35 -> 0 | Q35: 0 | R35: =+J35*E$7 -> 0
C36: Tractors/Self-Propelled | D36: 0 | F36: Gallon | G36: 2.2 | I36: 0 | J36: =E36*H36 -> 0 | K36: 0 | M36: 0 | N36: =J36*L36 -> 0 | O36: 0 | P36: =+J36-N36 -> 0 | Q36: 0 | R36: =+J36*E$7 -> 0
B38: Repairs & Maintenance
C39: Pickup/General Use Equipment | D39: 1 | F39: Acre | G39: 0 | I39: 0 | J39: =E39*H39 -> 0 | K39: 0 | M39: 0 | N39: =J39*L39 -> 0 | O39: 0 | P39: =+J39-N39 -> 0 | Q39: 0 | R39: =+J39*E$7 -> 0
C40: Irrigation Equipment | D40: 1 | F40: Acre | G40: 0 | I40: 0 | J40: 0 | K40: 0 | M40: 0 | N40: 0 | O40: 0 | P40: 0 | Q40: 0 | R40: 0
C41: Tractors/Self-Propelled | D41: 1 | F41: Acre | G41: 0 | I41: 0 | J41: 0 | K41: 0 | M41: 0 | N41: 0 | O41: 0 | P41: 0 | Q41: 0 | R41: 0
C42: Implements | D42: 1 | F42: Acre | G42: 0 | I42: 0 | J42: 0 | K42: 0 | M42: 0 | N42: 0 | O42: 0 | P42: 0 | Q42: 0 | R42: 0
I43: 0 | J43: 0 | K43: 0 | M43: 0 | N43: 0 | O43: 0 | P43: 0 | Q43: 0 | R43: 0
I44: 0 | J44: 0 | K44: 0 | M44: 0 | N44: 0 | O44: 0 | P44: 0 | Q44: 0 | R44: 0
B45: Interest on Credit Line | G45: 0.0475 | I45: 0.797394863 | J45: =+SUM(J17:J44)/2*H45 -> 0 | M45: 0 | N45: =+SUM(N17:N44)/2*L45 -> 0 | O45: 0.797394863 | P45: =+SUM(P17:P44)/2*L45 -> 0 | Q45: 79.7394863 | R45: =+J45*E$7 -> 0
A46: Total Variable Costs | I46: 53.54739486 | J46: =SUM(J18:J45) -> 0 | M46: 0 | N46: =SUM(N18:N45) -> 0 | O46: 53.54739486 | P46: =SUM(P18:P45) -> 0 | Q46: 5354.739486 | R46: =SUM(R18:R45) -> 0
A47: Planned Returns Above Variable Costs: | I47: 56.45260514 | J47: =+J13-J46 -> 0 | M47: 0 | N47: =+N13-N46 -> 0 | O47: 56.45260514 | P47: =+P13-P46 -> 0 | Q47: 5645.260514 | R47: =+R13-R46 -> 0
B48: Breakeven Price to Cover Variable Costs | G48: 10.70947897 | H48: =IF(E10=0,"n/a",(YVarExp-(YTotExp+YTotRet-J10))/E10) -> n/a | I48: AUM
Q49: Enterprise | R49: Enterprise
A50: FIXED COSTS | D50: Quantity | E50: Quantity | F50: Units | G50: $/Unit | H50: $/Unit | I50: Total | J50: Total | K50: Share | L50: Share | M50: Landlord | N50: Landlord | O50: Tenant | P50: Tenant | Q50: Total | R50: Total
B51: Salaried Labor | D51: 1 | F51: Acre | G51: 0 | I51: 0 | J51: =E51*H51 -> 0 | K51: 0 | M51: 0 | N51: =J51*L51 -> 0 | O51: 0 | P51: =+J51-N51 -> 0 | Q51: 0 | R51: =+J51*E$7 -> 0
B52: Management Fee, Owner/Operator Labor | D52: 1 | F52: Acre | G52: 0 | I52: 0 | J52: 0 | K52: 0 | M52: 0 | N52: 0 | O52: 0 | P52: 0 | Q52: 0 | R52: 0
B53: Allocated Establishment Cost | D53: 1 | F53: Acre | G53: 0 | I53: 0 | J53: 0 | K53: 0 | M53: 0 | N53: 0 | O53: 0 | P53: 0 | Q53: 0 | R53: 0
B54: None | D54: 1 | F54: Acre | G54: 0 | I54: 0 | J54: 0 | K54: 0 | M54: 0 | N54: 0 | O54: 0 | P54: 0 | Q54: 0 | R54: 0
B55: Property Taxes | D55: 1 | F55: Acre | G55: 0 | I55: 0 | J55: 0 | K55: 0 | M55: 0 | N55: 0 | O55: 0 | P55: 0 | Q55: 0 | R55: 0
B56: Whole Farm Insurance | D56: 1 | F56: Acre | G56: 0 | I56: 0 | J56: 0 | K56: 0 | M56: 0 | N56: 0 | O56: 0 | P56: 0 | Q56: 0 | R56: 0
D57: 1 | G57: 0 | I57: 0 | J57: 0 | K57: 0 | M57: 0 | N57: 0 | O57: 0 | P57: 0 | Q57: 0 | R57: 0
D58: 1 | G58: 0 | I58: 0 | J58: =E58*H58 -> 0 | K58: 0 | M58: 0 | N58: 0 | O58: 0 | P58: 0 | Q58: 0 | R58: 0
A59: Total Fixed Costs | I59: 0 | J59: =+SUM(J51:J58) -> 0 | M59: 0 | N59: =+SUM(N51:N58) -> 0 | O59: 0 | P59: =+SUM(P51:P58) -> 0 | Q59: 0 | R59: =+SUM(R51:R58) -> 0
A60: Total Specified Costs | I60: 53.54739486 | J60: =+J46+J59 -> 0 | M60: 0 | N60: =+N46+N59 -> 0 | O60: 53.54739486 | P60: =+P46+P59 -> 0 | Q60: 5354.739486 | R60: =+R46+R59 -> 0
A62: Returns Above Specified Costs | I62: 56.45260514 | J62: =+J13-J60 -> 0 | M62: 0 | N62: =+N13-N60 -> 0 | O62: 56.45260514 | P62: =+P13-P60 -> 0 | Q62: 5645.260514 | R62: =+R13-R60 -> 0
A64: Breakeven Price to Cover Total Costs | G64: 10.70947897 | H64: =IF(E10=0,"n/a",(YTotExp-(YTotExp+YTotRet-J10))/E10) -> n/a | I64: AUM
D66: Example Breakeven Prices
B67: Example | C67: Example | D67: To Cover | G67: To Cover
B68: Yield | C68: Yield | D68: Variable | G68: Total
B69: Percent | C69: AUM | D69: Costs | G69: Costs
B70: 0.75 | C70: 3.75 | D70: 14.2793053 | G70: 14.2793053
B71: 0.9 | C71: 4.5 | D71: 11.89942108 | G71: 11.89942108
B72: 1 | C72: 5 | D72: 10.70947897 | G72: 10.70947897
B73: 1.1 | C73: 5.5 | D73: 9.735889975 | G73: 9.735889975
B74: 1.25 | C74: 6.25 | D74: 8.567583178 | G74: 8.567583178
D76: Your Breakeven Prices
B77: Your | C77: Your | E77: To Cover | H77: To Cover
B78: Yield | C78: Yield | E78: Variable | H78: Total
B79: Percent | C79: AUM | E79: Costs | H79: Costs
B80: 0.75 | C80: =E10*YPER1 -> 0 | E80: =IF($E$10=0,0,(YVarExp-(YTotExp+YTotRet-J10))/($E$10*YPER1)) -> 0 | H80: =IF($E$10=0,0,(YTotExp-(YTotExp+YTotRet-J10))/($E$10*YPER1)) -> 0
B81: 0.9 | C81: =E10*YPER2 -> 0 | E81: =IF($E$10=0,0,(YVarExp-(YTotExp+YTotRet-J10))/($E$10*YPER2)) -> 0 | H81: =IF($E$10=0,0,(YTotExp-(YTotExp+YTotRet-J10))/($E$10*YPER2)) -> 0
B82: 1 | C82: =+E10 -> 0 | E82: =IF($E$10=0,0,(YVarExp-(YTotExp+YTotRet-J10))/($E$10*YPER3)) -> 0 | H82: =IF($E$10=0,0,(YTotExp-(YTotExp+YTotRet-J10))/($E$10*YPER3)) -> 0
B83: 1.1 | C83: =E10*YPER4 -> 0 | E83: =IF($E$10=0,0,(YVarExp-(YTotExp+YTotRet-J10))/($E$10*YPER4)) -> 0 | H83: =IF($E$10=0,0,(YTotExp-(YTotExp+YTotRet-J10))/($E$10*YPER4)) -> 0
B84: 1.25 | C84: =E10*YPER5 -> 0 | E84: =IF($E$10=0,0,(YVarExp-(YTotExp+YTotRet-J10))/($E$10*YPER5)) -> 0 | H84: =IF($E$10=0,0,(YTotExp-(YTotExp+YTotRet-J10))/($E$10*YPER5)) -> 0
A86: Developed by Jason Johnson, Associate Professor and Extension Economist, Texas A&M AgriLife Extension, 254-968-4144.
A88: Information presented is prepared solely as a general guide and not intended to recognize or predict the costs and returns from any one operation. Brand names are mentioned only as examples and imply no endorsement.

Sheet Sorghum
A1: Projections for Planning Purposes Only -- Not to be Used without Updating
A2: 2018 Estimated Costs and Returns per Acre
A3: Grain Sorghum
A4: Enter your name for this budget in the cell above.
A5: Enter Your Values in the cells highlighed in MAROON.
E6: Your Acres | R6: Your
C7: Crop Acres | D7: 500 | L7: Your | Q7: Enterprise | R7: Enterprise
E8: Your | H8: Your | I8: Cash | J8: Your | K8: Landlord | L8: Landlord | N8: Your | P8: Your | Q8: Total | R8: Total
A9: REVENUE | D9: Quantity | E9: Quantity | F9: Units | G9: $/Unit | H9: $/Unit | I9: Total | J9: Total | K9: Share | L9: Share | M9: Landlord | N9: Landlord | O9: Tenant | P9: Tenant | Q9: (500 acres) | R9: ="(" & E7 & " acres)" -> ( acres)
B10: Grain Sorghum | D10: 45 | F10: CWT | G10: 6 | I10: 270 | J10: =E10*H10 -> 0 | K10: 0 | M10: 0 | N10: =J10*L10 -> 0 | O10: 270 | P10: =+J10-N10 -> 0 | Q10: 135000 | R10: =+J10*E$7 -> 0
D11: 0 | G11: 0 | I11: 0 | J11: 0 | K11: 0 | M11: 0 | N11: 0 | O11: 0 | P11: =+J11-N11 -> 0 | Q11: 0 | R11: 0
D12: 0 | G12: 0 | I12: 0 | J12: 0 | K12: 0 | M12: 0 | N12: 0 | O12: 0 | P12: 0 | Q12: 0 | R12: 0
A13: Total Revenue | I13: 270 | J13: =SUM(J10:J12) -> 0 | M13: 0 | N13: =SUM(N10:N12) -> 0 | O13: 270 | P13: =SUM(P10:P12) -> 0 | Q13: 135000 | R13: =SUM(R10:R12) -> 0
Q14: Enterprise | R14: Enterprise
A15: VARIABLE COSTS | D15: Quantity | E15: Quantity | F15: Units | G15: $/Unit | H15: $/Unit | I15: Total | J15: Total | K15: Share | L15: Share | M15: Landlord | N15: Landlord | O15: Tenant | P15: Tenant | Q15: Total | R15: Total
A16: Production Costs
B17: Custom
C18: Dry Fertilizer Rig | D18: 1 | F18: Acre | G18: 5 | I18: 5 | J18: =E18*H18 -> 0 | K18: 0 | M18: 0 | N18: =J18*L18 -> 0 | O18: 5 | P18: =+J18-N18 -> 0 | Q18: 2500 | R18: =+J18*E$7 -> 0
C19: Custom Combine | D19: 1 | F19: Acre | G19: 25 | I19: 25 | J19: 0 | K19: 0 | M19: 0 | N19: 0 | O19: 25 | P19: 0 | Q19: 12500 | R19: 0
C20: Custom Hauling Sorghum | D20: 45 | F20: CWT | G20: 0.25 | I20: 11.25 | J20: 0 | K20: 0 | M20: 0 | N20: 0 | O20: 11.25 | P20: 0 | Q20: 5625 | R20: 0
B21: Fertilizer
C22: 18-46-0 | D22: 100 | F22: Pound | G22: 0.23 | I22: 23 | J22: 0 | K22: 0 | M22: 0 | N22: 0 | O22: 23 | P22: 0 | Q22: 11500 | R22: 0
C23: 46-0-0 | D23: 80 | F23: Pound | G23: 0.17 | I23: 13.6 | J23: 0 | K23: 0 | M23: 0 | N23: 0 | O23: 13.6 | P23: 0 | Q23: 6800 | R23: 0
B24: Herbicide
C25: Pre-emerge sorghum | D25: 1.5 | F25: Quart | G25: 4 | I25: 6 | J25: 0 | K25: 0 | M25: 0 | N25: 0 | O25: 6 | P25: 0 | Q25: 3000 | R25: 0
B26: Insecticide
C27: Insecticide - Midge | D27: 1 | F27: Acre | G27: 3 | I27: 3 | J27: 0 | K27: 0 | M27: 0 | N27: 0 | O27: 3 | P27: 0 | Q27: 1500 | R27: 0
B28: Miscellaneous
C29: Insurance - Sorghum | D29: 1 | F29: Acre | G29: 11 | I29: 11 | J29: 0 | K29: 0 | M29: 0 | N29: 0 | O29: 11 | P29: 0 | Q29: 5500 | R29: 0
B30: Seed
C31: Treated Sorghum Seed | D31: 5 | F31: Pound | G31: 3 | I31: 15 | J31: 0 | K31: 0 | M31: 0 | N31: 0 | O31: 15 | P31: 0 | Q31: 7500 | R31: 0
D32: 0 | G32: 0 | I32: 0 | J32: 0 | K32: 0 | M32: 0 | N32: 0 | O32: 0 | P32: 0 | Q32: 0 | R32: 0
D33: 0 | G33: 0 | I33: 0 | J33: 0 | K33: 0 | M33: 0 | N33: 0 | O33: 0 | P33: 0 | Q33: 0 | R33: 0
D34: 0 | G34: 0 | I34: 0 | J34: =E34*H34 -> 0 | K34: 0 | M34: 0 | N34: =J34*L34 -> 0 | O34: 0 | P34: =+J34-N34 -> 0 | Q34: 0 | R34: =+J34*E$7 -> 0
B35: Machinery Labor
C36: Tractors/Self-Propelled | D36: 0.51 | F36: Hour | G36: 10 | I36: 5.1 | J36: =E36*H36 -> 0 | K36: 0 | M36: 0 | N36: =J36*L36 -> 0 | O36: 5.1 | P36: =+J36-N36 -> 0 | Q36: 2550 | R36: =+J36*E$7 -> 0
C37: Other Labor | D37: 0 | F37: Hour | G37: 10 | I37: 0 | J37: =E37*H37 -> 0 | K37: 0 | M37: 0 | N37: =J37*L37 -> 0 | O37: 0 | P37: =+J37-N37 -> 0 | Q37: 0 | R37: =+J37*E$7 -> 0
B39: Diesel Fuel
C40: Pickup/General Use Equipment | D40: 1 | F40: Acre | G40: 0 | I40: 0 | J40: =E40*H40 -> 0 | K40: 0 | M40: 0 | N40: =J40*L40 -> 0 | O40: 0 | P40: =+J40-N40 -> 0 | Q40: 0 | R40: =+J40*E$7 -> 0
C41: Tractors/Self-Propelled | D41: 4.95 | F41: Gallon | G41: 2.4 | I41: 11.88 | J41: =E41*H41 -> 0 | K41: 0 | M41: 0 | N41: =J41*L41 -> 0 | O41: 11.88 | P41: =+J41-N41 -> 0 | Q41: 5940 | R41: =+J41*E$7 -> 0
B43: Gasoline
C44: Pickup/General Use Equipment | D44: 1 | F44: Acre | G44: 0 | I44: 0 | J44: =E44*H44 -> 0 | K44: 0 | M44: 0 | N44: =J44*L44 -> 0 | O44: 0 | P44: =+J44-N44 -> 0 | Q44: 0 | R44: =+J44*E$7 -> 0
C45: Tractors/Self-Propelled | D45: 0 | F45: Gallon | G45: 2.2 | I45: 0 | J45: =E45*H45 -> 0 | K45: 0 | M45: 0 | N45: =J45*L45 -> 0 | O45: 0 | P45: =+J45-N45 -> 0 | Q45: 0 | R45: =+J45*E$7 -> 0
B47: Repairs & Maintenance
C48: Pickup/General Use Equipment | D48: 1 | F48: Acre | G48: 0 | I48: 0 | J48: =E48*H48 -> 0 | K48: 0 | M48: 0 | N48: =J48*L48 -> 0 | O48: 0 | P48: =+J48-N48 -> 0 | Q48: 0 | R48: =+J48*E$7 -> 0
C49: Irrigation Equipment | D49: 1 | F49: Acre | G49: 0 | I49: 0 | J49: 0 | K49: 0 | M49: 0 | N49: 0 | O49: 0 | P49: 0 | Q49: 0 | R49: 0
C50: Tractors/Self-Propelled | D50: 1 | F50: Acre | G50: 11.35806349 | I50: 11.35806349 | J50: 0 | K50: 0 | M50: 0 | N50: 0 | O50: 11.35806349 | P50: 0 | Q50: 5679.031747 | R50: 0
C51: Implements | D51: 1 | F51: Acre | G51: 15.92677054 | I51: 15.92677054 | J51: 0 | K51: 0 | M51: 0 | N51: 0 | O51: 15.92677054 | P51: 0 | Q51: 7963.38527 | R51: 0
I52: 0 | J52: 0 | K52: 0 | M52: 0 | N52: 0 | O52: 0 | P52: 0 | Q52: 0 | R52: 0
I53: 0 | J53: 0 | K53: 0 | M53: 0 | N53: 0 | O53: 0 | P53: 0 | Q53: 0 | R53: 0
B54: Interest on Credit Line | G54: 0.0475 | I54: 3.062709162 | J54: =+SUM(J17:J53)/2*H54 -> 0 | M54: 0 | N54: =+SUM(N17:N53)/2*L54 -> 0 | O54: 3.062709162 | P54: =+SUM(P17:P53)/2*L54 -> 0 | Q54: 1531.354581 | R54: =+J54*E$7 -> 0
A55: Total Variable Costs | I55: 160.1775432 | J55: =SUM(J18:J54) -> 0 | M55: 0 | N55: =SUM(N18:N54) -> 0 | O55: 160.1775432 | P55: =SUM(P18:P54) -> 0 | Q55: 80088.7716 | R55: =SUM(R18:R54) -> 0
A56: Planned Returns Above Variable Costs: | I56: 109.8224568 | J56: =+J13-J55 -> 0 | M56: 0 | N56: =+N13-N55 -> 0 | O56: 109.8224568 | P56: =+P13-P55 -> 0 | Q56: 54911.2284 | R56: =+R13-R55 -> 0
B57: Breakeven Price to Cover Variable Costs | G57: 3.55950096 | H57: =IF(E10=0,"n/a",(YVarExp-(YTotExp+YTotRet-J10))/E10) -> n/a | I57: CWT
Q58: Enterprise | R58: Enterprise
A59: FIXED COSTS | D59: Quantity | E59: Quantity | F59: Units | G59: $/Unit | H59: $/Unit | I59: Total | J59: Total | K59: Share | L59: Share | M59: Landlord | N59: Landlord | O59: Tenant | P59: Tenant | Q59: Total | R59: Total
B60: Machinery Depreciation
C61: Tractors/Self-Propelled | D61: 1 | F61: Acre | G61: 12.68943526 | I61: 12.68943526 | J61: =E61*H61 -> 0 | K61: 0 | M61: 0 | N61: =J61*L61 -> 0 | O61: 12.68943526 | P61: =+J61-N61 -> 0 | Q61: 6344.717628 | R61: =+J61*E$7 -> 0
C62: Implements | D62: 1 | F62: Acre | G62: 20.75725955 | I62: 20.75725955 | J62: 0 | K62: 0 | M62: 0 | N62: =J62*L62 -> 0 | O62: 20.75725955 | P62: 0 | Q62: 10378.62978 | R62: 0
B63: Equipment Investment
C64: Tractors/Self-Propelled | D64: 98.41210436 | F64: Dollars | G64: 0.06 | I64: 5.904726262 | J64: =E64*H64 -> 0 | K64: 0 | M64: 0 | N64: =J64*L64 -> 0 | O64: 5.904726262 | P64: =+J64-N64 -> 0 | Q64: 2952.363131 | R64: =+J64*E$7 -> 0
C65: Implements | D65: 88.79494364 | F65: Dollars | G65: 0.06 | I65: 5.327696619 | J65: 0 | K65: 0 | M65: 0 | N65: =J65*L65 -> 0 | O65: 5.327696619 | P65: 0 | Q65: 2663.848309 | R65: 0
B66: Salaried Labor | D66: 1 | F66: Acre | G66: 0 | I66: 0 | J66: 0 | K66: 0 | M66: 0 | N66: =J66*L66 -> 0 | O66: 0 | P66: =+J66-N66 -> 0 | Q66: 0 | R66: =+J66*E$7 -> 0
B67: Management Fee, Owner/Operator Labor | D67: 1 | F67: Acre | G67: 0 | I67: 0 | J67: 0 | K67: 0 | M67: 0 | N67: 0 | O67: 0 | P67: 0 | Q67: 0 | R67: 0
B68: Allocated Establishment Cost | D68: 1 | F68: Acre | G68: 0 | I68: 0 | J68: 0 | K68: 0 | M68: 0 | N68: 0 | O68: 0 | P68: 0 | Q68: 0 | R68: 0
B69: Dryland Crop Rent | D69: 1 | F69: Acre | G69: 30 | I69: 30 | J69: 0 | K69: 0 | M69: 0 | N69: 0 | O69: 30 | P69: 0 | Q69: 15000 | R69: 0
B70: Property Taxes | D70: 1 | F70: Acre | G70: 0 | I70: 0 | J70: 0 | K70: 0 | M70: 0 | N70: 0 | O70: 0 | P70: 0 | Q70: 0 | R70: 0
B71: Whole Farm Insurance | D71: 1 | F71: Acre | G71: 0 | I71: 0 | J71: 0 | K71: 0 | M71: 0 | N71: 0 | O71: 0 | P71: 0 | Q71: 0 | R71: 0
D72: 1 | G72: 0 | I72: 0 | J72: 0 | K72: 0 | M72: 0 | N72: 0 | O72: 0 | P72: 0 | Q72: 0 | R72: 0
D73: 1 | G73: 0 | I73: 0 | J73: =E73*H73 -> 0 | K73: 0 | M73: 0 | N73: 0 | O73: 0 | P73: 0 | Q73: 0 | R73: 0
A74: Total Fixed Costs | I74: 74.67911769 | J74: =+SUM(J61:J73) -> 0 | M74: 0 | N74: =+SUM(N61:N73) -> 0 | O74: 74.67911769 | P74: =+SUM(P61:P73) -> 0 | Q74: 37339.55885 | R74: =+SUM(R61:R73) -> 0
A75: Total Specified Costs | I75: 234.8566609 | J75: =+J55+J74 -> 0 | M75: 0 | N75: =+N55+N74 -> 0 | O75: 234.8566609 | P75: =+P55+P74 -> 0 | Q75: 117428.3304 | R75: =+R55+R74 -> 0
A77: Returns Above Specified Costs | I77: 35.14333911 | J77: =+J13-J75 -> 0 | M77: 0 | N77: =+N13-N75 -> 0 | O77: 35.14333911 | P77: =+P13-P75 -> 0 | Q77: 17571.66956 | R77: =+R13-R75 -> 0
A79: Breakeven Price to Cover Total Costs | G79: 5.219036909 | H79: =IF(E10=0,"n/a",(YTotExp-(YTotExp+YTotRet-J10))/E10) -> n/a | I79: CWT
D81: Example Breakeven Prices
B82: Example | C82: Example | D82: To Cover | G82: To Cover
B83: Yield | C83: Yield | D83: Variable | G83: Total
B84: Percent | C84: CWT | D84: Costs | G84: Costs
B85: 0.75 | C85: 33.75 | D85: 4.74600128 | G85: 6.958715878
B86: 0.9 | C86: 40.5 | D86: 3.955001067 | G86: 5.798929898
B87: 1 | C87: 45 | D87: 3.55950096 | G87: 5.219036909
B88: 1.1 | C88: 49.5 | D88: 3.235909964 | G88: 4.744579008
B89: 1.25 | C89: 56.25 | D89: 2.847600768 | G89: 4.175229527
D91: Your Breakeven Prices
B92: Your | C92: Your | E92: To Cover | H92: To Cover
B93: Yield | C93: Yield | E93: Variable | H93: Total
B94: Percent | C94: CWT | E94: Costs | H94: Costs
B95: 0.75 | C95: =E10*YPER1 -> 0 | E95: =IF($E$10=0,0,(YVarExp-(YTotExp+YTotRet-J10))/($E$10*YPER1)) -> 0 | H95: =IF($E$10=0,0,(YTotExp-(YTotExp+YTotRet-J10))/($E$10*YPER1)) -> 0
B96: 0.9 | C96: =E10*YPER2 -> 0 | E96: =IF($E$10=0,0,(YVarExp-(YTotExp+YTotRet-J10))/($E$10*YPER2)) -> 0 | H96: =IF($E$10=0,0,(YTotExp-(YTotExp+YTotRet-J10))/($E$10*YPER2)) -> 0
B97: 1 | C97: =+E10 -> 0 | E97: =IF($E$10=0,0,(YVarExp-(YTotExp+YTotRet-J10))/($E$10*YPER3)) -> 0 | H97: =IF($E$10=0,0,(YTotExp-(YTotExp+YTotRet-J10))/($E$10*YPER3)) -> 0
B98: 1.1 | C98: =E10*YPER4 -> 0 | E98: =IF($E$10=0,0,(YVarExp-(YTotExp+YTotRet-J10))/($E$10*YPER4)) -> 0 | H98: =IF($E$10=0,0,(YTotExp-(YTotExp+YTotRet-J10))/($E$10*YPER4)) -> 0
B99: 1.25 | C99: =E10*YPER5 -> 0 | E99: =IF($E$10=0,0,(YVarExp-(YTotExp+YTotRet-J10))/($E$10*YPER5)) -> 0 | H99: =IF($E$10=0,0,(YTotExp-(YTotExp+YTotRet-J10))/($E$10*YPER5)) -> 0
A101: Developed by Jason Johnson, Associate Professor and Extension Economist, Texas A&M AgriLife Extension, 254-968-4144.
A103: Information presented is prepared solely as a general guide and not intended to recognize or predict the costs and returns from any one operation. Brand names are mentioned only as examples and imply no endorsement.

Sheet Wheat
A1: Projections for Planning Purposes Only -- Not to be Used without Updating
A2: 2018 Estimated Costs and Returns per Acre
A3: Hard Red Winter Wheat
A4: Enter your name for this budget in the cell above.
A5: Enter Your Values in the cells highlighed in MAROON.
E6: Your Acres | R6: Your
C7: Crop Acres | D7: 200 | L7: Your | Q7: Enterprise | R7: Enterprise
E8: Your | H8: Your | I8: Cash | J8: Your | K8: Landlord | L8: Landlord | N8: Your | P8: Your | Q8: Total | R8: Total
A9: REVENUE | D9: Quantity | E9: Quantity | F9: Units | G9: $/Unit | H9: $/Unit | I9: Total | J9: Total | K9: Share | L9: Share | M9: Landlord | N9: Landlord | O9: Tenant | P9: Tenant | Q9: (200 acres) | R9: ="(" & E7 & " acres)" -> ( acres)
B10: Wheat | D10: 45 | F10: Bushel | G10: 4.2 | I10: 189 | J10: =E10*H10 -> 0 | K10: 0 | M10: 0 | N10: =J10*L10 -> 0 | O10: 189 | P10: =+J10-N10 -> 0 | Q10: 37800 | R10: =+J10*E$7 -> 0
D11: 0 | G11: 0 | I11: 0 | J11: 0 | K11: 0 | M11: 0 | N11: 0 | O11: 0 | P11: =+J11-N11 -> 0 | Q11: 0 | R11: 0
D12: 0 | G12: 0 | I12: 0 | J12: 0 | K12: 0 | M12: 0 | N12: 0 | O12: 0 | P12: 0 | Q12: 0 | R12: 0
A13: Total Revenue | I13: 189 | J13: =SUM(J10:J12) -> 0 | M13: 0 | N13: =SUM(N10:N12) -> 0 | O13: 189 | P13: =SUM(P10:P12) -> 0 | Q13: 37800 | R13: =SUM(R10:R12) -> 0
Q14: Enterprise | R14: Enterprise
A15: VARIABLE COSTS | D15: Quantity | E15: Quantity | F15: Units | G15: $/Unit | H15: $/Unit | I15: Total | J15: Total | K15: Share | L15: Share | M15: Landlord | N15: Landlord | O15: Tenant | P15: Tenant | Q15: Total | R15: Total
A16: Production Costs
B17: Custom
C18: Custom Combine | D18: 1 | F18: Acre | G18: 25 | I18: 25 | J18: =E18*H18 -> 0 | K18: 0 | M18: 0 | N18: =J18*L18 -> 0 | O18: 25 | P18: =+J18-N18 -> 0 | Q18: 5000 | R18: =+J18*E$7 -> 0
C19: Custom Hauling Wheat | D19: 45 | F19: Bushel | G19: 0.3 | I19: 13.5 | J19: 0 | K19: 0 | M19: 0 | N19: 0 | O19: 13.5 | P19: 0 | Q19: 2700 | R19: 0
B20: Fertilizer
C21: 46-0-0 | D21: 128 | F21: Pound | G21: 0.17 | I21: 21.76 | J21: 0 | K21: 0 | M21: 0 | N21: 0 | O21: 21.76 | P21: 0 | Q21: 4352 | R21: 0
C22: 18-46-0 | D22: 50 | F22: Pound | G22: 0.23 | I22: 11.5 | J22: 0 | K22: 0 | M22: 0 | N22: 0 | O22: 11.5 | P22: 0 | Q22: 2300 | R22: 0
B23: Herbicide
C24: Weed Burndown | D24: 32 | F24: Ounce | G24: 0.2 | I24: 6.4 | J24: 0 | K24: 0 | M24: 0 | N24: 0 | O24: 6.4 | P24: 0 | Q24: 1280 | R24: 0
C25: Peak | D25: 1 | F25: Ounce | G25: 15 | I25: 15 | J25: 0 | K25: 0 | M25: 0 | N25: 0 | O25: 15 | P25: 0 | Q25: 3000 | R25: 0
B26: Insecticide
C27: Insecticide Greenbug | D27: 1 | F27: Acre | G27: 4.5 | I27: 4.5 | J27: 0 | K27: 0 | M27: 0 | N27: 0 | O27: 4.5 | P27: 0 | Q27: 900 | R27: 0
B28: Miscellaneous
C29: Insurance - Wheat 65% | D29: 1 | F29: Acre | G29: 7 | I29: 7 | J29: 0 | K29: 0 | M29: 0 | N29: 0 | O29: 7 | P29: 0 | Q29: 1400 | R29: 0
C30: Insurance - Wheat SCO | D30: 1 | F30: Acre | G30: 2 | I30: 2 | J30: 0 | K30: 0 | M30: 0 | N30: 0 | O30: 2 | P30: 0 | Q30: 400 | R30: 0
B31: Seed
C32: Wheat Seed | D32: 90 | F32: Pound | G32: 0.35 | I32: 31.5 | J32: 0 | K32: 0 | M32: 0 | N32: 0 | O32: 31.5 | P32: 0 | Q32: 6300 | R32: 0
B33: Fungicides
C34: Tebuconazole | D34: 4 | F34: Ounce | G34: 0.375 | I34: 1.5 | J34: 0 | K34: 0 | M34: 0 | N34: 0 | O34: 1.5 | P34: 0 | Q34: 300 | R34: 0
D35: 0 | G35: 0 | I35: 0 | J35: 0 | K35: 0 | M35: 0 | N35: 0 | O35: 0 | P35: 0 | Q35: 0 | R35: 0
D36: 0 | G36: 0 | I36: 0 | J36: 0 | K36: 0 | M36: 0 | N36: 0 | O36: 0 | P36: 0 | Q36: 0 | R36: 0
D37: 0 | G37: 0 | I37: 0 | J37: =E37*H37 -> 0 | K37: 0 | M37: 0 | N37: =J37*L37 -> 0 | O37: 0 | P37: =+J37-N37 -> 0 | Q37: 0 | R37: =+J37*E$7 -> 0
B38: Machinery Labor
C39: Tractors/Self-Propelled | D39: 0.86 | F39: Hour | G39: 10 | I39: 8.6 | J39: =E39*H39 -> 0 | K39: 0 | M39: 0 | N39: =J39*L39 -> 0 | O39: 8.6 | P39: =+J39-N39 -> 0 | Q39: 1720 | R39: =+J39*E$7 -> 0
C40: Other Labor | D40: 0 | F40: Hour | G40: 10 | I40: 0 | J40: =E40*H40 -> 0 | K40: 0 | M40: 0 | N40: =J40*L40 -> 0 | O40: 0 | P40: =+J40-N40 -> 0 | Q40: 0 | R40: =+J40*E$7 -> 0
B42: Diesel Fuel
C43: Pickup/General Use Equipment | D43: 1 | F43: Acre | G43: 0 | I43: 0 | J43: =E43*H43 -> 0 | K43: 0 | M43: 0 | N43: =J43*L43 -> 0 | O43: 0 | P43: =+J43-N43 -> 0 | Q43: 0 | R43: =+J43*E$7 -> 0
C44: Tractors/Self-Propelled | D44: 5.65 | F44: Gallon | G44: 2.4 | I44: 13.56 | J44: =E44*H44 -> 0 | K44: 0 | M44: 0 | N44: =J44*L44 -> 0 | O44: 13.56 | P44: =+J44-N44 -> 0 | Q44: 2712 | R44: =+J44*E$7 -> 0
B46: Gasoline
C47: Pickup/General Use Equipment | D47: 1 | F47: Acre | G47: 0 | I47: 0 | J47: =E47*H47 -> 0 | K47: 0 | M47: 0 | N47: =J47*L47 -> 0 | O47: 0 | P47: =+J47-N47 -> 0 | Q47: 0 | R47: =+J47*E$7 -> 0
C48: Tractors/Self-Propelled | D48: 0 | F48: Gallon | G48: 2.2 | I48: 0 | J48: =E48*H48 -> 0 | K48: 0 | M48: 0 | N48: =J48*L48 -> 0 | O48: 0 | P48: =+J48-N48 -> 0 | Q48: 0 | R48: =+J48*E$7 -> 0
B50: Repairs & Maintenance
C51: Pickup/General Use Equipment | D51: 1 | F51: Acre | G51: 0 | I51: 0 | J51: =E51*H51 -> 0 | K51: 0 | M51: 0 | N51: =J51*L51 -> 0 | O51: 0 | P51: =+J51-N51 -> 0 | Q51: 0 | R51: =+J51*E$7 -> 0
C52: Irrigation Equipment | D52: 1 | F52: Acre | G52: 0 | I52: 0 | J52: 0 | K52: 0 | M52: 0 | N52: 0 | O52: 0 | P52: 0 | Q52: 0 | R52: 0
C53: Tractors/Self-Propelled | D53: 1 | F53: Acre | G53: 10.06622693 | I53: 10.06622693 | J53: 0 | K53: 0 | M53: 0 | N53: 0 | O53: 10.06622693 | P53: 0 | Q53: 2013.245385 | R53: 0
C54: Implements | D54: 1 | F54: Acre | G54: 14.59900496 | I54: 14.59900496 | J54: 0 | K54: 0 | M54: 0 | N54: 0 | O54: 14.59900496 | P54: 0 | Q54: 2919.800993 | R54: 0
I55: 0 | J55: 0 | K55: 0 | M55: 0 | N55: 0 | O55: 0 | P55: 0 | Q55: 0 | R55: 0
I56: 0 | J56: 0 | K56: 0 | M56: 0 | N56: 0 | O56: 0 | P56: 0 | Q56: 0 | R56: 0
B57: Interest on Credit Line | G57: 0.0475 | I57: 1.652221895 | J57: =+SUM(J17:J56)/2*H57 -> 0 | M57: 0 | N57: =+SUM(N17:N56)/2*L57 -> 0 | O57: 1.652221895 | P57: =+SUM(P17:P56)/2*L57 -> 0 | Q57: 330.4443789 | R57: =+J57*E$7 -> 0
A58: Total Variable Costs | I58: 188.1374538 | J58: =SUM(J18:J57) -> 0 | M58: 0 | N58: =SUM(N18:N57) -> 0 | O58: 188.1374538 | P58: =SUM(P18:P57) -> 0 | Q58: 37627.49076 | R58: =SUM(R18:R57) -> 0
A59: Planned Returns Above Variable Costs: | I59: 0.8625462173 | J59: =+J13-J58 -> 0 | M59: 0 | N59: =+N13-N58 -> 0 | O59: 0.8625462173 | P59: =+P13-P58 -> 0 | Q59: 172.5092435 | R59: =+R13-R58 -> 0
B60: Breakeven Price to Cover Variable Costs | G60: 4.180832306 | H60: =IF(E10=0,"n/a",(YVarExp-(YTotExp+YTotRet-J10))/E10) -> n/a | I60: Bushel
Q61: Enterprise | R61: Enterprise
A62: FIXED COSTS | D62: Quantity | E62: Quantity | F62: Units | G62: $/Unit | H62: $/Unit | I62: Total | J62: Total | K62: Share | L62: Share | M62: Landlord | N62: Landlord | O62: Tenant | P62: Tenant | Q62: Total | R62: Total
B63: Machinery Depreciation
C64: Tractors/Self-Propelled | D64: 1 | F64: Acre | G64: 10.40176782 | I64: 10.40176782 | J64: =E64*H64 -> 0 | K64: 0 | M64: 0 | N64: =J64*L64 -> 0 | O64: 10.40176782 | P64: =+J64-N64 -> 0 | Q64: 2080.353565 | R64: =+J64*E$7 -> 0
C65: Implements | D65: 1 | F65: Acre | G65: 17.3644738 | I65: 17.3644738 | J65: 0 | K65: 0 | M65: 0 | N65: =J65*L65 -> 0 | O65: 17.3644738 | P65: 0 | Q65: 3472.894759 | R65: 0
B66: Equipment Investment
C67: Tractors/Self-Propelled | D67: 81.03312675 | F67: Dollars | G67: 0.06 | I67: 4.861987605 | J67: =E67*H67 -> 0 | K67: 0 | M67: 0 | N67: =J67*L67 -> 0 | O67: 4.861987605 | P67: =+J67-N67 -> 0 | Q67: 972.397521 | R67: =+J67*E$7 -> 0
C68: Implements | D68: 76.1625706 | F68: Dollars | G68: 0.06 | I68: 4.569754236 | J68: 0 | K68: 0 | M68: 0 | N68: =J68*L68 -> 0 | O68: 4.569754236 | P68: 0 | Q68: 913.9508472 | R68: 0
B69: Salaried Labor | D69: 1 | F69: Acre | G69: 0 | I69: 0 | J69: 0 | K69: 0 | M69: 0 | N69: =J69*L69 -> 0 | O69: 0 | P69: =+J69-N69 -> 0 | Q69: 0 | R69: =+J69*E$7 -> 0
B70: Management Fee, Owner/Operator Labor | D70: 1 | F70: Acre | G70: 0 | I70: 0 | J70: 0 | K70: 0 | M70: 0 | N70: 0 | O70: 0 | P70: 0 | Q70: 0 | R70: 0
B71: Allocated Establishment Cost | D71: 1 | F71: Acre | G71: 0 | I71: 0 | J71: 0 | K71: 0 | M71: 0 | N71: 0 | O71: 0 | P71: 0 | Q71: 0 | R71: 0
B72: Dryland Crop Rent | D72: 1 | F72: Acre | G72: 30 | I72: 30 | J72: 0 | K72: 0 | M72: 0 | N72: 0 | O72: 30 | P72: 0 | Q72: 6000 | R72: 0
B73: Property Taxes | D73: 1 | F73: Acre | G73: 0 | I73: 0 | J73: 0 | K73: 0 | M73: 0 | N73: 0 | O73: 0 | P73: 0 | Q73: 0 | R73: 0
B74: Whole Farm Insurance | D74: 1 | F74: Acre | G74: 0 | I74: 0 | J74: 0 | K74: 0 | M74: 0 | N74: 0 | O74: 0 | P74: 0 | Q74: 0 | R74: 0
D75: 1 | G75: 0 | I75: 0 | J75: 0 | K75: 0 | M75: 0 | N75: 0 | O75: 0 | P75: 0 | Q75: 0 | R75: 0
D76: 1 | G76: 0 | I76: 0 | J76: =E76*H76 -> 0 | K76: 0 | M76: 0 | N76: 0 | O76: 0 | P76: 0 | Q76: 0 | R76: 0
A77: Total Fixed Costs | I77: 67.19798346 | J77: =+SUM(J64:J76) -> 0 | M77: 0 | N77: =+SUM(N64:N76) -> 0 | O77: 67.19798346 | P77: =+SUM(P64:P76) -> 0 | Q77: 13439.59669 | R77: =+SUM(R64:R76) -> 0
A78: Total Specified Costs | I78: 255.3354372 | J78: =+J58+J77 -> 0 | M78: 0 | N78: =+N58+N77 -> 0 | O78: 255.3354372 | P78: =+P58+P77 -> 0 | Q78: 51067.08745 | R78: =+R58+R77 -> 0
A80: Returns Above Specified Costs | I80: -66.33543724 | J80: =+J13-J78 -> 0 | M80: 0 | N80: =+N13-N78 -> 0 | O80: -66.33543724 | P80: =+P13-P78 -> 0 | Q80: -13267.08745 | R80: =+R13-R78 -> 0
A82: Breakeven Price to Cover Total Costs | G82: 5.674120828 | H82: =IF(E10=0,"n/a",(YTotExp-(YTotExp+YTotRet-J10))/E10) -> n/a | I82: Bushel
D84: Example Breakeven Prices
B85: Example | C85: Example | D85: To Cover | G85: To Cover
B86: Yield | C86: Yield | D86: Variable | G86: Total
B87: Percent | C87: Bushel | D87: Costs | G87: Costs
B88: 0.75 | C88: 33.75 | D88: 5.574443075 | G88: 7.565494437
B89: 0.9 | C89: 40.5 | D89: 4.645369229 | G89: 6.304578697
B90: 1 | C90: 45 | D90: 4.180832306 | G90: 5.674120828
B91: 1.1 | C91: 49.5 | D91: 3.800756642 | G91: 5.158291661
B92: 1.25 | C92: 56.25 | D92: 3.344665845 | G92: 4.539296662
D94: Your Breakeven Prices
B95: Your | C95: Your | E95: To Cover | H95: To Cover
B96: Yield | C96: Yield | E96: Variable | H96: Total
B97: Percent | C97: Bushel | E97: Costs | H97: Costs
B98: 0.75 | C98: =E10*YPER1 -> 0 | E98: =IF($E$10=0,0,(YVarExp-(YTotExp+YTotRet-J10))/($E$10*YPER1)) -> 0 | H98: =IF($E$10=0,0,(YTotExp-(YTotExp+YTotRet-J10))/($E$10*YPER1)) -> 0
B99: 0.9 | C99: =E10*YPER2 -> 0 | E99: =IF($E$10=0,0,(YVarExp-(YTotExp+YTotRet-J10))/($E$10*YPER2)) -> 0 | H99: =IF($E$10=0,0,(YTotExp-(YTotExp+YTotRet-J10))/($E$10*YPER2)) -> 0
B100: 1 | C100: =+E10 -> 0 | E100: =IF($E$10=0,0,(YVarExp-(YTotExp+YTotRet-J10))/($E$10*YPER3)) -> 0 | H100: =IF($E$10=0,0,(YTotExp-(YTotExp+YTotRet-J10))/($E$10*YPER3)) -> 0
B101: 1.1 | C101: =E10*YPER4 -> 0 | E101: =IF($E$10=0,0,(YVarExp-(YTotExp+YTotRet-J10))/($E$10*YPER4)) -> 0 | H101: =IF($E$10=0,0,(YTotExp-(YTotExp+YTotRet-J10))/($E$10*YPER4)) -> 0
B102: 1.25 | C102: =E10*YPER5 -> 0 | E102: =IF($E$10=0,0,(YVarExp-(YTotExp+YTotRet-J10))/($E$10*YPER5)) -> 0 | H102: =IF($E$10=0,0,(YTotExp-(YTotExp+YTotRet-J10))/($E$10*YPER5)) -> 0
A104: Developed by Jason Johnson, Associate Professor and Extension Economist, Texas A&M AgriLife Extension, 254-968-4144.
A106: Information presented is prepared solely as a general guide and not intended to recognize or predict the costs and returns from any one operation. Brand names are mentioned only as examples and imply no endorsement.

Sheet Canola
A1: Projections for Planning Purposes Only -- Not to be Used without Updating
A2: 2018 Estimated Costs and Returns per Acre
A3: Canola
A4: Enter your name for this budget in the cell above.
A5: Enter Your Values in the cells highlighed in MAROON.
E6: Your Acres | R6: Your
C7: Crop Acres | D7: 200 | L7: Your | Q7: Enterprise | R7: Enterprise
E8: Your | H8: Your | I8: Cash | J8: Your | K8: Landlord | L8: Landlord | N8: Your | P8: Your | Q8: Total | R8: Total
A9: REVENUE | D9: Quantity | E9: Quantity | F9: Units | G9: $/Unit | H9: $/Unit | I9: Total | J9: Total | K9: Share | L9: Share | M9: Landlord | N9: Landlord | O9: Tenant | P9: Tenant | Q9: (200 acres) | R9: ="(" & E7 & " acres)" -> ( acres)
B10: Canola | D10: 1500 | F10: Pound | G10: 0.164 | I10: 246 | J10: =E10*H10 -> 0 | K10: 0 | M10: 0 | N10: =J10*L10 -> 0 | O10: 246 | P10: =+J10-N10 -> 0 | Q10: 49200 | R10: =+J10*E$7 -> 0
D11: 0 | G11: 0 | I11: 0 | J11: 0 | K11: 0 | M11: 0 | N11: 0 | O11: 0 | P11: =+J11-N11 -> 0 | Q11: 0 | R11: 0
D12: 0 | G12: 0 | I12: 0 | J12: 0 | K12: 0 | M12: 0 | N12: 0 | O12: 0 | P12: 0 | Q12: 0 | R12: 0
A13: Total Revenue | I13: 246 | J13: =SUM(J10:J12) -> 0 | M13: 0 | N13: =SUM(N10:N12) -> 0 | O13: 246 | P13: =SUM(P10:P12) -> 0 | Q13: 49200 | R13: =SUM(R10:R12) -> 0
Q14: Enterprise | R14: Enterprise
A15: VARIABLE COSTS | D15: Quantity | E15: Quantity | F15: Units | G15: $/Unit | H15: $/Unit | I15: Total | J15: Total | K15: Share | L15: Share | M15: Landlord | N15: Landlord | O15: Tenant | P15: Tenant | Q15: Total | R15: Total
A16: Production Costs
B17: Custom
C18: Custom Combine | D18: 1 | F18: Acre | G18: 25 | I18: 25 | J18: =E18*H18 -> 0 | K18: 0 | M18: 0 | N18: =J18*L18 -> 0 | O18: 25 | P18: =+J18-N18 -> 0 | Q18: 5000 | R18: =+J18*E$7 -> 0
C19: Custom Hauling Canola | D19: 15 | F19: CWT | G19: 0.5 | I19: 7.5 | J19: 0 | K19: 0 | M19: 0 | N19: 0 | O19: 7.5 | P19: 0 | Q19: 1500 | R19: 0
B20: Fertilizer
C21: 46-0-0 | D21: 128 | F21: Pound | G21: 0.17 | I21: 21.76 | J21: 0 | K21: 0 | M21: 0 | N21: 0 | O21: 21.76 | P21: 0 | Q21: 4352 | R21: 0
C22: 18-46-0 | D22: 87 | F22: Pound | G22: 0.23 | I22: 20.01 | J22: 0 | K22: 0 | M22: 0 | N22: 0 | O22: 20.01 | P22: 0 | Q22: 4002 | R22: 0
C23: Sulfur | D23: 15 | F23: Pound | G23: 0.3 | I23: 4.5 | J23: 0 | K23: 0 | M23: 0 | N23: 0 | O23: 4.5 | P23: 0 | Q23: 900 | R23: 0
B24: Herbicide
C25: Trifluralin | D25: 1.5 | F25: Pint | G25: 2.81 | I25: 4.215 | J25: 0 | K25: 0 | M25: 0 | N25: 0 | O25: 4.215 | P25: 0 | Q25: 843 | R25: 0
C26: Glyphosate | D26: 2 | F26: Pint | G26: 3 | I26: 6 | J26: 0 | K26: 0 | M26: 0 | N26: 0 | O26: 6 | P26: 0 | Q26: 1200 | R26: 0
B27: Insecticide
C28: Insecticide Aphids | D28: 1 | F28: Acre | G28: 4.5 | I28: 4.5 | J28: 0 | K28: 0 | M28: 0 | N28: 0 | O28: 4.5 | P28: 0 | Q28: 900 | R28: 0
B29: Seed
C30: Canola Seed | D30: 3 | F30: Pound | G30: 5.8 | I30: 17.4 | J30: 0 | K30: 0 | M30: 0 | N30: 0 | O30: 17.4 | P30: 0 | Q30: 3480 | R30: 0
C31: Helix Xtra Seed Treatment | D31: 1 | F31: Acre | G31: 0.3075356269 | I31: 0.3075356269 | J31: 0 | K31: 0 | M31: 0 | N31: 0 | O31: 0.3075356269 | P31: 0 | Q31: 61.50712537 | R31: 0
D32: 0 | G32: 0 | I32: 0 | J32: 0 | K32: 0 | M32: 0 | N32: 0 | O32: 0 | P32: 0 | Q32: 0 | R32: 0
D33: 0 | G33: 0 | I33: 0 | J33: 0 | K33: 0 | M33: 0 | N33: 0 | O33: 0 | P33: 0 | Q33: 0 | R33: 0
D34: 0 | G34: 0 | I34: 0 | J34: =E34*H34 -> 0 | K34: 0 | M34: 0 | N34: =J34*L34 -> 0 | O34: 0 | P34: =+J34-N34 -> 0 | Q34: 0 | R34: =+J34*E$7 -> 0
B35: Machinery Labor
C36: Tractors/Self-Propelled | D36: 0.91 | F36: Hour | G36: 10 | I36: 9.1 | J36: =E36*H36 -> 0 | K36: 0 | M36: 0 | N36: =J36*L36 -> 0 | O36: 9.1 | P36: =+J36-N36 -> 0 | Q36: 1820 | R36: =+J36*E$7 -> 0
C37: Other Labor | D37: 0 | F37: Hour | G37: 10 | I37: 0 | J37: =E37*H37 -> 0 | K37: 0 | M37: 0 | N37: =J37*L37 -> 0 | O37: 0 | P37: =+J37-N37 -> 0 | Q37: 0 | R37: =+J37*E$7 -> 0
B39: Diesel Fuel
C40: Pickup/General Use Equipment | D40: 1 | F40: Acre | G40: 0 | I40: 0 | J40: =E40*H40 -> 0 | K40: 0 | M40: 0 | N40: =J40*L40 -> 0 | O40: 0 | P40: =+J40-N40 -> 0 | Q40: 0 | R40: =+J40*E$7 -> 0
C41: Tractors/Self-Propelled | D41: 5.95 | F41: Gallon | G41: 2.4 | I41: 14.28 | J41: =E41*H41 -> 0 | K41: 0 | M41: 0 | N41: =J41*L41 -> 0 | O41: 14.28 | P41: =+J41-N41 -> 0 | Q41: 2856 | R41: =+J41*E$7 -> 0
B43: Gasoline
C44: Pickup/General Use Equipment | D44: 1 | F44: Acre | G44: 0 | I44: 0 | J44: =E44*H44 -> 0 | K44: 0 | M44: 0 | N44: =J44*L44 -> 0 | O44: 0 | P44: =+J44-N44 -> 0 | Q44: 0 | R44: =+J44*E$7 -> 0
C45: Tractors/Self-Propelled | D45: 0 | F45: Gallon | G45: 2.2 | I45: 0 | J45: =E45*H45 -> 0 | K45: 0 | M45: 0 | N45: =J45*L45 -> 0 | O45: 0 | P45: =+J45-N45 -> 0 | Q45: 0 | R45: =+J45*E$7 -> 0
B47: Repairs & Maintenance
C48: Pickup/General Use Equipment | D48: 1 | F48: Acre | G48: 0 | I48: 0 | J48: =E48*H48 -> 0 | K48: 0 | M48: 0 | N48: =J48*L48 -> 0 | O48: 0 | P48: =+J48-N48 -> 0 | Q48: 0 | R48: =+J48*E$7 -> 0
C49: Irrigation Equipment | D49: 1 | F49: Acre | G49: 0 | I49: 0 | J49: 0 | K49: 0 | M49: 0 | N49: 0 | O49: 0 | P49: 0 | Q49: 0 | R49: 0
C50: Tractors/Self-Propelled | D50: 1 | F50: Acre | G50: 10.49663627 | I50: 10.49663627 | J50: 0 | K50: 0 | M50: 0 | N50: 0 | O50: 10.49663627 | P50: 0 | Q50: 2099.327254 | R50: 0
C51: Implements | D51: 1 | F51: Acre | G51: 14.99204358 | I51: 14.99204358 | J51: 0 | K51: 0 | M51: 0 | N51: 0 | O51: 14.99204358 | P51: 0 | Q51: 2998.408716 | R51: 0
I52: 0 | J52: 0 | K52: 0 | M52: 0 | N52: 0 | O52: 0 | P52: 0 | Q52: 0 | R52: 0
I53: 0 | J53: 0 | K53: 0 | M53: 0 | N53: 0 | O53: 0 | P53: 0 | Q53: 0 | R53: 0
B54: Interest on Credit Line | G54: 0.0475 | I54: 3.303539332 | J54: =+SUM(J17:J53)/2*H54 -> 0 | M54: 0 | N54: =+SUM(N17:N53)/2*L54 -> 0 | O54: 3.303539332 | P54: =+SUM(P17:P53)/2*L54 -> 0 | Q54: 660.7078665 | R54: =+J54*E$7 -> 0
A55: Total Variable Costs | I55: 163.3647548 | J55: =SUM(J18:J54) -> 0 | M55: 0 | N55: =SUM(N18:N54) -> 0 | O55: 163.3647548 | P55: =SUM(P18:P54) -> 0 | Q55: 32672.95096 | R55: =SUM(R18:R54) -> 0
A56: Planned Returns Above Variable Costs: | I56: 82.63524519 | J56: =+J13-J55 -> 0 | M56: 0 | N56: =+N13-N55 -> 0 | O56: 82.63524519 | P56: =+P13-P55 -> 0 | Q56: 16527.04904 | R56: =+R13-R55 -> 0
B57: Breakeven Price to Cover Variable Costs | G57: 0.1089098365 | H57: =IF(E10=0,"n/a",(YVarExp-(YTotExp+YTotRet-J10))/E10) -> n/a | I57: Pound
Q58: Enterprise | R58: Enterprise
A59: FIXED COSTS | D59: Quantity | E59: Quantity | F59: Units | G59: $/Unit | H59: $/Unit | I59: Total | J59: Total | K59: Share | L59: Share | M59: Landlord | N59: Landlord | O59: Tenant | P59: Tenant | Q59: Total | R59: Total
B60: Machinery Depreciation
C61: Tractors/Self-Propelled | D61: 1 | F61: Acre | G61: 10.84652415 | I61: 10.84652415 | J61: =E61*H61 -> 0 | K61: 0 | M61: 0 | N61: =J61*L61 -> 0 | O61: 10.84652415 | P61: =+J61-N61 -> 0 | Q61: 2169.304829 | R61: =+J61*E$7 -> 0
C62: Implements | D62: 1 | F62: Acre | G62: 17.66681119 | I62: 17.66681119 | J62: 0 | K62: 0 | M62: 0 | N62: =J62*L62 -> 0 | O62: 17.66681119 | P62: 0 | Q62: 3533.362239 | R62: 0
B63: Equipment Investment
C64: Tractors/Self-Propelled | D64: 84.49792197 | F64: Dollars | G64: 0.06 | I64: 5.069875318 | J64: =E64*H64 -> 0 | K64: 0 | M64: 0 | N64: =J64*L64 -> 0 | O64: 5.069875318 | P64: =+J64-N64 -> 0 | Q64: 1013.975064 | R64: =+J64*E$7 -> 0
C65: Implements | D65: 79.33711329 | F65: Dollars | G65: 0.06 | I65: 4.760226797 | J65: 0 | K65: 0 | M65: 0 | N65: =J65*L65 -> 0 | O65: 4.760226797 | P65: 0 | Q65: 952.0453594 | R65: 0
B66: Salaried Labor | D66: 1 | F66: Acre | G66: 0 | I66: 0 | J66: 0 | K66: 0 | M66: 0 | N66: =J66*L66 -> 0 | O66: 0 | P66: =+J66-N66 -> 0 | Q66: 0 | R66: =+J66*E$7 -> 0
B67: Management Fee, Owner/Operator Labor | D67: 1 | F67: Acre | G67: 0 | I67: 0 | J67: 0 | K67: 0 | M67: 0 | N67: 0 | O67: 0 | P67: 0 | Q67: 0 | R67: 0
B68: Allocated Establishment Cost | D68: 1 | F68: Acre | G68: 0 | I68: 0 | J68: 0 | K68: 0 | M68: 0 | N68: 0 | O68: 0 | P68: 0 | Q68: 0 | R68: 0
B69: Dryland Crop Rent | D69: 1 | F69: Acre | G69: 30 | I69: 30 | J69: 0 | K69: 0 | M69: 0 | N69: 0 | O69: 30 | P69: 0 | Q69: 6000 | R69: 0
B70: Property Taxes | D70: 1 | F70: Acre | G70: 0 | I70: 0 | J70: 0 | K70: 0 | M70: 0 | N70: 0 | O70: 0 | P70: 0 | Q70: 0 | R70: 0
B71: Whole Farm Insurance | D71: 1 | F71: Acre | G71: 0 | I71: 0 | J71: 0 | K71: 0 | M71: 0 | N71: 0 | O71: 0 | P71: 0 | Q71: 0 | R71: 0
D72: 1 | G72: 0 | I72: 0 | J72: 0 | K72: 0 | M72: 0 | N72: 0 | O72: 0 | P72: 0 | Q72: 0 | R72: 0
D73: 1 | G73: 0 | I73: 0 | J73: =E73*H73 -> 0 | K73: 0 | M73: 0 | N73: 0 | O73: 0 | P73: 0 | Q73: 0 | R73: 0
A74: Total Fixed Costs | I74: 68.34343745 | J74: =+SUM(J61:J73) -> 0 | M74: 0 | N74: =+SUM(N61:N73) -> 0 | O74: 68.34343745 | P74: =+SUM(P61:P73) -> 0 | Q74: 13668.68749 | R74: =+SUM(R61:R73) -> 0
A75: Total Specified Costs | I75: 231.7081923 | J75: =+J55+J74 -> 0 | M75: 0 | N75: =+N55+N74 -> 0 | O75: 231.7081923 | P75: =+P55+P74 -> 0 | Q75: 46341.63845 | R75: =+R55+R74 -> 0
A77: Returns Above Specified Costs | I77: 14.29180774 | J77: =+J13-J75 -> 0 | M77: 0 | N77: =+N13-N75 -> 0 | O77: 14.29180774 | P77: =+P13-P75 -> 0 | Q77: 2858.361547 | R77: =+R13-R75 -> 0
A79: Breakeven Price to Cover Total Costs | G79: 0.1544721282 | H79: =IF(E10=0,"n/a",(YTotExp-(YTotExp+YTotRet-J10))/E10) -> n/a | I79: Pound
D81: Example Breakeven Prices
B82: Example | C82: Example | D82: To Cover | G82: To Cover
B83: Yield | C83: Yield | D83: Variable | G83: Total
B84: Percent | C84: Pound | D84: Costs | G84: Costs
B85: 0.75 | C85: 1125 | D85: 0.1452131154 | G85: 0.2059628376
B86: 0.9 | C86: 1350 | D86: 0.1210109295 | G86: 0.171635698
B87: 1 | C87: 1500 | D87: 0.1089098365 | G87: 0.1544721282
B88: 1.1 | C88: 1650 | D88: 0.09900894231 | G88: 0.1404292074
B89: 1.25 | C89: 1875 | D89: 0.08712786923 | G89: 0.1235777025
D91: Your Breakeven Prices
B92: Your | C92: Your | E92: To Cover | H92: To Cover
B93: Yield | C93: Yield | E93: Variable | H93: Total
B94: Percent | C94: Pound | E94: Costs | H94: Costs
B95: 0.75 | C95: =E10*YPER1 -> 0 | E95: =IF($E$10=0,0,(YVarExp-(YTotExp+YTotRet-J10))/($E$10*YPER1)) -> 0 | H95: =IF($E$10=0,0,(YTotExp-(YTotExp+YTotRet-J10))/($E$10*YPER1)) -> 0
B96: 0.9 | C96: =E10*YPER2 -> 0 | E96: =IF($E$10=0,0,(YVarExp-(YTotExp+YTotRet-J10))/($E$10*YPER2)) -> 0 | H96: =IF($E$10=0,0,(YTotExp-(YTotExp+YTotRet-J10))/($E$10*YPER2)) -> 0
B97: 1 | C97: =+E10 -> 0 | E97: =IF($E$10=0,0,(YVarExp-(YTotExp+YTotRet-J10))/($E$10*YPER3)) -> 0 | H97: =IF($E$10=0,0,(YTotExp-(YTotExp+YTotRet-J10))/($E$10*YPER3)) -> 0
B98: 1.1 | C98: =E10*YPER4 -> 0 | E98: =IF($E$10=0,0,(YVarExp-(YTotExp+YTotRet-J10))/($E$10*YPER4)) -> 0 | H98: =IF($E$10=0,0,(YTotExp-(YTotExp+YTotRet-J10))/($E$10*YPER4)) -> 0
B99: 1.25 | C99: =E10*YPER5 -> 0 | E99: =IF($E$10=0,0,(YVarExp-(YTotExp+YTotRet-J10))/($E$10*YPER5)) -> 0 | H99: =IF($E$10=0,0,(YTotExp-(YTotExp+YTotRet-J10))/($E$10*YPER5)) -> 0
A101: Developed by Jason Johnson, Associate Professor and Extension Economist, Texas A&M AgriLife Extension, 254-968-4144.
A103: Information presented is prepared solely as a general guide and not intended to recognize or predict the costs and returns from any one operation. Brand names are mentioned only as examples and imply no endorsement.

Sheet Barley
A1: Projections for Planning Purposes Only -- Not to be Used without Updating
A2: 2018 Estimated Costs and Returns per Acre
A3: Malting Barley
A4: Enter your name for this budget in the cell above.
A5: Enter Your Values in the cells highlighed in MAROON.
E6: Your Acres | R6: Your
C7: Crop Acres | D7: 200 | L7: Your | Q7: Enterprise | R7: Enterprise
E8: Your | H8: Your | I8: Cash | J8: Your | K8: Landlord | L8: Landlord | N8: Your | P8: Your | Q8: Total | R8: Total
A9: REVENUE | D9: Quantity | E9: Quantity | F9: Units | G9: $/Unit | H9: $/Unit | I9: Total | J9: Total | K9: Share | L9: Share | M9: Landlord | N9: Landlord | O9: Tenant | P9: Tenant | Q9: (200 acres) | R9: ="(" & E7 & " acres)" -> ( acres)
B10: Malting Barley | D10: 60 | F10: Bushel | G10: 4.5 | I10: 270 | J10: =E10*H10 -> 0 | K10: 0 | M10: 0 | N10: =J10*L10 -> 0 | O10: 270 | P10: =+J10-N10 -> 0 | Q10: 54000 | R10: =+J10*E$7 -> 0
D11: 0 | G11: 0 | I11: 0 | J11: 0 | K11: 0 | M11: 0 | N11: 0 | O11: 0 | P11: =+J11-N11 -> 0 | Q11: 0 | R11: 0
D12: 0 | G12: 0 | I12: 0 | J12: 0 | K12: 0 | M12: 0 | N12: 0 | O12: 0 | P12: 0 | Q12: 0 | R12: 0
A13: Total Revenue | I13: 270 | J13: =SUM(J10:J12) -> 0 | M13: 0 | N13: =SUM(N10:N12) -> 0 | O13: 270 | P13: =SUM(P10:P12) -> 0 | Q13: 54000 | R13: =SUM(R10:R12) -> 0
Q14: Enterprise | R14: Enterprise
A15: VARIABLE COSTS | D15: Quantity | E15: Quantity | F15: Units | G15: $/Unit | H15: $/Unit | I15: Total | J15: Total | K15: Share | L15: Share | M15: Landlord | N15: Landlord | O15: Tenant | P15: Tenant | Q15: Total | R15: Total
A16: Production Costs
B17: Herbicide
C18: Weed Burndown | D18: 32 | F18: Ounce | G18: 0.2 | I18: 6.4 | J18: =E18*H18 -> 0 | K18: 0 | M18: 0 | N18: =J18*L18 -> 0 | O18: 6.4 | P18: =+J18-N18 -> 0 | Q18: 1280 | R18: =+J18*E$7 -> 0
C19: Peak | D19: 0.45 | F19: Ounce | G19: 15 | I19: 6.75 | J19: 0 | K19: 0 | M19: 0 | N19: 0 | O19: 6.75 | P19: 0 | Q19: 1350 | R19: 0
B20: Fertilizer
C21: 46-0-0 | D21: 106 | F21: Pound | G21: 0.17 | I21: 18.02 | J21: 0 | K21: 0 | M21: 0 | N21: 0 | O21: 18.02 | P21: 0 | Q21: 3604 | R21: 0
C22: 18-46-0 | D22: 50 | F22: Pound | G22: 0.23 | I22: 11.5 | J22: 0 | K22: 0 | M22: 0 | N22: 0 | O22: 11.5 | P22: 0 | Q22: 2300 | R22: 0
B23: Seed
C24: Barley Seed | D24: 50 | F24: Pound | G24: 0.35 | I24: 17.5 | J24: 0 | K24: 0 | M24: 0 | N24: 0 | O24: 17.5 | P24: 0 | Q24: 3500 | R24: 0
B25: Miscellaneous
C26: Insurance - Barley 65% | D26: 1 | F26: Acre | G26: 7 | I26: 7 | J26: 0 | K26: 0 | M26: 0 | N26: 0 | O26: 7 | P26: 0 | Q26: 1400 | R26: 0
C27: Insurance - Barley SCO | D27: 1 | F27: Acre | G27: 2 | I27: 2 | J27: 0 | K27: 0 | M27: 0 | N27: 0 | O27: 2 | P27: 0 | Q27: 400 | R27: 0
B28: Insecticide
C29: Insecticide Greenbug | D29: 1 | F29: Acre | G29: 4.5 | I29: 4.5 | J29: 0 | K29: 0 | M29: 0 | N29: 0 | O29: 4.5 | P29: 0 | Q29: 900 | R29: 0
B30: Custom
C31: Custom Combine | D31: 1 | F31: Acre | G31: 25 | I31: 25 | J31: 0 | K31: 0 | M31: 0 | N31: 0 | O31: 25 | P31: 0 | Q31: 5000 | R31: 0
C32: Custom Hauling Barley | D32: 60 | F32: Bushel | G32: 0.24 | I32: 14.4 | J32: 0 | K32: 0 | M32: 0 | N32: 0 | O32: 14.4 | P32: 0 | Q32: 2880 | R32: 0
D33: 0 | G33: 0 | I33: 0 | J33: 0 | K33: 0 | M33: 0 | N33: 0 | O33: 0 | P33: 0 | Q33: 0 | R33: 0
D34: 0 | G34: 0 | I34: 0 | J34: 0 | K34: 0 | M34: 0 | N34: 0 | O34: 0 | P34: 0 | Q34: 0 | R34: 0
D35: 0 | G35: 0 | I35: 0 | J35: =E35*H35 -> 0 | K35: 0 | M35: 0 | N35: =J35*L35 -> 0 | O35: 0 | P35: =+J35-N35 -> 0 | Q35: 0 | R35: =+J35*E$7 -> 0
B36: Machinery Labor
C37: Tractors/Self-Propelled | D37: 0.91 | F37: Hour | G37: 10 | I37: 9.1 | J37: =E37*H37 -> 0 | K37: 0 | M37: 0 | N37: =J37*L37 -> 0 | O37: 9.1 | P37: =+J37-N37 -> 0 | Q37: 1820 | R37: =+J37*E$7 -> 0
C38: Other Labor | D38: 0 | F38: Hour | G38: 10 | I38: 0 | J38: =E38*H38 -> 0 | K38: 0 | M38: 0 | N38: =J38*L38 -> 0 | O38: 0 | P38: =+J38-N38 -> 0 | Q38: 0 | R38: =+J38*E$7 -> 0
B40: Diesel Fuel
C41: Pickup/General Use Equipment | D41: 1 | F41: Acre | G41: 0 | I41: 0 | J41: =E41*H41 -> 0 | K41: 0 | M41: 0 | N41: =J41*L41 -> 0 | O41: 0 | P41: =+J41-N41 -> 0 | Q41: 0 | R41: =+J41*E$7 -> 0
C42: Tractors/Self-Propelled | D42: 5.95 | F42: Gallon | G42: 2.4 | I42: 14.28 | J42: =E42*H42 -> 0 | K42: 0 | M42: 0 | N42: =J42*L42 -> 0 | O42: 14.28 | P42: =+J42-N42 -> 0 | Q42: 2856 | R42: =+J42*E$7 -> 0
B44: Gasoline
C45: Pickup/General Use Equipment | D45: 1 | F45: Acre | G45: 0 | I45: 0 | J45: =E45*H45 -> 0 | K45: 0 | M45: 0 | N45: =J45*L45 -> 0 | O45: 0 | P45: =+J45-N45 -> 0 | Q45: 0 | R45: =+J45*E$7 -> 0
C46: Tractors/Self-Propelled | D46: 0 | F46: Gallon | G46: 2.2 | I46: 0 | J46: =E46*H46 -> 0 | K46: 0 | M46: 0 | N46: =J46*L46 -> 0 | O46: 0 | P46: =+J46-N46 -> 0 | Q46: 0 | R46: =+J46*E$7 -> 0
B48: Repairs & Maintenance
C49: Pickup/General Use Equipment | D49: 1 | F49: Acre | G49: 0 | I49: 0 | J49: =E49*H49 -> 0 | K49: 0 | M49: 0 | N49: =J49*L49 -> 0 | O49: 0 | P49: =+J49-N49 -> 0 | Q49: 0 | R49: =+J49*E$7 -> 0
C50: Irrigation Equipment | D50: 1 | F50: Acre | G50: 0 | I50: 0 | J50: 0 | K50: 0 | M50: 0 | N50: 0 | O50: 0 | P50: 0 | Q50: 0 | R50: 0
C51: Tractors/Self-Propelled | D51: 1 | F51: Acre | G51: 10.49663627 | I51: 10.49663627 | J51: 0 | K51: 0 | M51: 0 | N51: 0 | O51: 10.49663627 | P51: 0 | Q51: 2099.327254 | R51: 0
C52: Implements | D52: 1 | F52: Acre | G52: 14.99204358 | I52: 14.99204358 | J52: 0 | K52: 0 | M52: 0 | N52: 0 | O52: 14.99204358 | P52: 0 | Q52: 2998.408716 | R52: 0
I53: 0 | J53: 0 | K53: 0 | M53: 0 | N53: 0 | O53: 0 | P53: 0 | Q53: 0 | R53: 0
I54: 0 | J54: 0 | K54: 0 | M54: 0 | N54: 0 | O54: 0 | P54: 0 | Q54: 0 | R54: 0
B55: Interest on Credit Line | G55: 0.0475 | I55: 3.148896203 | J55: =+SUM(J17:J54)/2*H55 -> 0 | M55: 0 | N55: =+SUM(N17:N54)/2*L55 -> 0 | O55: 3.148896203 | P55: =+SUM(P17:P54)/2*L55 -> 0 | Q55: 629.7792406 | R55: =+J55*E$7 -> 0
A56: Total Variable Costs | I56: 165.0875761 | J56: =SUM(J18:J55) -> 0 | M56: 0 | N56: =SUM(N18:N55) -> 0 | O56: 165.0875761 | P56: =SUM(P18:P55) -> 0 | Q56: 33017.51521 | R56: =SUM(R18:R55) -> 0
A57: Planned Returns Above Variable Costs: | I57: 104.9124239 | J57: =+J13-J56 -> 0 | M57: 0 | N57: =+N13-N56 -> 0 | O57: 104.9124239 | P57: =+P13-P56 -> 0 | Q57: 20982.48479 | R57: =+R13-R56 -> 0
B58: Breakeven Price to Cover Variable Costs | G58: 2.751459601 | H58: =IF(E10=0,"n/a",(YVarExp-(YTotExp+YTotRet-J10))/E10) -> n/a | I58: Bushel
Q59: Enterprise | R59: Enterprise
A60: FIXED COSTS | D60: Quantity | E60: Quantity | F60: Units | G60: $/Unit | H60: $/Unit | I60: Total | J60: Total | K60: Share | L60: Share | M60: Landlord | N60: Landlord | O60: Tenant | P60: Tenant | Q60: Total | R60: Total
B61: Machinery Depreciation
C62: Tractors/Self-Propelled | D62: 1 | F62: Acre | G62: 10.84652415 | I62: 10.84652415 | J62: =E62*H62 -> 0 | K62: 0 | M62: 0 | N62: =J62*L62 -> 0 | O62: 10.84652415 | P62: =+J62-N62 -> 0 | Q62: 2169.304829 | R62: =+J62*E$7 -> 0
C63: Implements | D63: 1 | F63: Acre | G63: 17.66681119 | I63: 17.66681119 | J63: 0 | K63: 0 | M63: 0 | N63: =J63*L63 -> 0 | O63: 17.66681119 | P63: 0 | Q63: 3533.362239 | R63: 0
B64: Equipment Investment
C65: Tractors/Self-Propelled | D65: 84.49792197 | F65: Dollars | G65: 0.06 | I65: 5.069875318 | J65: =E65*H65 -> 0 | K65: 0 | M65: 0 | N65: =J65*L65 -> 0 | O65: 5.069875318 | P65: =+J65-N65 -> 0 | Q65: 1013.975064 | R65: =+J65*E$7 -> 0
C66: Implements | D66: 79.33711329 | F66: Dollars | G66: 0.06 | I66: 4.760226797 | J66: 0 | K66: 0 | M66: 0 | N66: =J66*L66 -> 0 | O66: 4.760226797 | P66: 0 | Q66: 952.0453594 | R66: 0
B67: Salaried Labor | D67: 1 | F67: Acre | G67: 0 | I67: 0 | J67: 0 | K67: 0 | M67: 0 | N67: =J67*L67 -> 0 | O67: 0 | P67: =+J67-N67 -> 0 | Q67: 0 | R67: =+J67*E$7 -> 0
B68: Management Fee, Owner/Operator Labor | D68: 1 | F68: Acre | G68: 0 | I68: 0 | J68: 0 | K68: 0 | M68: 0 | N68: 0 | O68: 0 | P68: 0 | Q68: 0 | R68: 0
B69: Allocated Establishment Cost | D69: 1 | F69: Acre | G69: 0 | I69: 0 | J69: 0 | K69: 0 | M69: 0 | N69: 0 | O69: 0 | P69: 0 | Q69: 0 | R69: 0
B70: Dryland Crop Rent | D70: 1 | F70: Acre | G70: 30 | I70: 30 | J70: 0 | K70: 0 | M70: 0 | N70: 0 | O70: 30 | P70: 0 | Q70: 6000 | R70: 0
B71: Property Taxes | D71: 1 | F71: Acre | G71: 0 | I71: 0 | J71: 0 | K71: 0 | M71: 0 | N71: 0 | O71: 0 | P71: 0 | Q71: 0 | R71: 0
B72: Whole Farm Insurance | D72: 1 | F72: Acre | G72: 0 | I72: 0 | J72: 0 | K72: 0 | M72: 0 | N72: 0 | O72: 0 | P72: 0 | Q72: 0 | R72: 0
D73: 1 | G73: 0 | I73: 0 | J73: 0 | K73: 0 | M73: 0 | N73: 0 | O73: 0 | P73: 0 | Q73: 0 | R73: 0
D74: 1 | G74: 0 | I74: 0 | J74: =E74*H74 -> 0 | K74: 0 | M74: 0 | N74: 0 | O74: 0 | P74: 0 | Q74: 0 | R74: 0
A75: Total Fixed Costs | I75: 68.34343745 | J75: =+SUM(J62:J74) -> 0 | M75: 0 | N75: =+SUM(N62:N74) -> 0 | O75: 68.34343745 | P75: =+SUM(P62:P74) -> 0 | Q75: 13668.68749 | R75: =+SUM(R62:R74) -> 0
A76: Total Specified Costs | I76: 233.4310135 | J76: =+J56+J75 -> 0 | M76: 0 | N76: =+N56+N75 -> 0 | O76: 233.4310135 | P76: =+P56+P75 -> 0 | Q76: 46686.2027 | R76: =+R56+R75 -> 0
A78: Returns Above Specified Costs | I78: 36.56898649 | J78: =+J13-J76 -> 0 | M78: 0 | N78: =+N13-N76 -> 0 | O78: 36.56898649 | P78: =+P13-P76 -> 0 | Q78: 7313.797298 | R78: =+R13-R76 -> 0
A80: Breakeven Price to Cover Total Costs | G80: 3.890516892 | H80: =IF(E10=0,"n/a",(YTotExp-(YTotExp+YTotRet-J10))/E10) -> n/a | I80: Bushel
D82: Example Breakeven Prices
B83: Example | C83: Example | D83: To Cover | G83: To Cover
B84: Yield | C84: Yield | D84: Variable | G84: Total
B85: Percent | C85: Bushel | D85: Costs | G85: Costs
B86: 0.75 | C86: 45 | D86: 3.668612801 | G86: 5.187355856
B87: 0.9 | C87: 54 | D87: 3.057177334 | G87: 4.322796546
B88: 1 | C88: 60 | D88: 2.751459601 | G88: 3.890516892
B89: 1.1 | C89: 66 | D89: 2.50132691 | G89: 3.536833538
B90: 1.25 | C90: 75 | D90: 2.201167681 | G90: 3.112413513
D92: Your Breakeven Prices
B93: Your | C93: Your | E93: To Cover | H93: To Cover
B94: Yield | C94: Yield | E94: Variable | H94: Total
B95: Percent | C95: Bushel | E95: Costs | H95: Costs
B96: 0.75 | C96: =E10*YPER1 -> 0 | E96: =IF($E$10=0,0,(YVarExp-(YTotExp+YTotRet-J10))/($E$10*YPER1)) -> 0 | H96: =IF($E$10=0,0,(YTotExp-(YTotExp+YTotRet-J10))/($E$10*YPER1)) -> 0
B97: 0.9 | C97: =E10*YPER2 -> 0 | E97: =IF($E$10=0,0,(YVarExp-(YTotExp+YTotRet-J10))/($E$10*YPER2)) -> 0 | H97: =IF($E$10=0,0,(YTotExp-(YTotExp+YTotRet-J10))/($E$10*YPER2)) -> 0
B98: 1 | C98: =+E10 -> 0 | E98: =IF($E$10=0,0,(YVarExp-(YTotExp+YTotRet-J10))/($E$10*YPER3)) -> 0 | H98: =IF($E$10=0,0,(YTotExp-(YTotExp+YTotRet-J10))/($E$10*YPER3)) -> 0
B99: 1.1 | C99: =E10*YPER4 -> 0 | E99: =IF($E$10=0,0,(YVarExp-(YTotExp+YTotRet-J10))/($E$10*YPER4)) -> 0 | H99: =IF($E$10=0,0,(YTotExp-(YTotExp+YTotRet-J10))/($E$10*YPER4)) -> 0
B100: 1.25 | C100: =E10*YPER5 -> 0 | E100: =IF($E$10=0,0,(YVarExp-(YTotExp+YTotRet-J10))/($E$10*YPER5)) -> 0 | H100: =IF($E$10=0,0,(YTotExp-(YTotExp+YTotRet-J10))/($E$10*YPER5)) -> 0
A102: Developed by Jason Johnson, Associate Professor and Extension Economist, Texas A&M AgriLife Extension, 254-968-4144.
A104: Information presented is prepared solely as a general guide and not intended to recognize or predict the costs and returns from any one operation. Brand names are mentioned only as examples and imply no endorsement.

Sheet OatsGrain
A1: Projections for Planning Purposes Only -- Not to be Used without Updating
A2: 2018 Estimated Costs and Returns per Acre
A3: Oats for Grain
A4: Enter your name for this budget in the cell above.
A5: Enter Your Values in the cells highlighed in MAROON.
E6: Your Acres | R6: Your
C7: Crop Acres | D7: 200 | L7: Your | Q7: Enterprise | R7: Enterprise
E8: Your | H8: Your | I8: Cash | J8: Your | K8: Landlord | L8: Landlord | N8: Your | P8: Your | Q8: Total | R8: Total
A9: REVENUE | D9: Quantity | E9: Quantity | F9: Units | G9: $/Unit | H9: $/Unit | I9: Total | J9: Total | K9: Share | L9: Share | M9: Landlord | N9: Landlord | O9: Tenant | P9: Tenant | Q9: (200 acres) | R9: ="(" & E7 & " acres)" -> ( acres)
B10: Oats | D10: 100 | F10: Bushel | G10: 2.35 | I10: 235 | J10: =E10*H10 -> 0 | K10: 0 | M10: 0 | N10: =J10*L10 -> 0 | O10: 235 | P10: =+J10-N10 -> 0 | Q10: 47000 | R10: =+J10*E$7 -> 0
D11: 0 | G11: 0 | I11: 0 | J11: 0 | K11: 0 | M11: 0 | N11: 0 | O11: 0 | P11: =+J11-N11 -> 0 | Q11: 0 | R11: 0
D12: 0 | G12: 0 | I12: 0 | J12: 0 | K12: 0 | M12: 0 | N12: 0 | O12: 0 | P12: 0 | Q12: 0 | R12: 0
A13: Total Revenue | I13: 235 | J13: =SUM(J10:J12) -> 0 | M13: 0 | N13: =SUM(N10:N12) -> 0 | O13: 235 | P13: =SUM(P10:P12) -> 0 | Q13: 47000 | R13: =SUM(R10:R12) -> 0
Q14: Enterprise | R14: Enterprise
A15: VARIABLE COSTS | D15: Quantity | E15: Quantity | F15: Units | G15: $/Unit | H15: $/Unit | I15: Total | J15: Total | K15: Share | L15: Share | M15: Landlord | N15: Landlord | O15: Tenant | P15: Tenant | Q15: Total | R15: Total
A16: Production Costs
B17: Seed
C18: Oat Seed | D18: 100 | F18: Pound | G18: 0.35 | I18: 35 | J18: =E18*H18 -> 0 | K18: 0 | M18: 0 | N18: =J18*L18 -> 0 | O18: 35 | P18: =+J18-N18 -> 0 | Q18: 7000 | R18: =+J18*E$7 -> 0
B19: Fertilizer
C20: 18-46-0 | D20: 50 | F20: Pound | G20: 0.23 | I20: 11.5 | J20: 0 | K20: 0 | M20: 0 | N20: 0 | O20: 11.5 | P20: 0 | Q20: 2300 | R20: 0
C21: 46-0-0 | D21: 140 | F21: Pound | G21: 0.17 | I21: 23.8 | J21: 0 | K21: 0 | M21: 0 | N21: 0 | O21: 23.8 | P21: 0 | Q21: 4760 | R21: 0
B22: Custom
C23: Custom Combine | D23: 1 | F23: Acre | G23: 25 | I23: 25 | J23: 0 | K23: 0 | M23: 0 | N23: 0 | O23: 25 | P23: 0 | Q23: 5000 | R23: 0
C24: Custom Hauling Oats | D24: 100 | F24: Bushel | G24: 0.16 | I24: 16 | J24: 0 | K24: 0 | M24: 0 | N24: 0 | O24: 16 | P24: 0 | Q24: 3200 | R24: 0
B25: Herbicide
C26: Weed Burndown | D26: 32 | F26: Ounce | G26: 0.2 | I26: 6.4 | J26: 0 | K26: 0 | M26: 0 | N26: 0 | O26: 6.4 | P26: 0 | Q26: 1280 | R26: 0
B27: Miscellaneous
C28: Insurance - Oats 65% | D28: 1 | F28: Acre | G28: 7 | I28: 7 | J28: 0 | K28: 0 | M28: 0 | N28: 0 | O28: 7 | P28: 0 | Q28: 1400 | R28: 0
C29: Insurance - Oats SCO | D29: 1 | F29: Acre | G29: 2 | I29: 2 | J29: 0 | K29: 0 | M29: 0 | N29: 0 | O29: 2 | P29: 0 | Q29: 400 | R29: 0
B30: Insecticide
C31: Insecticide Greenbug | D31: 1 | F31: Acre | G31: 4.5 | I31: 4.5 | J31: 0 | K31: 0 | M31: 0 | N31: 0 | O31: 4.5 | P31: 0 | Q31: 900 | R31: 0
B32: Fungicides
C33: Tebuconazole | D33: 4 | F33: Ounce | G33: 0.375 | I33: 1.5 | J33: 0 | K33: 0 | M33: 0 | N33: 0 | O33: 1.5 | P33: 0 | Q33: 300 | R33: 0
D34: 0 | G34: 0 | I34: 0 | J34: 0 | K34: 0 | M34: 0 | N34: 0 | O34: 0 | P34: 0 | Q34: 0 | R34: 0
D35: 0 | G35: 0 | I35: 0 | J35: 0 | K35: 0 | M35: 0 | N35: 0 | O35: 0 | P35: 0 | Q35: 0 | R35: 0
D36: 0 | G36: 0 | I36: 0 | J36: =E36*H36 -> 0 | K36: 0 | M36: 0 | N36: =J36*L36 -> 0 | O36: 0 | P36: =+J36-N36 -> 0 | Q36: 0 | R36: =+J36*E$7 -> 0
B37: Machinery Labor
C38: Tractors/Self-Propelled | D38: 0.99 | F38: Hour | G38: 10 | I38: 9.9 | J38: =E38*H38 -> 0 | K38: 0 | M38: 0 | N38: =J38*L38 -> 0 | O38: 9.9 | P38: =+J38-N38 -> 0 | Q38: 1980 | R38: =+J38*E$7 -> 0
C39: Other Labor | D39: 0 | F39: Hour | G39: 10 | I39: 0 | J39: =E39*H39 -> 0 | K39: 0 | M39: 0 | N39: =J39*L39 -> 0 | O39: 0 | P39: =+J39-N39 -> 0 | Q39: 0 | R39: =+J39*E$7 -> 0
B41: Diesel Fuel
C42: Pickup/General Use Equipment | D42: 1 | F42: Acre | G42: 0 | I42: 0 | J42: =E42*H42 -> 0 | K42: 0 | M42: 0 | N42: =J42*L42 -> 0 | O42: 0 | P42: =+J42-N42 -> 0 | Q42: 0 | R42: =+J42*E$7 -> 0
C43: Tractors/Self-Propelled | D43: 6.37 | F43: Gallon | G43: 2.4 | I43: 15.288 | J43: =E43*H43 -> 0 | K43: 0 | M43: 0 | N43: =J43*L43 -> 0 | O43: 15.288 | P43: =+J43-N43 -> 0 | Q43: 3057.6 | R43: =+J43*E$7 -> 0
B45: Gasoline
C46: Pickup/General Use Equipment | D46: 1 | F46: Acre | G46: 0 | I46: 0 | J46: =E46*H46 -> 0 | K46: 0 | M46: 0 | N46: =J46*L46 -> 0 | O46: 0 | P46: =+J46-N46 -> 0 | Q46: 0 | R46: =+J46*E$7 -> 0
C47: Tractors/Self-Propelled | D47: 0 | F47: Gallon | G47: 2.2 | I47: 0 | J47: =E47*H47 -> 0 | K47: 0 | M47: 0 | N47: =J47*L47 -> 0 | O47: 0 | P47: =+J47-N47 -> 0 | Q47: 0 | R47: =+J47*E$7 -> 0
B49: Repairs & Maintenance
C50: Pickup/General Use Equipment | D50: 1 | F50: Acre | G50: 0 | I50: 0 | J50: =E50*H50 -> 0 | K50: 0 | M50: 0 | N50: =J50*L50 -> 0 | O50: 0 | P50: =+J50-N50 -> 0 | Q50: 0 | R50: =+J50*E$7 -> 0
C51: Irrigation Equipment | D51: 1 | F51: Acre | G51: 0 | I51: 0 | J51: 0 | K51: 0 | M51: 0 | N51: 0 | O51: 0 | P51: 0 | Q51: 0 | R51: 0
C52: Tractors/Self-Propelled | D52: 1 | F52: Acre | G52: 11.11608954 | I52: 11.11608954 | J52: 0 | K52: 0 | M52: 0 | N52: 0 | O52: 11.11608954 | P52: 0 | Q52: 2223.217909 | R52: 0
C53: Implements | D53: 1 | F53: Acre | G53: 15.99912 | I53: 15.99912 | J53: 0 | K53: 0 | M53: 0 | N53: 0 | O53: 15.99912 | P53: 0 | Q53: 3199.824 | R53: 0
I54: 0 | J54: 0 | K54: 0 | M54: 0 | N54: 0 | O54: 0 | P54: 0 | Q54: 0 | R54: 0
I55: 0 | J55: 0 | K55: 0 | M55: 0 | N55: 0 | O55: 0 | P55: 0 | Q55: 0 | R55: 0
B56: Interest on Credit Line | G56: 0.0475 | I56: 3.584300134 | J56: =+SUM(J17:J55)/2*H56 -> 0 | M56: 0 | N56: =+SUM(N17:N55)/2*L56 -> 0 | O56: 3.584300134 | P56: =+SUM(P17:P55)/2*L56 -> 0 | Q56: 716.8600268 | R56: =+J56*E$7 -> 0
A57: Total Variable Costs | I57: 188.5875097 | J57: =SUM(J18:J56) -> 0 | M57: 0 | N57: =SUM(N18:N56) -> 0 | O57: 188.5875097 | P57: =SUM(P18:P56) -> 0 | Q57: 37717.50194 | R57: =SUM(R18:R56) -> 0
A58: Planned Returns Above Variable Costs: | I58: 46.41249032 | J58: =+J13-J57 -> 0 | M58: 0 | N58: =+N13-N57 -> 0 | O58: 46.41249032 | P58: =+P13-P57 -> 0 | Q58: 9282.498064 | R58: =+R13-R57 -> 0
B59: Breakeven Price to Cover Variable Costs | G59: 1.885875097 | H59: =IF(E10=0,"n/a",(YVarExp-(YTotExp+YTotRet-J10))/E10) -> n/a | I59: Bushel
Q60: Enterprise | R60: Enterprise
A61: FIXED COSTS | D61: Quantity | E61: Quantity | F61: Units | G61: $/Unit | H61: $/Unit | I61: Total | J61: Total | K61: Share | L61: Share | M61: Landlord | N61: Landlord | O61: Tenant | P61: Tenant | Q61: Total | R61: Total
B62: Machinery Depreciation
C63: Tractors/Self-Propelled | D63: 1 | F63: Acre | G63: 11.48662586 | I63: 11.48662586 | J63: =E63*H63 -> 0 | K63: 0 | M63: 0 | N63: =J63*L63 -> 0 | O63: 11.48662586 | P63: =+J63-N63 -> 0 | Q63: 2297.325172 | R63: =+J63*E$7 -> 0
C64: Implements | D64: 1 | F64: Acre | G64: 18.74709541 | I64: 18.74709541 | J64: 0 | K64: 0 | M64: 0 | N64: =J64*L64 -> 0 | O64: 18.74709541 | P64: 0 | Q64: 3749.419082 | R64: 0
B65: Equipment Investment
C66: Tractors/Self-Propelled | D66: 89.48452083 | F66: Dollars | G66: 0.06 | I66: 5.36907125 | J66: =E66*H66 -> 0 | K66: 0 | M66: 0 | N66: =J66*L66 -> 0 | O66: 5.36907125 | P66: =+J66-N66 -> 0 | Q66: 1073.81425 | R66: =+J66*E$7 -> 0
C67: Implements | D67: 82.07711863 | F67: Dollars | G67: 0.06 | I67: 4.924627118 | J67: 0 | K67: 0 | M67: 0 | N67: =J67*L67 -> 0 | O67: 4.924627118 | P67: 0 | Q67: 984.9254235 | R67: 0
B68: Salaried Labor | D68: 1 | F68: Acre | G68: 0 | I68: 0 | J68: 0 | K68: 0 | M68: 0 | N68: =J68*L68 -> 0 | O68: 0 | P68: =+J68-N68 -> 0 | Q68: 0 | R68: =+J68*E$7 -> 0
B69: Management Fee, Owner/Operator Labor | D69: 1 | F69: Acre | G69: 0 | I69: 0 | J69: 0 | K69: 0 | M69: 0 | N69: 0 | O69: 0 | P69: 0 | Q69: 0 | R69: 0
B70: Allocated Establishment Cost | D70: 1 | F70: Acre | G70: 0 | I70: 0 | J70: 0 | K70: 0 | M70: 0 | N70: 0 | O70: 0 | P70: 0 | Q70: 0 | R70: 0
B71: Dryland Crop Rent | D71: 1 | F71: Acre | G71: 30 | I71: 30 | J71: 0 | K71: 0 | M71: 0 | N71: 0 | O71: 30 | P71: 0 | Q71: 6000 | R71: 0
B72: Property Taxes | D72: 1 | F72: Acre | G72: 0 | I72: 0 | J72: 0 | K72: 0 | M72: 0 | N72: 0 | O72: 0 | P72: 0 | Q72: 0 | R72: 0
B73: Whole Farm Insurance | D73: 1 | F73: Acre | G73: 0 | I73: 0 | J73: 0 | K73: 0 | M73: 0 | N73: 0 | O73: 0 | P73: 0 | Q73: 0 | R73: 0
D74: 1 | G74: 0 | I74: 0 | J74: 0 | K74: 0 | M74: 0 | N74: 0 | O74: 0 | P74: 0 | Q74: 0 | R74: 0
D75: 1 | G75: 0 | I75: 0 | J75: =E75*H75 -> 0 | K75: 0 | M75: 0 | N75: 0 | O75: 0 | P75: 0 | Q75: 0 | R75: 0
A76: Total Fixed Costs | I76: 70.52741964 | J76: =+SUM(J63:J75) -> 0 | M76: 0 | N76: =+SUM(N63:N75) -> 0 | O76: 70.52741964 | P76: =+SUM(P63:P75) -> 0 | Q76: 14105.48393 | R76: =+SUM(R63:R75) -> 0
A77: Total Specified Costs | I77: 259.1149293 | J77: =+J57+J76 -> 0 | M77: 0 | N77: =+N57+N76 -> 0 | O77: 259.1149293 | P77: =+P57+P76 -> 0 | Q77: 51822.98586 | R77: =+R57+R76 -> 0
A79: Returns Above Specified Costs | I79: -24.11492932 | J79: =+J13-J77 -> 0 | M79: 0 | N79: =+N13-N77 -> 0 | O79: -24.11492932 | P79: =+P13-P77 -> 0 | Q79: -4822.985864 | R79: =+R13-R77 -> 0
A81: Breakeven Price to Cover Total Costs | G81: 2.591149293 | H81: =IF(E10=0,"n/a",(YTotExp-(YTotExp+YTotRet-J10))/E10) -> n/a | I81: Bushel
D83: Example Breakeven Prices
B84: Example | C84: Example | D84: To Cover | G84: To Cover
B85: Yield | C85: Yield | D85: Variable | G85: Total
B86: Percent | C86: Bushel | D86: Costs | G86: Costs
B87: 0.75 | C87: 75 | D87: 2.514500129 | G87: 3.454865724
B88: 0.9 | C88: 90 | D88: 2.095416774 | G88: 2.87905477
B89: 1 | C89: 100 | D89: 1.885875097 | G89: 2.591149293
B90: 1.1 | C90: 110 | D90: 1.714431906 | G90: 2.355590267
B91: 1.25 | C91: 125 | D91: 1.508700077 | G91: 2.072919435
D93: Your Breakeven Prices
B94: Your | C94: Your | E94: To Cover | H94: To Cover
B95: Yield | C95: Yield | E95: Variable | H95: Total
B96: Percent | C96: Bushel | E96: Costs | H96: Costs
B97: 0.75 | C97: =E10*YPER1 -> 0 | E97: =IF($E$10=0,0,(YVarExp-(YTotExp+YTotRet-J10))/($E$10*YPER1)) -> 0 | H97: =IF($E$10=0,0,(YTotExp-(YTotExp+YTotRet-J10))/($E$10*YPER1)) -> 0
B98: 0.9 | C98: =E10*YPER2 -> 0 | E98: =IF($E$10=0,0,(YVarExp-(YTotExp+YTotRet-J10))/($E$10*YPER2)) -> 0 | H98: =IF($E$10=0,0,(YTotExp-(YTotExp+YTotRet-J10))/($E$10*YPER2)) -> 0
B99: 1 | C99: =+E10 -> 0 | E99: =IF($E$10=0,0,(YVarExp-(YTotExp+YTotRet-J10))/($E$10*YPER3)) -> 0 | H99: =IF($E$10=0,0,(YTotExp-(YTotExp+YTotRet-J10))/($E$10*YPER3)) -> 0
B100: 1.1 | C100: =E10*YPER4 -> 0 | E100: =IF($E$10=0,0,(YVarExp-(YTotExp+YTotRet-J10))/($E$10*YPER4)) -> 0 | H100: =IF($E$10=0,0,(YTotExp-(YTotExp+YTotRet-J10))/($E$10*YPER4)) -> 0
B101: 1.25 | C101: =E10*YPER5 -> 0 | E101: =IF($E$10=0,0,(YVarExp-(YTotExp+YTotRet-J10))/($E$10*YPER5)) -> 0 | H101: =IF($E$10=0,0,(YTotExp-(YTotExp+YTotRet-J10))/($E$10*YPER5)) -> 0
A103: Developed by Jason Johnson, Associate Professor and Extension Economist, Texas A&M AgriLife Extension, 254-968-4144.
A105: Information presented is prepared solely as a general guide and not intended to recognize or predict the costs and returns from any one operation. Brand names are mentioned only as examples and imply no endorsement.

Sheet SmallGrainGrazing
A1: Projections for Planning Purposes Only -- Not to be Used without Updating
A2: 2018 Estimated Costs and Returns per Acre
A3: Small Grain with Grazing
A4: Enter your name for this budget in the cell above.
A5: Enter Your Values in the cells highlighed in MAROON.
E6: Your Acres | R6: Your
C7: Crop Acres | D7: 800 | L7: Your | Q7: Enterprise | R7: Enterprise
E8: Your | H8: Your | I8: Cash | J8: Your | K8: Landlord | L8: Landlord | N8: Your | P8: Your | Q8: Total | R8: Total
A9: REVENUE | D9: Quantity | E9: Quantity | F9: Units | G9: $/Unit | H9: $/Unit | I9: Total | J9: Total | K9: Share | L9: Share | M9: Landlord | N9: Landlord | O9: Tenant | P9: Tenant | Q9: (800 acres) | R9: ="(" & E7 & " acres)" -> ( acres)
B10: Stocker Weight Gain | D10: 378 | F10: Pound | G10: 0.4 | I10: 151.2 | J10: =E10*H10 -> 0 | K10: 0 | M10: 0 | N10: =J10*L10 -> 0 | O10: 151.2 | P10: =+J10-N10 -> 0 | Q10: 120960 | R10: =+J10*E$7 -> 0
D11: 0 | G11: 0 | I11: 0 | J11: 0 | K11: 0 | M11: 0 | N11: 0 | O11: 0 | P11: =+J11-N11 -> 0 | Q11: 0 | R11: 0
D12: 0 | G12: 0 | I12: 0 | J12: 0 | K12: 0 | M12: 0 | N12: 0 | O12: 0 | P12: 0 | Q12: 0 | R12: 0
A13: Total Revenue | I13: 151.2 | J13: =SUM(J10:J12) -> 0 | M13: 0 | N13: =SUM(N10:N12) -> 0 | O13: 151.2 | P13: =SUM(P10:P12) -> 0 | Q13: 120960 | R13: =SUM(R10:R12) -> 0
Q14: Enterprise | R14: Enterprise
A15: VARIABLE COSTS | D15: Quantity | E15: Quantity | F15: Units | G15: $/Unit | H15: $/Unit | I15: Total | J15: Total | K15: Share | L15: Share | M15: Landlord | N15: Landlord | O15: Tenant | P15: Tenant | Q15: Total | R15: Total
A16: Production Costs
B17: Seed
C18: Oat Seed | D18: 110 | F18: Pound | G18: 0.35 | I18: 38.5 | J18: =E18*H18 -> 0 | K18: 0 | M18: 0 | N18: =J18*L18 -> 0 | O18: 38.5 | P18: =+J18-N18 -> 0 | Q18: 30800 | R18: =+J18*E$7 -> 0
B19: Fertilizer
C20: 18-46-0 | D20: 100 | F20: Pound | G20: 0.23 | I20: 23 | J20: 0 | K20: 0 | M20: 0 | N20: 0 | O20: 23 | P20: 0 | Q20: 18400 | R20: 0
C21: 46-0-0 | D21: 220 | F21: Pound | G21: 0.17 | I21: 37.4 | J21: 0 | K21: 0 | M21: 0 | N21: 0 | O21: 37.4 | P21: 0 | Q21: 29920 | R21: 0
D22: 0 | G22: 0 | I22: 0 | J22: 0 | K22: 0 | M22: 0 | N22: 0 | O22: 0 | P22: 0 | Q22: 0 | R22: 0
D23: 0 | G23: 0 | I23: 0 | J23: 0 | K23: 0 | M23: 0 | N23: 0 | O23: 0 | P23: 0 | Q23: 0 | R23: 0
D24: 0 | G24: 0 | I24: 0 | J24: =E24*H24 -> 0 | K24: 0 | M24: 0 | N24: =J24*L24 -> 0 | O24: 0 | P24: =+J24-N24 -> 0 | Q24: 0 | R24: =+J24*E$7 -> 0
B25: Machinery Labor
C26: Tractors/Self-Propelled | D26: 0.39 | F26: Hour | G26: 10 | I26: 3.9 | J26: =E26*H26 -> 0 | K26: 0 | M26: 0 | N26: =J26*L26 -> 0 | O26: 3.9 | P26: =+J26-N26 -> 0 | Q26: 3120 | R26: =+J26*E$7 -> 0
C27: Other Labor | D27: 0 | F27: Hour | G27: 10 | I27: 0 | J27: =E27*H27 -> 0 | K27: 0 | M27: 0 | N27: =J27*L27 -> 0 | O27: 0 | P27: =+J27-N27 -> 0 | Q27: 0 | R27: =+J27*E$7 -> 0
B29: Diesel Fuel
C30: Pickup/General Use Equipment | D30: 1 | F30: Acre | G30: 0 | I30: 0 | J30: =E30*H30 -> 0 | K30: 0 | M30: 0 | N30: =J30*L30 -> 0 | O30: 0 | P30: =+J30-N30 -> 0 | Q30: 0 | R30: =+J30*E$7 -> 0
C31: Tractors/Self-Propelled | D31: 1.69 | F31: Gallon | G31: 2.4 | I31: 4.056 | J31: =E31*H31 -> 0 | K31: 0 | M31: 0 | N31: =J31*L31 -> 0 | O31: 4.056 | P31: =+J31-N31 -> 0 | Q31: 3244.8 | R31: =+J31*E$7 -> 0
B33: Gasoline
C34: Pickup/General Use Equipment | D34: 1 | F34: Acre | G34: 0 | I34: 0 | J34: =E34*H34 -> 0 | K34: 0 | M34: 0 | N34: =J34*L34 -> 0 | O34: 0 | P34: =+J34-N34 -> 0 | Q34: 0 | R34: =+J34*E$7 -> 0
C35: Tractors/Self-Propelled | D35: 0 | F35: Gallon | G35: 2.2 | I35: 0 | J35: =E35*H35 -> 0 | K35: 0 | M35: 0 | N35: =J35*L35 -> 0 | O35: 0 | P35: =+J35-N35 -> 0 | Q35: 0 | R35: =+J35*E$7 -> 0
B37: Repairs & Maintenance
C38: Pickup/General Use Equipment | D38: 1 | F38: Acre | G38: 0 | I38: 0 | J38: =E38*H38 -> 0 | K38: 0 | M38: 0 | N38: =J38*L38 -> 0 | O38: 0 | P38: =+J38-N38 -> 0 | Q38: 0 | R38: =+J38*E$7 -> 0
C39: Irrigation Equipment | D39: 1 | F39: Acre | G39: 0 | I39: 0 | J39: 0 | K39: 0 | M39: 0 | N39: 0 | O39: 0 | P39: 0 | Q39: 0 | R39: 0
C40: Tractors/Self-Propelled | D40: 1 | F40: Acre | G40: 3.056227169 | I40: 3.056227169 | J40: 0 | K40: 0 | M40: 0 | N40: 0 | O40: 3.056227169 | P40: 0 | Q40: 2444.981735 | R40: 0
C41: Implements | D41: 1 | F41: Acre | G41: 10.48945854 | I41: 10.48945854 | J41: 0 | K41: 0 | M41: 0 | N41: 0 | O41: 10.48945854 | P41: 0 | Q41: 8391.566835 | R41: 0
I42: 0 | J42: 0 | K42: 0 | M42: 0 | N42: 0 | O42: 0 | P42: 0 | Q42: 0 | R42: 0
I43: 0 | J43: 0 | K43: 0 | M43: 0 | N43: 0 | O43: 0 | P43: 0 | Q43: 0 | R43: 0
B44: Interest on Credit Line | G44: 0.0475 | I44: 4.123688089 | J44: =+SUM(J17:J43)/2*H44 -> 0 | M44: 0 | N44: =+SUM(N17:N43)/2*L44 -> 0 | O44: 4.123688089 | P44: =+SUM(P17:P43)/2*L44 -> 0 | Q44: 3298.950471 | R44: =+J44*E$7 -> 0
A45: Total Variable Costs | I45: 124.5253738 | J45: =SUM(J18:J44) -> 0 | M45: 0 | N45: =SUM(N18:N44) -> 0 | O45: 124.5253738 | P45: =SUM(P18:P44) -> 0 | Q45: 99620.29904 | R45: =SUM(R18:R44) -> 0
A46: Planned Returns Above Variable Costs: | I46: 26.6746262 | J46: =+J13-J45 -> 0 | M46: 0 | N46: =+N13-N45 -> 0 | O46: 26.6746262 | P46: =+P13-P45 -> 0 | Q46: 21339.70096 | R46: =+R13-R45 -> 0
B47: Breakeven Price to Cover Variable Costs | G47: 0.3294322058 | H47: =IF(E10=0,"n/a",(YVarExp-(YTotExp+YTotRet-J10))/E10) -> n/a | I47: Pound
Q48: Enterprise | R48: Enterprise
A49: FIXED COSTS | D49: Quantity | E49: Quantity | F49: Units | G49: $/Unit | H49: $/Unit | I49: Total | J49: Total | K49: Share | L49: Share | M49: Landlord | N49: Landlord | O49: Tenant | P49: Tenant | Q49: Total | R49: Total
B50: Machinery Depreciation
C51: Tractors/Self-Propelled | D51: 1 | F51: Acre | G51: 2.913537486 | I51: 2.913537486 | J51: =E51*H51 -> 0 | K51: 0 | M51: 0 | N51: =J51*L51 -> 0 | O51: 2.913537486 | P51: =+J51-N51 -> 0 | Q51: 2330.829989 | R51: =+J51*E$7 -> 0
C52: Implements | D52: 1 | F52: Acre | G52: 12.85931468 | I52: 12.85931468 | J52: 0 | K52: 0 | M52: 0 | N52: =J52*L52 -> 0 | O52: 12.85931468 | P52: 0 | Q52: 10287.45174 | R52: 0
B53: Equipment Investment
C54: Tractors/Self-Propelled | D54: 22.69739687 | F54: Dollars | G54: 0.06 | I54: 1.361843812 | J54: =E54*H54 -> 0 | K54: 0 | M54: 0 | N54: =J54*L54 -> 0 | O54: 1.361843812 | P54: =+J54-N54 -> 0 | Q54: 1089.47505 | R54: =+J54*E$7 -> 0
C55: Implements | D55: 56.89050104 | F55: Dollars | G55: 0.06 | I55: 3.413430063 | J55: 0 | K55: 0 | M55: 0 | N55: =J55*L55 -> 0 | O55: 3.413430063 | P55: 0 | Q55: 2730.74405 | R55: 0
B56: Salaried Labor | D56: 1 | F56: Acre | G56: 0 | I56: 0 | J56: 0 | K56: 0 | M56: 0 | N56: =J56*L56 -> 0 | O56: 0 | P56: =+J56-N56 -> 0 | Q56: 0 | R56: =+J56*E$7 -> 0
B57: Management Fee, Owner/Operator Labor | D57: 1 | F57: Acre | G57: 0 | I57: 0 | J57: 0 | K57: 0 | M57: 0 | N57: 0 | O57: 0 | P57: 0 | Q57: 0 | R57: 0
B58: Allocated Establishment Cost | D58: 1 | F58: Acre | G58: 0 | I58: 0 | J58: 0 | K58: 0 | M58: 0 | N58: 0 | O58: 0 | P58: 0 | Q58: 0 | R58: 0
B59: Dryland Crop Rent | D59: 1 | F59: Acre | G59: 30 | I59: 30 | J59: 0 | K59: 0 | M59: 0 | N59: 0 | O59: 30 | P59: 0 | Q59: 24000 | R59: 0
B60: Property Taxes | D60: 1 | F60: Acre | G60: 0 | I60: 0 | J60: 0 | K60: 0 | M60: 0 | N60: 0 | O60: 0 | P60: 0 | Q60: 0 | R60: 0
B61: Whole Farm Insurance | D61: 1 | F61: Acre | G61: 0 | I61: 0 | J61: 0 | K61: 0 | M61: 0 | N61: 0 | O61: 0 | P61: 0 | Q61: 0 | R61: 0
D62: 1 | G62: 0 | I62: 0 | J62: 0 | K62: 0 | M62: 0 | N62: 0 | O62: 0 | P62: 0 | Q62: 0 | R62: 0
D63: 1 | G63: 0 | I63: 0 | J63: =E63*H63 -> 0 | K63: 0 | M63: 0 | N63: 0 | O63: 0 | P63: 0 | Q63: 0 | R63: 0
A64: Total Fixed Costs | I64: 50.54812604 | J64: =+SUM(J51:J63) -> 0 | M64: 0 | N64: =+SUM(N51:N63) -> 0 | O64: 50.54812604 | P64: =+SUM(P51:P63) -> 0 | Q64: 40438.50083 | R64: =+SUM(R51:R63) -> 0
A65: Total Specified Costs | I65: 175.0734998 | J65: =+J45+J64 -> 0 | M65: 0 | N65: =+N45+N64 -> 0 | O65: 175.0734998 | P65: =+P45+P64 -> 0 | Q65: 140058.7999 | R65: =+R45+R64 -> 0
A67: Returns Above Specified Costs | I67: -23.87349984 | J67: =+J13-J65 -> 0 | M67: 0 | N67: =+N13-N65 -> 0 | O67: -23.87349984 | P67: =+P13-P65 -> 0 | Q67: -19098.79987 | R67: =+R13-R65 -> 0
A69: Breakeven Price to Cover Total Costs | G69: 0.463157407 | H69: =IF(E10=0,"n/a",(YTotExp-(YTotExp+YTotRet-J10))/E10) -> n/a | I69: Pound
D71: Example Breakeven Prices
B72: Example | C72: Example | D72: To Cover | G72: To Cover
B73: Yield | C73: Yield | D73: Variable | G73: Total
B74: Percent | C74: Pound | D74: Costs | G74: Costs
B75: 0.75 | C75: 283.5 | D75: 0.4392429411 | G75: 0.6175432093
B76: 0.9 | C76: 340.2 | D76: 0.3660357842 | G76: 0.5146193411
B77: 1 | C77: 378 | D77: 0.3294322058 | G77: 0.463157407
B78: 1.1 | C78: 415.8 | D78: 0.2994838235 | G78: 0.4210521882
B79: 1.25 | C79: 472.5 | D79: 0.2635457647 | G79: 0.3705259256
D81: Your Breakeven Prices
B82: Your | C82: Your | E82: To Cover | H82: To Cover
B83: Yield | C83: Yield | E83: Variable | H83: Total
B84: Percent | C84: Pound | E84: Costs | H84: Costs
B85: 0.75 | C85: =E10*YPER1 -> 0 | E85: =IF($E$10=0,0,(YVarExp-(YTotExp+YTotRet-J10))/($E$10*YPER1)) -> 0 | H85: =IF($E$10=0,0,(YTotExp-(YTotExp+YTotRet-J10))/($E$10*YPER1)) -> 0
B86: 0.9 | C86: =E10*YPER2 -> 0 | E86: =IF($E$10=0,0,(YVarExp-(YTotExp+YTotRet-J10))/($E$10*YPER2)) -> 0 | H86: =IF($E$10=0,0,(YTotExp-(YTotExp+YTotRet-J10))/($E$10*YPER2)) -> 0
B87: 1 | C87: =+E10 -> 0 | E87: =IF($E$10=0,0,(YVarExp-(YTotExp+YTotRet-J10))/($E$10*YPER3)) -> 0 | H87: =IF($E$10=0,0,(YTotExp-(YTotExp+YTotRet-J10))/($E$10*YPER3)) -> 0
B88: 1.1 | C88: =E10*YPER4 -> 0 | E88: =IF($E$10=0,0,(YVarExp-(YTotExp+YTotRet-J10))/($E$10*YPER4)) -> 0 | H88: =IF($E$10=0,0,(YTotExp-(YTotExp+YTotRet-J10))/($E$10*YPER4)) -> 0
B89: 1.25 | C89: =E10*YPER5 -> 0 | E89: =IF($E$10=0,0,(YVarExp-(YTotExp+YTotRet-J10))/($E$10*YPER5)) -> 0 | H89: =IF($E$10=0,0,(YTotExp-(YTotExp+YTotRet-J10))/($E$10*YPER5)) -> 0
A91: Developed by Jason Johnson, Associate Professor and Extension Economist, Texas A&M AgriLife Extension, 254-968-4144.
A93: Information presented is prepared solely as a general guide and not intended to recognize or predict the costs and returns from any one operation. Brand names are mentioned only as examples and imply no endorsement.

Sheet CornSilageDryland
A1: Projections for Planning Purposes Only -- Not to be Used without Updating
A2: 2018 Estimated Costs and Returns per Acre
A3: RR Corn Silage - Dryland
A4: Enter your name for this budget in the cell above.
A5: Enter Your Values in the cells highlighed in MAROON.
E6: Your Acres | R6: Your
C7: Crop Acres | D7: 500 | L7: Your | Q7: Enterprise | R7: Enterprise
E8: Your | H8: Your | I8: Cash | J8: Your | K8: Landlord | L8: Landlord | N8: Your | P8: Your | Q8: Total | R8: Total
A9: REVENUE | D9: Quantity | E9: Quantity | F9: Units | G9: $/Unit | H9: $/Unit | I9: Total | J9: Total | K9: Share | L9: Share | M9: Landlord | N9: Landlord | O9: Tenant | P9: Tenant | Q9: (500 acres) | R9: ="(" & E7 & " acres)" -> ( acres)
B10: Corn Silage | D10: 12 | F10: Ton | G10: 35.75 | I10: 429 | J10: =E10*H10 -> 0 | K10: 0 | M10: 0 | N10: =J10*L10 -> 0 | O10: 429 | P10: =+J10-N10 -> 0 | Q10: 214500 | R10: =+J10*E$7 -> 0
D11: 0 | G11: 0 | I11: 0 | J11: 0 | K11: 0 | M11: 0 | N11: 0 | O11: 0 | P11: =+J11-N11 -> 0 | Q11: 0 | R11: 0
D12: 0 | G12: 0 | I12: 0 | J12: 0 | K12: 0 | M12: 0 | N12: 0 | O12: 0 | P12: 0 | Q12: 0 | R12: 0
A13: Total Revenue | I13: 429 | J13: =SUM(J10:J12) -> 0 | M13: 0 | N13: =SUM(N10:N12) -> 0 | O13: 429 | P13: =SUM(P10:P12) -> 0 | Q13: 214500 | R13: =SUM(R10:R12) -> 0
Q14: Enterprise | R14: Enterprise
A15: VARIABLE COSTS | D15: Quantity | E15: Quantity | F15: Units | G15: $/Unit | H15: $/Unit | I15: Total | J15: Total | K15: Share | L15: Share | M15: Landlord | N15: Landlord | O15: Tenant | P15: Tenant | Q15: Total | R15: Total
A16: Production Costs
B17: Herbicide
C18: Post Plant Herbicide | D18: 1 | F18: Acre | G18: 15 | I18: 15 | J18: =E18*H18 -> 0 | K18: 0 | M18: 0 | N18: =J18*L18 -> 0 | O18: 15 | P18: =+J18-N18 -> 0 | Q18: 7500 | R18: =+J18*E$7 -> 0
B19: Seed
C20: HR Corn Silage Seed | D20: 24 | F20: Thousand | G20: 3.5 | I20: 84 | J20: 0 | K20: 0 | M20: 0 | N20: 0 | O20: 84 | P20: 0 | Q20: 42000 | R20: 0
B21: Fertilizer
C22: 18-46-0 | D22: 150 | F22: Pound | G22: 0.23 | I22: 34.5 | J22: 0 | K22: 0 | M22: 0 | N22: 0 | O22: 34.5 | P22: 0 | Q22: 17250 | R22: 0
C23: 0-0-60 | D23: 100 | F23: Pound | G23: 0.16 | I23: 16 | J23: 0 | K23: 0 | M23: 0 | N23: 0 | O23: 16 | P23: 0 | Q23: 8000 | R23: 0
C24: 46-0-0 | D24: 220 | F24: Pound | G24: 0.17 | I24: 37.4 | J24: 0 | K24: 0 | M24: 0 | N24: 0 | O24: 37.4 | P24: 0 | Q24: 18700 | R24: 0
B25: Custom
C26: Custom Fertilize | D26: 1 | F26: Acre | G26: 5 | I26: 5 | J26: 0 | K26: 0 | M26: 0 | N26: 0 | O26: 5 | P26: 0 | Q26: 2500 | R26: 0
C27: Custom Harvest and Haul Silage | D27: 12 | F27: Ton | G27: 8 | I27: 96 | J27: 0 | K27: 0 | M27: 0 | N27: 0 | O27: 96 | P27: 0 | Q27: 48000 | R27: 0
D28: 0 | G28: 0 | I28: 0 | J28: 0 | K28: 0 | M28: 0 | N28: 0 | O28: 0 | P28: 0 | Q28: 0 | R28: 0
D29: 0 | G29: 0 | I29: 0 | J29: 0 | K29: 0 | M29: 0 | N29: 0 | O29: 0 | P29: 0 | Q29: 0 | R29: 0
D30: 0 | G30: 0 | I30: 0 | J30: =E30*H30 -> 0 | K30: 0 | M30: 0 | N30: =J30*L30 -> 0 | O30: 0 | P30: =+J30-N30 -> 0 | Q30: 0 | R30: =+J30*E$7 -> 0
B31: Machinery Labor
C32: Tractors/Self-Propelled | D32: 0.24 | F32: Hour | G32: 10 | I32: 2.4 | J32: =E32*H32 -> 0 | K32: 0 | M32: 0 | N32: =J32*L32 -> 0 | O32: 2.4 | P32: =+J32-N32 -> 0 | Q32: 1200 | R32: =+J32*E$7 -> 0
C33: Other Labor | D33: 0 | F33: Hour | G33: 10 | I33: 0 | J33: =E33*H33 -> 0 | K33: 0 | M33: 0 | N33: =J33*L33 -> 0 | O33: 0 | P33: =+J33-N33 -> 0 | Q33: 0 | R33: =+J33*E$7 -> 0
B35: Diesel Fuel
C36: Pickup/General Use Equipment | D36: 1 | F36: Acre | G36: 0 | I36: 0 | J36: =E36*H36 -> 0 | K36: 0 | M36: 0 | N36: =J36*L36 -> 0 | O36: 0 | P36: =+J36-N36 -> 0 | Q36: 0 | R36: =+J36*E$7 -> 0
C37: Tractors/Self-Propelled | D37: 1.91 | F37: Gallon | G37: 2.4 | I37: 4.584 | J37: =E37*H37 -> 0 | K37: 0 | M37: 0 | N37: =J37*L37 -> 0 | O37: 4.584 | P37: =+J37-N37 -> 0 | Q37: 2292 | R37: =+J37*E$7 -> 0
B39: Gasoline
C40: Pickup/General Use Equipment | D40: 1 | F40: Acre | G40: 0 | I40: 0 | J40: =E40*H40 -> 0 | K40: 0 | M40: 0 | N40: =J40*L40 -> 0 | O40: 0 | P40: =+J40-N40 -> 0 | Q40: 0 | R40: =+J40*E$7 -> 0
C41: Tractors/Self-Propelled | D41: 0 | F41: Gallon | G41: 2.2 | I41: 0 | J41: =E41*H41 -> 0 | K41: 0 | M41: 0 | N41: =J41*L41 -> 0 | O41: 0 | P41: =+J41-N41 -> 0 | Q41: 0 | R41: =+J41*E$7 -> 0
B43: Repairs & Maintenance
C44: Pickup/General Use Equipment | D44: 1 | F44: Acre | G44: 0 | I44: 0 | J44: =E44*H44 -> 0 | K44: 0 | M44: 0 | N44: =J44*L44 -> 0 | O44: 0 | P44: =+J44-N44 -> 0 | Q44: 0 | R44: =+J44*E$7 -> 0
C45: Irrigation Equipment | D45: 1 | F45: Acre | G45: 0 | I45: 0 | J45: 0 | K45: 0 | M45: 0 | N45: 0 | O45: 0 | P45: 0 | Q45: 0 | R45: 0
C46: Tractors/Self-Propelled | D46: 1 | F46: Acre | G46: 4.346943895 | I46: 4.346943895 | J46: 0 | K46: 0 | M46: 0 | N46: 0 | O46: 4.346943895 | P46: 0 | Q46: 2173.471948 | R46: 0
C47: Implements | D47: 1 | F47: Acre | G47: 7.654568718 | I47: 7.654568718 | J47: 0 | K47: 0 | M47: 0 | N47: 0 | O47: 7.654568718 | P47: 0 | Q47: 3827.284359 | R47: 0
I48: 0 | J48: 0 | K48: 0 | M48: 0 | N48: 0 | O48: 0 | P48: 0 | Q48: 0 | R48: 0
I49: 0 | J49: 0 | K49: 0 | M49: 0 | N49: 0 | O49: 0 | P49: 0 | Q49: 0 | R49: 0
B50: Interest on Credit Line | G50: 0.0475 | I50: 3.309592448 | J50: =+SUM(J17:J49)/2*H50 -> 0 | M50: 0 | N50: =+SUM(N17:N49)/2*L50 -> 0 | O50: 3.309592448 | P50: =+SUM(P17:P49)/2*L50 -> 0 | Q50: 1654.796224 | R50: =+J50*E$7 -> 0
A51: Total Variable Costs | I51: 310.1951051 | J51: =SUM(J18:J50) -> 0 | M51: 0 | N51: =SUM(N18:N50) -> 0 | O51: 310.1951051 | P51: =SUM(P18:P50) -> 0 | Q51: 155097.5525 | R51: =SUM(R18:R50) -> 0
A52: Planned Returns Above Variable Costs: | I52: 118.8048949 | J52: =+J13-J51 -> 0 | M52: 0 | N52: =+N13-N51 -> 0 | O52: 118.8048949 | P52: =+P13-P51 -> 0 | Q52: 59402.44747 | R52: =+R13-R51 -> 0
B53: Breakeven Price to Cover Variable Costs | G53: 25.84959209 | H53: =IF(E10=0,"n/a",(YVarExp-(YTotExp+YTotRet-J10))/E10) -> n/a | I53: Ton
Q54: Enterprise | R54: Enterprise
A55: FIXED COSTS | D55: Quantity | E55: Quantity | F55: Units | G55: $/Unit | H55: $/Unit | I55: Total | J55: Total | K55: Share | L55: Share | M55: Landlord | N55: Landlord | O55: Tenant | P55: Tenant | Q55: Total | R55: Total
B56: Machinery Depreciation
C57: Tractors/Self-Propelled | D57: 1 | F57: Acre | G57: 4.491842025 | I57: 4.491842025 | J57: =E57*H57 -> 0 | K57: 0 | M57: 0 | N57: =J57*L57 -> 0 | O57: 4.491842025 | P57: =+J57-N57 -> 0 | Q57: 2245.921013 | R57: =+J57*E$7 -> 0
C58: Implements | D58: 1 | F58: Acre | G58: 9.947519079 | I58: 9.947519079 | J58: 0 | K58: 0 | M58: 0 | N58: =J58*L58 -> 0 | O58: 9.947519079 | P58: 0 | Q58: 4973.75954 | R58: 0
B59: Equipment Investment
C60: Tractors/Self-Propelled | D60: 34.99289836 | F60: Dollars | G60: 0.06 | I60: 2.099573901 | J60: =E60*H60 -> 0 | K60: 0 | M60: 0 | N60: =J60*L60 -> 0 | O60: 2.099573901 | P60: =+J60-N60 -> 0 | Q60: 1049.786951 | R60: =+J60*E$7 -> 0
C61: Implements | D61: 42.55327606 | F61: Dollars | G61: 0.06 | I61: 2.553196564 | J61: 0 | K61: 0 | M61: 0 | N61: =J61*L61 -> 0 | O61: 2.553196564 | P61: 0 | Q61: 1276.598282 | R61: 0
B62: Salaried Labor | D62: 1 | F62: Acre | G62: 0 | I62: 0 | J62: 0 | K62: 0 | M62: 0 | N62: =J62*L62 -> 0 | O62: 0 | P62: =+J62-N62 -> 0 | Q62: 0 | R62: =+J62*E$7 -> 0
B63: Management Fee, Owner/Operator Labor | D63: 1 | F63: Acre | G63: 0 | I63: 0 | J63: 0 | K63: 0 | M63: 0 | N63: 0 | O63: 0 | P63: 0 | Q63: 0 | R63: 0
B64: Allocated Establishment Cost | D64: 1 | F64: Acre | G64: 0 | I64: 0 | J64: 0 | K64: 0 | M64: 0 | N64: 0 | O64: 0 | P64: 0 | Q64: 0 | R64: 0
B65: Dryland Crop Rent | D65: 1 | F65: Acre | G65: 30 | I65: 30 | J65: 0 | K65: 0 | M65: 0 | N65: 0 | O65: 30 | P65: 0 | Q65: 15000 | R65: 0
B66: Property Taxes | D66: 1 | F66: Acre | G66: 0 | I66: 0 | J66: 0 | K66: 0 | M66: 0 | N66: 0 | O66: 0 | P66: 0 | Q66: 0 | R66: 0
B67: Whole Farm Insurance | D67: 1 | F67: Acre | G67: 0 | I67: 0 | J67: 0 | K67: 0 | M67: 0 | N67: 0 | O67: 0 | P67: 0 | Q67: 0 | R67: 0
D68: 1 | G68: 0 | I68: 0 | J68: 0 | K68: 0 | M68: 0 | N68: 0 | O68: 0 | P68: 0 | Q68: 0 | R68: 0
D69: 1 | G69: 0 | I69: 0 | J69: =E69*H69 -> 0 | K69: 0 | M69: 0 | N69: 0 | O69: 0 | P69: 0 | Q69: 0 | R69: 0
A70: Total Fixed Costs | I70: 49.09213157 | J70: =+SUM(J57:J69) -> 0 | M70: 0 | N70: =+SUM(N57:N69) -> 0 | O70: 49.09213157 | P70: =+SUM(P57:P69) -> 0 | Q70: 24546.06578 | R70: =+SUM(R57:R69) -> 0
A71: Total Specified Costs | I71: 359.2872366 | J71: =+J51+J70 -> 0 | M71: 0 | N71: =+N51+N70 -> 0 | O71: 359.2872366 | P71: =+P51+P70 -> 0 | Q71: 179643.6183 | R71: =+R51+R70 -> 0
A73: Returns Above Specified Costs | I73: 69.71276337 | J73: =+J13-J71 -> 0 | M73: 0 | N73: =+N13-N71 -> 0 | O73: 69.71276337 | P73: =+P13-P71 -> 0 | Q73: 34856.38168 | R73: =+R13-R71 -> 0
A75: Breakeven Price to Cover Total Costs | G75: 29.94060305 | H75: =IF(E10=0,"n/a",(YTotExp-(YTotExp+YTotRet-J10))/E10) -> n/a | I75: Ton
D77: Example Breakeven Prices
B78: Example | C78: Example | D78: To Cover | G78: To Cover
B79: Yield | C79: Yield | D79: Variable | G79: Total
B80: Percent | C80: Ton | D80: Costs | G80: Costs
B81: 0.75 | C81: 9 | D81: 34.46612278 | G81: 39.92080407
B82: 0.9 | C82: 10.8 | D82: 28.72176899 | G82: 33.26733673
B83: 1 | C83: 12 | D83: 25.84959209 | G83: 29.94060305
B84: 1.1 | C84: 13.2 | D84: 23.49962917 | G84: 27.21873005
B85: 1.25 | C85: 15 | D85: 20.67967367 | G85: 23.95248244
D87: Your Breakeven Prices
B88: Your | C88: Your | E88: To Cover | H88: To Cover
B89: Yield | C89: Yield | E89: Variable | H89: Total
B90: Percent | C90: Ton | E90: Costs | H90: Costs
B91: 0.75 | C91: =E10*YPER1 -> 0 | E91: =IF($E$10=0,0,(YVarExp-(YTotExp+YTotRet-J10))/($E$10*YPER1)) -> 0 | H91: =IF($E$10=0,0,(YTotExp-(YTotExp+YTotRet-J10))/($E$10*YPER1)) -> 0
B92: 0.9 | C92: =E10*YPER2 -> 0 | E92: =IF($E$10=0,0,(YVarExp-(YTotExp+YTotRet-J10))/($E$10*YPER2)) -> 0 | H92: =IF($E$10=0,0,(YTotExp-(YTotExp+YTotRet-J10))/($E$10*YPER2)) -> 0
B93: 1 | C93: =+E10 -> 0 | E93: =IF($E$10=0,0,(YVarExp-(YTotExp+YTotRet-J10))/($E$10*YPER3)) -> 0 | H93: =IF($E$10=0,0,(YTotExp-(YTotExp+YTotRet-J10))/($E$10*YPER3)) -> 0
B94: 1.1 | C94: =E10*YPER4 -> 0 | E94: =IF($E$10=0,0,(YVarExp-(YTotExp+YTotRet-J10))/($E$10*YPER4)) -> 0 | H94: =IF($E$10=0,0,(YTotExp-(YTotExp+YTotRet-J10))/($E$10*YPER4)) -> 0
B95: 1.25 | C95: =E10*YPER5 -> 0 | E95: =IF($E$10=0,0,(YVarExp-(YTotExp+YTotRet-J10))/($E$10*YPER5)) -> 0 | H95: =IF($E$10=0,0,(YTotExp-(YTotExp+YTotRet-J10))/($E$10*YPER5)) -> 0
A97: Developed by Jason Johnson, Associate Professor and Extension Economist, Texas A&M AgriLife Extension, 254-968-4144.
A99: Information presented is prepared solely as a general guide and not intended to recognize or predict the costs and returns from any one operation. Brand names are mentioned only as examples and imply no endorsement.

Sheet CornSilageIrrigated
A1: Projections for Planning Purposes Only -- Not to be Used without Updating
A2: 2018 Estimated Costs and Returns per Acre
A3: RR Corn Silage - Irrigated
A4: Enter your name for this budget in the cell above.
A5: Enter Your Values in the cells highlighed in MAROON.
E6: Your Acres | R6: Your
C7: Crop Acres | D7: 500 | L7: Your | Q7: Enterprise | R7: Enterprise
E8: Your | H8: Your | I8: Cash | J8: Your | K8: Landlord | L8: Landlord | N8: Your | P8: Your | Q8: Total | R8: Total
A9: REVENUE | D9: Quantity | E9: Quantity | F9: Units | G9: $/Unit | H9: $/Unit | I9: Total | J9: Total | K9: Share | L9: Share | M9: Landlord | N9: Landlord | O9: Tenant | P9: Tenant | Q9: (500 acres) | R9: ="(" & E7 & " acres)" -> ( acres)
B10: Corn Silage | D10: 22 | F10: Ton | G10: 35.75 | I10: 786.5 | J10: =E10*H10 -> 0 | K10: 0 | M10: 0 | N10: =J10*L10 -> 0 | O10: 786.5 | P10: =+J10-N10 -> 0 | Q10: 393250 | R10: =+J10*E$7 -> 0
D11: 0 | G11: 0 | I11: 0 | J11: 0 | K11: 0 | M11: 0 | N11: 0 | O11: 0 | P11: =+J11-N11 -> 0 | Q11: 0 | R11: 0
D12: 0 | G12: 0 | I12: 0 | J12: 0 | K12: 0 | M12: 0 | N12: 0 | O12: 0 | P12: 0 | Q12: 0 | R12: 0
A13: Total Revenue | I13: 786.5 | J13: =SUM(J10:J12) -> 0 | M13: 0 | N13: =SUM(N10:N12) -> 0 | O13: 786.5 | P13: =SUM(P10:P12) -> 0 | Q13: 393250 | R13: =SUM(R10:R12) -> 0
Q14: Enterprise | R14: Enterprise
A15: VARIABLE COSTS | D15: Quantity | E15: Quantity | F15: Units | G15: $/Unit | H15: $/Unit | I15: Total | J15: Total | K15: Share | L15: Share | M15: Landlord | N15: Landlord | O15: Tenant | P15: Tenant | Q15: Total | R15: Total
A16: Production Costs
B17: Herbicide
C18: Post Plant Herbicide | D18: 1 | F18: Acre | G18: 15 | I18: 15 | J18: =E18*H18 -> 0 | K18: 0 | M18: 0 | N18: =J18*L18 -> 0 | O18: 15 | P18: =+J18-N18 -> 0 | Q18: 7500 | R18: =+J18*E$7 -> 0
B19: Seed
C20: HR Corn Silage Seed | D20: 32 | F20: Thousand | G20: 3.5 | I20: 112 | J20: 0 | K20: 0 | M20: 0 | N20: 0 | O20: 112 | P20: 0 | Q20: 56000 | R20: 0
B21: Fertilizer
C22: 18-46-0 | D22: 150 | F22: Pound | G22: 0.23 | I22: 34.5 | J22: 0 | K22: 0 | M22: 0 | N22: 0 | O22: 34.5 | P22: 0 | Q22: 17250 | R22: 0
C23: 0-0-60 | D23: 100 | F23: Pound | G23: 0.16 | I23: 16 | J23: 0 | K23: 0 | M23: 0 | N23: 0 | O23: 16 | P23: 0 | Q23: 8000 | R23: 0
C24: 46-0-0 | D24: 478 | F24: Pound | G24: 0.17 | I24: 81.26 | J24: 0 | K24: 0 | M24: 0 | N24: 0 | O24: 81.26 | P24: 0 | Q24: 40630 | R24: 0
B25: Custom
C26: Custom Fertilize | D26: 1 | F26: Acre | G26: 5 | I26: 5 | J26: 0 | K26: 0 | M26: 0 | N26: 0 | O26: 5 | P26: 0 | Q26: 2500 | R26: 0
C27: Custom Harvest and Haul Silage | D27: 22 | F27: Ton | G27: 8 | I27: 176 | J27: 0 | K27: 0 | M27: 0 | N27: 0 | O27: 176 | P27: 0 | Q27: 88000 | R27: 0
D28: 0 | G28: 0 | I28: 0 | J28: 0 | K28: 0 | M28: 0 | N28: 0 | O28: 0 | P28: 0 | Q28: 0 | R28: 0
D29: 0 | G29: 0 | I29: 0 | J29: 0 | K29: 0 | M29: 0 | N29: 0 | O29: 0 | P29: 0 | Q29: 0 | R29: 0
D30: 0 | G30: 0 | I30: 0 | J30: =E30*H30 -> 0 | K30: 0 | M30: 0 | N30: =J30*L30 -> 0 | O30: 0 | P30: =+J30-N30 -> 0 | Q30: 0 | R30: =+J30*E$7 -> 0
B31: Irrigation
C32: Energy Cost | D32: 20 | F32: AcreInch | G32: 8 | I32: 160 | J32: =E32*H32 -> 0 | K32: 0 | M32: 0 | N32: =J32*L32 -> 0 | O32: 160 | P32: =+J32-N32 -> 0 | Q32: 80000 | R32: =+J32*E$7 -> 0
B33: Machinery Labor
C34: Tractors/Self-Propelled | D34: 0.24 | F34: Hour | G34: 10 | I34: 2.4 | J34: =E34*H34 -> 0 | K34: 0 | M34: 0 | N34: =J34*L34 -> 0 | O34: 2.4 | P34: =+J34-N34 -> 0 | Q34: 1200 | R34: =+J34*E$7 -> 0
C35: Other Labor | D35: 0 | F35: Hour | G35: 10 | I35: 0 | J35: =E35*H35 -> 0 | K35: 0 | M35: 0 | N35: =J35*L35 -> 0 | O35: 0 | P35: =+J35-N35 -> 0 | Q35: 0 | R35: =+J35*E$7 -> 0
B37: Diesel Fuel
C38: Pickup/General Use Equipment | D38: 1 | F38: Acre | G38: 0 | I38: 0 | J38: =E38*H38 -> 0 | K38: 0 | M38: 0 | N38: =J38*L38 -> 0 | O38: 0 | P38: =+J38-N38 -> 0 | Q38: 0 | R38: =+J38*E$7 -> 0
C39: Tractors/Self-Propelled | D39: 1.91 | F39: Gallon | G39: 2.4 | I39: 4.584 | J39: =E39*H39 -> 0 | K39: 0 | M39: 0 | N39: =J39*L39 -> 0 | O39: 4.584 | P39: =+J39-N39 -> 0 | Q39: 2292 | R39: =+J39*E$7 -> 0
B41: Gasoline
C42: Pickup/General Use Equipment | D42: 1 | F42: Acre | G42: 0 | I42: 0 | J42: =E42*H42 -> 0 | K42: 0 | M42: 0 | N42: =J42*L42 -> 0 | O42: 0 | P42: =+J42-N42 -> 0 | Q42: 0 | R42: =+J42*E$7 -> 0
C43: Tractors/Self-Propelled | D43: 0 | F43: Gallon | G43: 2.2 | I43: 0 | J43: =E43*H43 -> 0 | K43: 0 | M43: 0 | N43: =J43*L43 -> 0 | O43: 0 | P43: =+J43-N43 -> 0 | Q43: 0 | R43: =+J43*E$7 -> 0
B45: Repairs & Maintenance
C46: Pickup/General Use Equipment | D46: 1 | F46: Acre | G46: 0 | I46: 0 | J46: =E46*H46 -> 0 | K46: 0 | M46: 0 | N46: =J46*L46 -> 0 | O46: 0 | P46: =+J46-N46 -> 0 | Q46: 0 | R46: =+J46*E$7 -> 0
C47: Irrigation Equipment | D47: 1 | F47: Acre | G47: 0 | I47: 0 | J47: 0 | K47: 0 | M47: 0 | N47: 0 | O47: 0 | P47: 0 | Q47: 0 | R47: 0
C48: Tractors/Self-Propelled | D48: 1 | F48: Acre | G48: 4.346943895 | I48: 4.346943895 | J48: 0 | K48: 0 | M48: 0 | N48: 0 | O48: 4.346943895 | P48: 0 | Q48: 2173.471948 | R48: 0
C49: Implements | D49: 1 | F49: Acre | G49: 7.654568718 | I49: 7.654568718 | J49: 0 | K49: 0 | M49: 0 | N49: 0 | O49: 7.654568718 | P49: 0 | Q49: 3827.284359 | R49: 0
I50: 0 | J50: 0 | K50: 0 | M50: 0 | N50: 0 | O50: 0 | P50: 0 | Q50: 0 | R50: 0
I51: 0 | J51: 0 | K51: 0 | M51: 0 | N51: 0 | O51: 0 | P51: 0 | Q51: 0 | R51: 0
B52: Interest on Credit Line | G52: 0.0475 | I52: 7.096596198 | J52: =+SUM(J17:J51)/2*H52 -> 0 | M52: 0 | N52: =+SUM(N17:N51)/2*L52 -> 0 | O52: 7.096596198 | P52: =+SUM(P17:P51)/2*L52 -> 0 | Q52: 3548.298099 | R52: =+J52*E$7 -> 0
A53: Total Variable Costs | I53: 625.8421088 | J53: =SUM(J18:J52) -> 0 | M53: 0 | N53: =SUM(N18:N52) -> 0 | O53: 625.8421088 | P53: =SUM(P18:P52) -> 0 | Q53: 312921.0544 | R53: =SUM(R18:R52) -> 0
A54: Planned Returns Above Variable Costs: | I54: 160.6578912 | J54: =+J13-J53 -> 0 | M54: 0 | N54: =+N13-N53 -> 0 | O54: 160.6578912 | P54: =+P13-P53 -> 0 | Q54: 80328.94559 | R54: =+R13-R53 -> 0
B55: Breakeven Price to Cover Variable Costs | G55: 28.44736858 | H55: =IF(E10=0,"n/a",(YVarExp-(YTotExp+YTotRet-J10))/E10) -> n/a | I55: Ton
Q56: Enterprise | R56: Enterprise
A57: FIXED COSTS | D57: Quantity | E57: Quantity | F57: Units | G57: $/Unit | H57: $/Unit | I57: Total | J57: Total | K57: Share | L57: Share | M57: Landlord | N57: Landlord | O57: Tenant | P57: Tenant | Q57: Total | R57: Total
B58: Machinery Depreciation
C59: Tractors/Self-Propelled | D59: 1 | F59: Acre | G59: 4.491842025 | I59: 4.491842025 | J59: =E59*H59 -> 0 | K59: 0 | M59: 0 | N59: =J59*L59 -> 0 | O59: 4.491842025 | P59: =+J59-N59 -> 0 | Q59: 2245.921013 | R59: =+J59*E$7 -> 0
C60: Implements | D60: 1 | F60: Acre | G60: 9.947519079 | I60: 9.947519079 | J60: 0 | K60: 0 | M60: 0 | N60: =J60*L60 -> 0 | O60: 9.947519079 | P60: 0 | Q60: 4973.75954 | R60: 0
B61: Equipment Investment
C62: Tractors/Self-Propelled | D62: 34.99289836 | F62: Dollars | G62: 0.06 | I62: 2.099573901 | J62: =E62*H62 -> 0 | K62: 0 | M62: 0 | N62: =J62*L62 -> 0 | O62: 2.099573901 | P62: =+J62-N62 -> 0 | Q62: 1049.786951 | R62: =+J62*E$7 -> 0
C63: Implements | D63: 42.55327606 | F63: Dollars | G63: 0.06 | I63: 2.553196564 | J63: 0 | K63: 0 | M63: 0 | N63: =J63*L63 -> 0 | O63: 2.553196564 | P63: 0 | Q63: 1276.598282 | R63: 0
B64: Salaried Labor | D64: 1 | F64: Acre | G64: 0 | I64: 0 | J64: 0 | K64: 0 | M64: 0 | N64: =J64*L64 -> 0 | O64: 0 | P64: =+J64-N64 -> 0 | Q64: 0 | R64: =+J64*E$7 -> 0
B65: Management Fee, Owner/Operator Labor | D65: 1 | F65: Acre | G65: 0 | I65: 0 | J65: 0 | K65: 0 | M65: 0 | N65: 0 | O65: 0 | P65: 0 | Q65: 0 | R65: 0
B66: Allocated Establishment Cost | D66: 1 | F66: Acre | G66: 0 | I66: 0 | J66: 0 | K66: 0 | M66: 0 | N66: 0 | O66: 0 | P66: 0 | Q66: 0 | R66: 0
B67: Irrigated Land Rent | D67: 1 | F67: Acre | G67: 50 | I67: 50 | J67: 0 | K67: 0 | M67: 0 | N67: 0 | O67: 50 | P67: 0 | Q67: 25000 | R67: 0
B68: Property Taxes | D68: 1 | F68: Acre | G68: 0 | I68: 0 | J68: 0 | K68: 0 | M68: 0 | N68: 0 | O68: 0 | P68: 0 | Q68: 0 | R68: 0
B69: Whole Farm Insurance | D69: 1 | F69: Acre | G69: 0 | I69: 0 | J69: 0 | K69: 0 | M69: 0 | N69: 0 | O69: 0 | P69: 0 | Q69: 0 | R69: 0
D70: 1 | G70: 0 | I70: 0 | J70: 0 | K70: 0 | M70: 0 | N70: 0 | O70: 0 | P70: 0 | Q70: 0 | R70: 0
D71: 1 | G71: 0 | I71: 0 | J71: =E71*H71 -> 0 | K71: 0 | M71: 0 | N71: 0 | O71: 0 | P71: 0 | Q71: 0 | R71: 0
A72: Total Fixed Costs | I72: 69.09213157 | J72: =+SUM(J59:J71) -> 0 | M72: 0 | N72: =+SUM(N59:N71) -> 0 | O72: 69.09213157 | P72: =+SUM(P59:P71) -> 0 | Q72: 34546.06578 | R72: =+SUM(R59:R71) -> 0
A73: Total Specified Costs | I73: 694.9342404 | J73: =+J53+J72 -> 0 | M73: 0 | N73: =+N53+N72 -> 0 | O73: 694.9342404 | P73: =+P53+P72 -> 0 | Q73: 347467.1202 | R73: =+R53+R72 -> 0
A75: Returns Above Specified Costs | I75: 91.56575962 | J75: =+J13-J73 -> 0 | M75: 0 | N75: =+N13-N73 -> 0 | O75: 91.56575962 | P75: =+P13-P73 -> 0 | Q75: 45782.87981 | R75: =+R13-R73 -> 0
A77: Breakeven Price to Cover Total Costs | G77: 31.58792002 | H77: =IF(E10=0,"n/a",(YTotExp-(YTotExp+YTotRet-J10))/E10) -> n/a | I77: Ton
D79: Example Breakeven Prices
B80: Example | C80: Example | D80: To Cover | G80: To Cover
B81: Yield | C81: Yield | D81: Variable | G81: Total
B82: Percent | C82: Ton | D82: Costs | G82: Costs
B83: 0.75 | C83: 16.5 | D83: 37.92982478 | G83: 42.11722669
B84: 0.9 | C84: 19.8 | D84: 31.60818731 | G84: 35.09768891
B85: 1 | C85: 22 | D85: 28.44736858 | G85: 31.58792002
B86: 1.1 | C86: 24.2 | D86: 25.86124417 | G86: 28.71629092
B87: 1.25 | C87: 27.5 | D87: 22.75789487 | G87: 25.27033601
D89: Your Breakeven Prices
B90: Your | C90: Your | E90: To Cover | H90: To Cover
B91: Yield | C91: Yield | E91: Variable | H91: Total
B92: Percent | C92: Ton | E92: Costs | H92: Costs
B93: 0.75 | C93: =E10*YPER1 -> 0 | E93: =IF($E$10=0,0,(YVarExp-(YTotExp+YTotRet-J10))/($E$10*YPER1)) -> 0 | H93: =IF($E$10=0,0,(YTotExp-(YTotExp+YTotRet-J10))/($E$10*YPER1)) -> 0
B94: 0.9 | C94: =E10*YPER2 -> 0 | E94: =IF($E$10=0,0,(YVarExp-(YTotExp+YTotRet-J10))/($E$10*YPER2)) -> 0 | H94: =IF($E$10=0,0,(YTotExp-(YTotExp+YTotRet-J10))/($E$10*YPER2)) -> 0
B95: 1 | C95: =+E10 -> 0 | E95: =IF($E$10=0,0,(YVarExp-(YTotExp+YTotRet-J10))/($E$10*YPER3)) -> 0 | H95: =IF($E$10=0,0,(YTotExp-(YTotExp+YTotRet-J10))/($E$10*YPER3)) -> 0
B96: 1.1 | C96: =E10*YPER4 -> 0 | E96: =IF($E$10=0,0,(YVarExp-(YTotExp+YTotRet-J10))/($E$10*YPER4)) -> 0 | H96: =IF($E$10=0,0,(YTotExp-(YTotExp+YTotRet-J10))/($E$10*YPER4)) -> 0
B97: 1.25 | C97: =E10*YPER5 -> 0 | E97: =IF($E$10=0,0,(YVarExp-(YTotExp+YTotRet-J10))/($E$10*YPER5)) -> 0 | H97: =IF($E$10=0,0,(YTotExp-(YTotExp+YTotRet-J10))/($E$10*YPER5)) -> 0
A99: Developed by Jason Johnson, Associate Professor and Extension Economist, Texas A&M AgriLife Extension, 254-968-4144.
A101: Information presented is prepared solely as a general guide and not intended to recognize or predict the costs and returns from any one operation. Brand names are mentioned only as examples and imply no endorsement.

Sheet CowCalfImprove
A1: Projections for Planning Purposes Only -- Not to be Used without Updating
A2: 2018 Estimated Costs and Returns per Animal Unit
A3: Cow-Calf Improved Pasture
A4: Enter your name for this budget in the cell above.
A5: Enter Your Values in the cells highlighed in MAROON.
E6: Your Cows
B7: Animal Units (AU) | D7: 40 | F7: Animal Unit | N7: Your
B8: Breeding Females | D8: 40 | F8: Calf | G8: Your | M8: Enterprise | N8: Enterprise
E9: Your | F9: Quantity | G9: Quantity | J9: Your | L9: Your | M9: Total | N9: Total
A10: REVENUE | D10: Head | E10: Head | F10: Per Head | G10: Per Head | H10: Units | I10: $/Unit | J10: $/Unit | K10: Total | L10: Total | M10: ="(" & D7 & " AUs)" -> (40 AUs) | N10: ="(" & E7 & " AUs)" -> ( AUs)
B11: Steer | D11: 0.425 | F11: 4.8 | H11: CWT | I11: 140 | K11: 285.6 | L11: =+E11*G11*J11 -> 0 | M11: 11424 | N11: =+L11*E$7 -> 0
B12: Heifer | D12: 0.3 | F12: 4.5 | H12: CWT | I12: 126 | K12: 170.1 | L12: =+E12*G12*J12 -> 0 | M12: 6804 | N12: =+L12*E$7 -> 0
B13: Cull Cow | D13: 0.1 | F13: 9 | H13: CWT | I13: 45 | K13: 40.5 | L13: 0 | M13: 1620 | N13: 0
B14: Cull Bull | D14: 0.01 | F14: 16 | H14: CWT | I14: 65 | K14: 10.4 | L14: 0 | M14: 416 | N14: 0
D15: 0 | F15: 0 | I15: 0 | K15: 0 | L15: 0 | M15: 0 | N15: 0
D16: 0 | F16: 0 | I16: 0 | K16: 0 | L16: 0 | M16: 0 | N16: 0
A17: Total Revenue | F17: 339 | K17: 506.6 | L17: =+SUM(L11:L16) -> 0 | M17: 20264 | N17: =+SUM(N11:N16) -> 0
F18: 445
F19: 106 | M19: Enterprise | N19: Enterprise
A20: VARIABLE COSTS | F20: Quantity | G20: Quantity | H20: Units | I20: $/Unit | J20: $/Unit | K20: Total | L20: Total | M20: Total | N20: Total
A21: Production Costs
B22: Miscellaneous
F23: 1 | I23: 0 | K23: 0 | L23: =+J23*G23 -> 0 | M23: 0 | N23: =+L23*E$7 -> 0
F24: 1 | I24: 0 | K24: 0 | L24: 0 | M24: 0 | N24: 0
B25: Marketing Expense | F25: 1 | H25: AU | I25: 9.0325 | K25: 9.0325 | L25: 0 | M25: 361.3 | N25: 0
B26: Feed
C27: Salt & Mineral - Cow | F27: 30 | H27: Pound | I27: 0.2 | K27: 6 | L27: =+J27*G27 -> 0 | M27: 240 | N27: =+L27*E$7 -> 0
C28: Supplement - Cow | F28: 500 | H28: Pound | I28: 0.2 | K28: 100 | L28: 0 | M28: 4000 | N28: 0
C29: Bermuda Hay | F29: 2 | H29: Roll | I29: 55 | K29: 110 | L29: 0 | M29: 4400 | N29: 0
F30: 0 | I30: 0 | K30: 0 | L30: 0 | M30: 0 | N30: 0
F31: 0 | I31: 0 | K31: 0 | L31: 0 | M31: 0 | N31: 0
F32: 0 | I32: 0 | K32: 0 | L32: 0 | M32: 0 | N32: 0
B33: Vet. Medicine
C34: Vet. Medicine - Cow | F34: 1 | H34: Head | I34: 7 | K34: 7 | L34: =+J34*G34 -> 0 | M34: 280 | N34: =+L34*E$7 -> 0
F35: 0 | I35: 0 | K35: 0 | L35: 0 | M35: 0 | N35: 0
F36: 0 | I36: 0 | K36: 0 | L36: 0 | M36: 0 | N36: 0
F37: 0 | I37: 0 | K37: 0 | L37: 0 | M37: 0 | N37: 0
B38: Fuel | F38: 1 | H38: AU | I38: 14.208 | K38: 14.208 | L38: 0 | M38: 568.32 | N38: 0
B39: Lube (As a % of fuel) | F39: 0.1 | H39: Percent | I39: 14.208 | K39: 1.4208 | L39: 0 | M39: 56.832 | N39: 0
B40: Repairs | F40: 1 | H40: AU | I40: 5.960048438 | K40: 5.960048438 | L40: 0 | M40: 238.4019375 | N40: 0
B41: Labor | F41: 8.508 | H41: Hours | I41: 5.186304654 | K41: 44.12508 | L41: 0 | M41: 1765.0032 | N41: 0
B42: Utilities | F42: 1 | H42: AU | I42: 0 | K42: 0 | L42: 0 | M42: 0 | N42: 0
K43: 0 | L43: =+J43*G43 -> 0 | M43: 0 | N43: 0
K44: 0 | L44: 0 | M44: 0 | N44: 0
K45: 0 | L45: 0 | M45: 0 | N45: 0
B46: Interest on Credit Line | I46: 0.0475 | K46: 22.39475276 | L46: =+SUM(L21:L45)/2*J46 -> 0 | M46: 895.7901105 | N46: 0
A47: Total Variable Costs | K47: 320.1411812 | L47: =+SUM(L23:L46) -> 0 | M47: 12805.64725 | N47: =+SUM(N23:N46) -> 0
A49: Planned Returns Above Variable Costs: | K49: 186.4588188 | L49: =+L17-L47 -> 0 | M49: 7458.352752 | N49: =+N17-N47 -> 0
B50: Average Calf Breakeven Price to Cover Variable Costs | I50: 79.42217735 | J50: =IF((E11*G11+E12*G12)=0,"n/a",(L47-SUM(L13:L16))/(E11*G11+E12*G12)) -> n/a | K50: CWT
M51: Enterprise | N51: Enterprise
A52: FIXED COSTS | F52: Quantity | G52: Quantity | H52: Units | I52: $/Unit | J52: $/Unit | K52: Total | L52: Total | M52: Total | N52: Total
B53: Depreciation - Equipment | F53: 1 | H53: AU | I53: 41.88592578 | K53: 41.88592578 | L53: =+G53*J53 -> 0 | M53: 1675.437031 | N53: =+L53*E$7 -> 0
B54: Depreciation - Livestock | F54: 1 | H54: AU | I54: 14.98333333 | K54: 14.98333333 | L54: 0 | M54: 599.3333333 | N54: 0
B55: Equipment Investment | F55: 1027.089934 | H55: dollars | I55: 0.06 | K55: 61.62539606 | L55: 0 | M55: 2465.015843 | N55: 0
B56: Insurance | F56: 1 | H56: AU | I56: 0 | K56: 0 | L56: 0 | M56: 0 | N56: 0
B57: Management Fee, Owner/Operator Labor | F57: 1 | H57: AU | I57: 0 | K57: 0 | L57: =+J57*G57 -> 0 | M57: 0 | N57: 0
B58: Salaried Labor | F58: 1 | H58: AU | I58: 0 | K58: 0 | L58: =+J58*G58 -> 0 | M58: 0 | N58: 0
B59: Pasture Cost | F59: 8 | H59: Acres | I59: 25 | K59: 200 | L59: 0 | M59: 8000 | N59: 0
K60: 0 | L60: =+G60*J60 -> 0 | M60: 0 | N60: 0
K61: 0 | L61: 0 | M61: 0 | N61: 0
A62: Total Fixed Costs | K62: 318.4946552 | L62: =+SUM(L53:L59) -> 0 | M62: 12739.78621 | N62: =+SUM(N53:N59) -> 0
A63: Total Costs | K63: 638.6358364 | L63: =+L47+L62 -> 0 | M63: 25545.43346 | N63: =+N47+N62 -> 0
A64: Planned Returns to Management, Risk, and Profit: | K64: -132.0358364 | L64: =+L17-L63 -> 0 | M64: -5281.433455 | N64: =+N17-N63 -> 0
B65: Average Calf Breakeven Price to Cover Total Costs | I65: 173.3734031 | J65: =IF((E11*G11+E12*G12)=0,"n/a",(L63-SUM(L13:L16))/(E11*G11+E12*G12)) -> n/a | K65: CWT
C67: Sensitivity Analysis for Example
C68: Example Weaning Percent | D68: Example Gross Sales per Animal Unit | F68: Pounds Produced per Animal Unit | H68: Example Breakeven Calf Pay Weight to Cover Total Cost | K68: Example Average Breakeven Price to Cover Total Cost
C69: 0.91 | D69: 538.7670588 | F69: 468.9294118 | H69: 539.7812849 | K69: 161.9421897
C70: 0.88 | D70: 522.6835294 | F70: 456.9647059 | H70: 560.5421035 | K70: 167.4629461
C71: 0.85 | D71: 506.6 | F71: 445 | H71: 582.9637877 | K71: 173.3734031
C72: 0.82 | D72: 490.5164706 | F72: 433.0352941 | H72: 607.2539455 | K72: 179.7163324
C73: 0.79 | D73: 474.4329412 | F73: 421.0705882 | H73: 633.6562909 | K73: 186.5410033
D75: ="Example Male "&F8&" Price" -> Example Male Calf Price | K75: =+I11 -> 140
D76: ="Example Female "&F8&" Price" -> Example Female Calf Price | K76: =+I12 -> 126
D77: ="Example Weighted Average "&F8&" Price ($/cwt)" -> Example Weighted Average Calf Price ($/cwt) | K77: =+(K11+K12)/(D11*F11+D12*F12) -> 134.4247788
C79: Sensitivity Analysis for Your Values
C80: Your Weaning Percent | D80: ="Your Gross Sales per "&F7 -> Your Gross Sales per Animal Unit | F80: ="Pounds Produced per "&F7 -> Pounds Produced per Animal Unit | H80: ="Your Breakeven "&F8&" Pay Weight to Cover Total Cost" -> Your Breakeven Calf Pay Weight to Cover Total Cost | K80: Your Average Breakeven Price to Cover Total Cost
C81: =+C82+C69-C70 -> 1.06 | D81: =+IF($C$83=0,0,$L$17-$L$11-$L$12+($L$11+$L$12)*C81/$C$83) -> 0 | F81: =IF($C$83=0,0,$M$87*C81/$C$83+$M$88) -> 0 | H81: =IF($D$83=0,0,(YTotExp-(YTotRet+YTotExp-$L$11-$L$12))/(YPrice/100)/(C81-$E$13*$E$7/$E$8)/($E$8/$E$7)) -> 0 | K81: =IF(F81-$M$88=0,0,(YTotExp-(YTotRet+YTotExp-$L$11-$L$12))/(F81-$M$88)*100) -> 0
C82: =+C83+C70-C71 -> 1.03 | D82: =+IF($C$83=0,0,$L$17-$L$11-$L$12+($L$11+$L$12)*C82/$C$83) -> 0 | F82: =IF($C$83=0,0,$M$87*C82/$C$83+$M$88) -> 0 | H82: =IF($D$83=0,0,(YTotExp-(YTotRet+YTotExp-$L$11-$L$12))/(YPrice/100)/(C82-$E$13*$E$7/$E$8)/($E$8/$E$7)) -> 0 | K82: =IF(F82-$M$88=0,0,(YTotExp-(YTotRet+YTotExp-$L$11-$L$12))/(F82-$M$88)*100) -> 0
C83: 1 | D83: =+L17 -> 0 | F83: =M87+M88 -> 0 | H83: =IF($D$83=0,0,(YTotExp-(YTotRet+YTotExp-$L$11-$L$12))/(YPrice/100)/(C83-$E$13*$E$7/$E$8)/($E$8/$E$7)) -> 0 | K83: =IF(F83-$M$88=0,0,(YTotExp-(YTotRet+YTotExp-$L$11-$L$12))/(F83-$M$88)*100) -> 0
C84: =+C83+C72-C71 -> 0.97 | D84: =+IF($C$83=0,0,$L$17-$L$11-$L$12+($L$11+$L$12)*C84/$C$83) -> 0 | F84: =IF($C$83=0,0,$M$87*C84/$C$83+$M$88) -> 0 | H84: =IF($D$83=0,0,(YTotExp-(YTotRet+YTotExp-$L$11-$L$12))/(YPrice/100)/(C84-$E$13*$E$7/$E$8)/($E$8/$E$7)) -> 0 | K84: =IF(F84-$M$88=0,0,(YTotExp-(YTotRet+YTotExp-$L$11-$L$12))/(F84-$M$88)*100) -> 0
C85: =+C84+C73-C72 -> 0.94 | D85: =+IF($C$83=0,0,$L$17-$L$11-$L$12+($L$11+$L$12)*C85/$C$83) -> 0 | F85: =IF($C$83=0,0,$M$87*C85/$C$83+$M$88) -> 0 | H85: =IF($D$83=0,0,(YTotExp-(YTotRet+YTotExp-$L$11-$L$12))/(YPrice/100)/(C85-$E$13*$E$7/$E$8)/($E$8/$E$7)) -> 0 | K85: =IF(F85-$M$88=0,0,(YTotExp-(YTotRet+YTotExp-$L$11-$L$12))/(F85-$M$88)*100) -> 0
D87: ="Your Male "&F8&" Price" -> Your Male Calf Price | K87: =+J11 -> 0 | M87: =(E11*G11+E12*G12)*100 -> 0
D88: ="Your Female "&F8&" Price" -> Your Female Calf Price | K88: =+J12 -> 0 | M88: =(E13*G13+E14*G14)*100 -> 0
D89: ="Your Weighted Average "&F8&" Price ($/cwt)" -> Your Weighted Average Calf Price ($/cwt) | K89: =+IF((E11*G11+E12*G12)=0,0,(L11+L12)/(E11*G11+E12*G12)) -> 0
A91: Developed by Jason Johnson, Associate Professor and Extension Economist, Texas A&M AgriLife Extension, 254-968-4144.
A93: Information presented is prepared solely as a general guide and not intended to recognize or predict the costs and returns from any one operation. Brand names are mentioned only as examples and imply no endorsement.

Sheet CowCalfNative
A1: Projections for Planning Purposes Only -- Not to be Used without Updating
A2: 2018 Estimated Costs and Returns per Animal Unit
A3: Cow-Calf Native Pasture
A4: Enter your name for this budget in the cell above.
A5: Enter Your Values in the cells highlighed in MAROON.
E6: Your Cows
B7: Animal Units (AU) | D7: 40 | F7: Animal Unit | N7: Your
B8: Breeding Females | D8: 40 | F8: Calf | G8: Your | M8: Enterprise | N8: Enterprise
E9: Your | F9: Quantity | G9: Quantity | J9: Your | L9: Your | M9: Total | N9: Total
A10: REVENUE | D10: Head | E10: Head | F10: Per Head | G10: Per Head | H10: Units | I10: $/Unit | J10: $/Unit | K10: Total | L10: Total | M10: ="(" & D7 & " AUs)" -> (40 AUs) | N10: ="(" & E7 & " AUs)" -> ( AUs)
B11: Steer | D11: 0.425 | F11: 4.8 | H11: CWT | I11: 140 | K11: 285.6 | L11: =+E11*G11*J11 -> 0 | M11: 11424 | N11: =+L11*E$7 -> 0
B12: Heifer | D12: 0.3 | F12: 4.5 | H12: CWT | I12: 126 | K12: 170.1 | L12: =+E12*G12*J12 -> 0 | M12: 6804 | N12: =+L12*E$7 -> 0
B13: Cull Cow | D13: 0.1 | F13: 9 | H13: CWT | I13: 45 | K13: 40.5 | L13: 0 | M13: 1620 | N13: 0
B14: Cull Bull | D14: 0.01 | F14: 16 | H14: CWT | I14: 65 | K14: 10.4 | L14: 0 | M14: 416 | N14: 0
D15: 0 | F15: 0 | I15: 0 | K15: 0 | L15: 0 | M15: 0 | N15: 0
D16: 0 | F16: 0 | I16: 0 | K16: 0 | L16: 0 | M16: 0 | N16: 0
A17: Total Revenue | F17: 339 | K17: 506.6 | L17: =+SUM(L11:L16) -> 0 | M17: 20264 | N17: =+SUM(N11:N16) -> 0
F18: 445
F19: 106 | M19: Enterprise | N19: Enterprise
A20: VARIABLE COSTS | F20: Quantity | G20: Quantity | H20: Units | I20: $/Unit | J20: $/Unit | K20: Total | L20: Total | M20: Total | N20: Total
A21: Production Costs
B22: Miscellaneous
F23: 1 | I23: 0 | K23: 0 | L23: =+J23*G23 -> 0 | M23: 0 | N23: =+L23*E$7 -> 0
F24: 1 | I24: 0 | K24: 0 | L24: 0 | M24: 0 | N24: 0
B25: Marketing Expense | F25: 1 | H25: AU | I25: 9.0325 | K25: 9.0325 | L25: 0 | M25: 361.3 | N25: 0
B26: Feed
C27: Salt & Mineral - Cow | F27: 40 | H27: Pound | I27: 0.2 | K27: 8 | L27: =+J27*G27 -> 0 | M27: 320 | N27: =+L27*E$7 -> 0
C28: Supplement - Cow | F28: 500 | H28: Pound | I28: 0.2 | K28: 100 | L28: 0 | M28: 4000 | N28: 0
C29: Bermuda Hay | F29: 3 | H29: Roll | I29: 55 | K29: 165 | L29: 0 | M29: 6600 | N29: 0
F30: 0 | I30: 0 | K30: 0 | L30: 0 | M30: 0 | N30: 0
F31: 0 | I31: 0 | K31: 0 | L31: 0 | M31: 0 | N31: 0
F32: 0 | I32: 0 | K32: 0 | L32: 0 | M32: 0 | N32: 0
B33: Vet. Medicine
C34: Vet. Medicine - Cow | F34: 1 | H34: Head | I34: 7 | K34: 7 | L34: 0 | M34: 280 | N34: =+L34*E$7 -> 0
F35: 0 | I35: 0 | K35: 0 | L35: 0 | M35: 0 | N35: 0
F36: 0 | I36: 0 | K36: 0 | L36: 0 | M36: 0 | N36: 0
F37: 0 | I37: 0 | K37: 0 | L37: 0 | M37: 0 | N37: 0
B38: Fuel | F38: 1 | H38: AU | I38: 14.208 | K38: 14.208 | L38: 0 | M38: 568.32 | N38: 0
B39: Lube (As a % of fuel) | F39: 0.1 | H39: Percent | I39: 14.208 | K39: 1.4208 | L39: 0 | M39: 56.832 | N39: 0
B40: Repairs | F40: 1 | H40: AU | I40: 5.960048438 | K40: 5.960048438 | L40: 0 | M40: 238.4019375 | N40: 0
B41: Labor | F41: 8.508 | H41: Hours | I41: 5.186304654 | K41: 44.12508 | L41: 0 | M41: 1765.0032 | N41: 0
B42: Utilities | F42: 1 | H42: AU | I42: 0 | K42: 0 | L42: 0 | M42: 0 | N42: 0
K43: 0 | L43: =+J43*G43 -> 0 | M43: 0 | N43: 0
K44: 0 | L44: =+J44*G44 -> 0 | M44: 0 | N44: 0
K45: 0 | L45: 0 | M45: 0 | N45: 0
B46: Interest on Credit Line | I46: 0.0475 | K46: 21.33036235 | L46: =+SUM(L21:L45)/2*J46 -> 0 | M46: 853.2144941 | N46: 0
A47: Total Variable Costs | K47: 376.0767908 | L47: =+SUM(L23:L46) -> 0 | M47: 15043.07163 | N47: =+SUM(N23:N46) -> 0
A49: Planned Returns Above Variable Costs: | K49: 130.5232092 | L49: =+L17-L47 -> 0 | M49: 5220.928368 | N49: =+N17-N47 -> 0
B50: Average Calf Breakeven Price to Cover Variable Costs | I50: 95.92235717 | J50: =IF((E11*G11+E12*G12)=0,"n/a",(L47-SUM(L13:L16))/(E11*G11+E12*G12)) -> n/a | K50: CWT
M51: Enterprise | N51: Enterprise
A52: FIXED COSTS | F52: Quantity | G52: Quantity | H52: Units | I52: $/Unit | J52: $/Unit | K52: Total | L52: Total | M52: Total | N52: Total
B53: Depreciation - Equipment | F53: 1 | H53: AU | I53: 41.88592578 | K53: 41.88592578 | L53: =+G53*J53 -> 0 | M53: 1675.437031 | N53: =+L53*E$7 -> 0
B54: Depreciation - Livestock | F54: 1 | H54: AU | I54: 14.98333333 | K54: 14.98333333 | L54: 0 | M54: 599.3333333 | N54: 0
B55: Equipment Investment | F55: 1027.089934 | H55: dollars | I55: 0.06 | K55: 61.62539606 | L55: 0 | M55: 2465.015843 | N55: 0
B56: Insurance | F56: 1 | H56: AU | I56: 0 | K56: 0 | L56: 0 | M56: 0 | N56: 0
B57: Management Fee, Owner/Operator Labor | F57: 1 | H57: AU | I57: 0 | K57: 0 | L57: =+J57*G57 -> 0 | M57: 0 | N57: 0
B58: Salaried Labor | F58: 1 | H58: AU | I58: 0 | K58: 0 | L58: =+J58*G58 -> 0 | M58: 0 | N58: 0
B59: Pasture Cost | F59: 25 | H59: Acres | I59: 12 | K59: 300 | L59: 0 | M59: 12000 | N59: 0
K60: 0 | L60: 0 | M60: 0 | N60: 0
K61: 0 | L61: 0 | M61: 0 | N61: 0
A62: Total Fixed Costs | K62: 418.4946552 | L62: =+SUM(L53:L59) -> 0 | M62: 16739.78621 | N62: =+SUM(N53:N59) -> 0
A63: Total Costs | K63: 794.571446 | L63: =+L47+L62 -> 0 | M63: 31782.85784 | N63: =+N47+N62 -> 0
A64: Planned Returns to Management, Risk, and Profit: | K64: -287.971446 | L64: =+L17-L63 -> 0 | M64: -11518.85784 | N64: =+N17-N63 -> 0
B65: Average Calf Breakeven Price to Cover Total Costs | I65: 219.372108 | J65: =IF((E11*G11+E12*G12)=0,"n/a",(L63-SUM(L13:L16))/(E11*G11+E12*G12)) -> n/a | K65: CWT
C67: Sensitivity Analysis for Example
C68: Example Weaning Percent | D68: Example Gross Sales per Animal Unit | F68: Pounds Produced per Animal Unit | H68: Example Breakeven Calf Pay Weight to Cover Total Cost | K68: Example Average Breakeven Price to Cover Total Cost
C69: 0.91 | D69: 538.7670588 | F69: 468.9294118 | H69: 682.9937938 | K69: 204.9080129
C70: 0.88 | D70: 522.6835294 | F70: 456.9647059 | H70: 709.2627859 | K70: 211.8935134
C71: 0.85 | D71: 506.6 | F71: 445 | H71: 737.6332973 | K71: 219.372108
C72: 0.82 | D72: 490.5164706 | F72: 433.0352941 | H72: 768.368018 | K72: 227.3979168
C73: 0.79 | D73: 474.4329412 | F73: 421.0705882 | H73: 801.7753231 | K73: 236.0332807
D75: ="Example Male "&F8&" Price" -> Example Male Calf Price | K75: =+I11 -> 140
D76: ="Example Female "&F8&" Price" -> Example Female Calf Price | K76: =+I12 -> 126
D77: ="Example Weighted Average "&F8&" Price ($/cwt)" -> Example Weighted Average Calf Price ($/cwt) | K77: =+(K11+K12)/(D11*F11+D12*F12) -> 134.4247788
C79: Sensitivity Analysis for Your Values
C80: Your Weaning Percent | D80: ="Your Gross Sales per "&F7 -> Your Gross Sales per Animal Unit | F80: ="Pounds Produced per "&F7 -> Pounds Produced per Animal Unit | H80: ="Your Breakeven "&F8&" Pay Weight to Cover Total Cost" -> Your Breakeven Calf Pay Weight to Cover Total Cost | K80: Your Average Breakeven Price to Cover Total Cost
C81: =+C82+C69-C70 -> 1.06 | D81: =+IF($C$83=0,0,$L$17-$L$11-$L$12+($L$11+$L$12)*C81/$C$83) -> 0 | F81: =IF($C$83=0,0,$M$87*C81/$C$83+$M$88) -> 0 | H81: =IF($D$83=0,0,(YTotExp-(YTotRet+YTotExp-$L$11-$L$12))/(YPrice/100)/(C81-$E$13*$E$7/$E$8)/($E$8/$E$7)) -> 0 | K81: =IF(F81-$M$88=0,0,(YTotExp-(YTotRet+YTotExp-$L$11-$L$12))/(F81-$M$88)*100) -> 0
C82: =+C83+C70-C71 -> 1.03 | D82: =+IF($C$83=0,0,$L$17-$L$11-$L$12+($L$11+$L$12)*C82/$C$83) -> 0 | F82: =IF($C$83=0,0,$M$87*C82/$C$83+$M$88) -> 0 | H82: =IF($D$83=0,0,(YTotExp-(YTotRet+YTotExp-$L$11-$L$12))/(YPrice/100)/(C82-$E$13*$E$7/$E$8)/($E$8/$E$7)) -> 0 | K82: =IF(F82-$M$88=0,0,(YTotExp-(YTotRet+YTotExp-$L$11-$L$12))/(F82-$M$88)*100) -> 0
C83: 1 | D83: =+L17 -> 0 | F83: =M87+M88 -> 0 | H83: =IF($D$83=0,0,(YTotExp-(YTotRet+YTotExp-$L$11-$L$12))/(YPrice/100)/(C83-$E$13*$E$7/$E$8)/($E$8/$E$7)) -> 0 | K83: =IF(F83-$M$88=0,0,(YTotExp-(YTotRet+YTotExp-$L$11-$L$12))/(F83-$M$88)*100) -> 0
C84: =+C83+C72-C71 -> 0.97 | D84: =+IF($C$83=0,0,$L$17-$L$11-$L$12+($L$11+$L$12)*C84/$C$83) -> 0 | F84: =IF($C$83=0,0,$M$87*C84/$C$83+$M$88) -> 0 | H84: =IF($D$83=0,0,(YTotExp-(YTotRet+YTotExp-$L$11-$L$12))/(YPrice/100)/(C84-$E$13*$E$7/$E$8)/($E$8/$E$7)) -> 0 | K84: =IF(F84-$M$88=0,0,(YTotExp-(YTotRet+YTotExp-$L$11-$L$12))/(F84-$M$88)*100) -> 0
C85: =+C84+C73-C72 -> 0.94 | D85: =+IF($C$83=0,0,$L$17-$L$11-$L$12+($L$11+$L$12)*C85/$C$83) -> 0 | F85: =IF($C$83=0,0,$M$87*C85/$C$83+$M$88) -> 0 | H85: =IF($D$83=0,0,(YTotExp-(YTotRet+YTotExp-$L$11-$L$12))/(YPrice/100)/(C85-$E$13*$E$7/$E$8)/($E$8/$E$7)) -> 0 | K85: =IF(F85-$M$88=0,0,(YTotExp-(YTotRet+YTotExp-$L$11-$L$12))/(F85-$M$88)*100) -> 0
D87: ="Your Male "&F8&" Price" -> Your Male Calf Price | K87: =+J11 -> 0 | M87: =(E11*G11+E12*G12)*100 -> 0
D88: ="Your Female "&F8&" Price" -> Your Female Calf Price | K88: =+J12 -> 0 | M88: =(E13*G13+E14*G14)*100 -> 0
D89: ="Your Weighted Average "&F8&" Price ($/cwt)" -> Your Weighted Average Calf Price ($/cwt) | K89: =+IF((E11*G11+E12*G12)=0,0,(L11+L12)/(E11*G11+E12*G12)) -> 0
A91: Developed by Jason Johnson, Associate Professor and Extension Economist, Texas A&M AgriLife Extension, 254-968-4144.
A93: Information presented is prepared solely as a general guide and not intended to recognize or predict the costs and returns from any one operation. Brand names are mentioned only as examples and imply no endorsement.

Sheet StockersNative
A1: Projections for Planning Purposes Only -- Not to be Used without Updating
A2: 2018 Estimated Costs and Returns per Animal
A3: Stockers on Native Pasture
A4: Enter your name for this budget in the cell above.
A5: Enter Your Values in the cells highlighed in MAROON. | M5: Stocker
E6: Your Head | N6: Your
B7: Number of Head | D7: 320 | G7: Your | M7: Enterprise | N7: Enterprise
E8: Your | F8: Pay Weight | G8: Weight | J8: Your | L8: Your | M8: Total | N8: Total
A9: REVENUE | D9: Head | E9: Head | F9: or Amount | G9: or Amount | H9: Units | I9: $/Unit | J9: $/Unit | K9: Total | L9: Total | M9: ="(" & D7 & " Head)" -> (320 Head) | N9: ="(" & E7 & " Head)" -> ( Head)
B11: Stocker | D11: 0.98 | F11: 7.3 | H11: CWT | I11: 140 | K11: 1001.56 | L11: =+J11*G11*E11 -> 0 | M11: 320499.2 | N11: =+L11*E$7 -> 0
D12: 0.98 | F12: 0 | I12: 0 | K12: 0 | L12: 0 | M12: 0 | N12: 0
D13: 0.98 | F13: 0 | I13: 0 | K13: 0 | L13: 0 | M13: 0 | N13: 0
A14: Total Revenue | K14: 1001.56 | L14: =+L11 -> 0 | M14: 320499.2 | N14: 0
M15: Enterprise | N15: Enterprise
A16: VARIABLE COSTS | F16: Quantity | G16: Quantity | H16: Units | I16: $/Unit | J16: $/Unit | K16: Total | L16: Total | M16: Total | N16: Total
A17: Production Costs
B18: Stocker Purchase | F18: 4 | H18: CWT | I18: 185 | K18: 740 | L18: =+J18*G18 -> 0 | M18: 236800 | N18: =+L18*E$7 -> 0
B19: Stocker Delivery | F19: 1 | H19: Head | I19: 0 | K19: 0 | L19: =+J19*G19 -> 0 | M19: 0 | N19: =+L19*E$7 -> 0
B20: Grazing
C21: Acre Lease | F21: 5 | H21: Acre | I21: 12 | K21: 60 | L21: 0 | M21: 19200 | N21: =+L21*E$7 -> 0
C22: Grazing by Month | F22: 0 | H22: Month | I22: 0 | K22: 0 | L22: 0 | M22: 0 | N22: 0
C23: Gain Contract | F23: 0 | H23: Pounds | I23: 0 | K23: 0 | L23: 0 | M23: 0 | N23: 0
C24: On Weight Per Month | F24: 0 | H24: Month | I24: 0 | K24: 0 | L24: =+G24*J24*G18 -> 0 | M24: 0 | N24: 0
B25: Health
C26: Vet. Medicine - Stocker | F26: 1 | H26: Head | I26: 7 | K26: 7 | L26: =+J26*G26 -> 0 | M26: 2240 | N26: =+L26*E$7 -> 0
F27: 0 | I27: 0 | K27: 0 | L27: 0 | M27: 0 | N27: 0
F28: 0 | I28: 0 | K28: 0 | L28: 0 | M28: 0 | N28: 0
F29: 0 | I29: 0 | K29: 0 | L29: 0 | M29: 0 | N29: 0
B30: Feed
C31: Bermuda Hay Bale | F31: 4 | H31: Bale | I31: 7 | K31: 28 | L31: 0 | M31: 8960 | N31: 0
C32: Mineral - Stocker | F32: 0.263 | H32: CWT | I32: 15 | K32: 3.945 | L32: 0 | M32: 1262.4 | N32: 0
C33: Supplement - Stocker | F33: 0.75 | H33: CWT | I33: 10.75 | K33: 8.0625 | L33: 0 | M33: 2580 | N33: 0
F34: 0 | I34: 0 | K34: 0 | L34: 0 | M34: 0 | N34: 0
F35: 0 | I35: 0 | K35: 0 | L35: 0 | M35: 0 | N35: 0
F36: 0 | I36: 0 | K36: 0 | L36: 0 | M36: 0 | N36: 0
B37: Miscellaneous
C38: Miscellaneous | F38: 1 | H38: Head | I38: 4 | K38: 4 | L38: =+J38*G38 -> 0 | M38: 1280 | N38: =+L38*E$7 -> 0
F39: 1 | I39: 0 | K39: 0 | L39: 0 | M39: 0 | N39: 0
F40: 1 | I40: 0 | K40: 0 | L40: 0 | M40: 0 | N40: 0
B41: Fuel | F41: 1 | H41: Head | I41: 3.41875 | K41: 3.41875 | L41: 0 | M41: 1094 | N41: 0
B42: Lube (As a % of fuel) | F42: 0.1 | H42: Percent | I42: 3.41875 | K42: 0.341875 | L42: 0 | M42: 109.4 | N42: 0
B43: Utilities | F43: 1 | H43: Head | I43: 0 | K43: 0 | L43: 0 | M43: 0 | N43: 0
B44: Repairs | F44: 1 | H44: Head | I44: 0.96 | K44: 0.96 | L44: 0 | M44: 307.2 | N44: 0
B45: Marketing | F45: 0.98 | H45: Head | I45: 14.6 | K45: 14.308 | L45: 0 | M45: 4578.56 | N45: 0
B46: Labor | F46: 1 | H46: Head | I46: 15.83212 | K46: 15.83212 | L46: 0 | M46: 5066.2784 | N46: 0
K47: 0 | L47: =+J47*G47 -> 0 | M47: 0 | N47: =+L47*E$7 -> 0
K48: 0 | L48: =+J48*G48 -> 0 | M48: 0 | N48: =+L48*E$7 -> 0
B49: Interest on Credit Line | I49: 0.0475 | K49: 13.83693494 | L49: =+SUM(L18:L46)*J49/2 -> 0 | M49: 4427.819182 | N49: 0
A50: Total Variable Costs | K50: 899.7051799 | L50: =+SUM(L18:L49) -> 0 | M50: 287905.6576 | N50: =+SUM(N18:N49) -> 0
A52: Planned Returns Above Variable Costs: | K52: 101.8548201 | L52: =+L14-L50 -> 0 | M52: 32593.54242 | N52: =+N14-N50 -> 0
B54: Breakeven Price to Cover Variable Costs | I54: 125.7625356 | J54: =+IF(G11=0,"n/a",(L50-SUM(L12:L13))/(G11*E11)) -> n/a | K54: CWT
M55: Enterprise | N55: Enterprise
A56: FIXED COSTS | F56: Quantity | G56: Quantity | H56: Units | I56: $/Unit | J56: $/Unit | K56: Total | L56: Total | M56: Total | N56: Total
B58: Depreciation | F58: 1 | H58: Head | I58: 15.50285714 | K58: 15.50285714 | L58: =+J58*G58 -> 0 | M58: 4960.914286 | N58: =+L58*E$7 -> 0
B59: Equipment Investment | F59: 258.00625 | H59: dollars | I59: 0.06 | K59: 15.480375 | L59: 0 | M59: 4953.72 | N59: 0
B60: Salaried Labor | F60: 1 | H60: Head | I60: 0 | K60: 0 | L60: 0 | M60: 0 | N60: 0
B61: Management Fee, Owner/Operator Labor | F61: 1 | H61: Head | I61: 0 | K61: 0 | L61: 0 | M61: 0 | N61: 0
B62: Insurance | F62: 1 | H62: Head | I62: 0 | K62: 0 | L62: 0 | M62: 0 | N62: 0
K63: 0 | L63: 0 | M63: 0 | N63: 0
K64: 0 | L64: 0 | M64: 0 | N64: 0
A65: Total Fixed Costs | K65: 30.98323214 | L65: =+SUM(L58:L62) -> 0 | M65: 9914.634286 | N65: =+SUM(N58:N62) -> 0
A67: Total Costs | K67: 930.6884121 | L67: =+L50+L65 -> 0 | M67: 297820.2919 | N67: =+N50+N65 -> 0
A69: Planned Returns to Management, Risk, and Profit: | K69: 70.87158791 | L69: =+L52-L65 -> 0 | M69: 22678.90813 | N69: =+N52-N65 -> 0
A71: Breakeven Price to Cover Total Costs | I71: 130.0934319 | J71: =+IF(G11=0,"n/a",(L67-SUM(L12:L13))/(G11*E11)) -> n/a | K71: CWT
C73: Example Break Even Sensitivity Analysis
F74: Purchase Weight (Lbs/Hd): 400 | H74: Sales Price/Cwt of $Total
D75: Net Pay Weight | F75: Sales Price/Cwt 140.00 | H75: Purchase Price/Cwt 185.00
C76: ADG (Lbs/day) | D76: with Shrink | F76: B/E Purchase Price ($/CWT) | H76: B/E Sales Price ($/CWT)
C77: 3.245901639 | D77: 796 | F77: 225.355897 | H77: 119.3067906
C78: 2.975409836 | D78: 763 | F78: 214.036897 | H78: 124.4668484
C79: 2.704918033 | D79: 730 | F79: 202.717897 | H79: 130.0934319
C80: 2.43442623 | D80: 697 | F80: 191.398897 | H80: 136.2528053
C81: 2.163934426 | D81: 664 | F81: 180.079897 | H81: 143.0244056
C83: Your Average Daily Gain | E83: 0 | F83: Pounds per Day
C84: =+"Your Animal"&IF(M5="Stocker"," Grazing"," Feeding")&" Days" -> Your Animal Grazing Days | E84: 0 | F84: Days
C85: Your Sale Shrink | E85: 0
C87: Your Break Even Sensitivity Analysis
F88: =+"Purchase Weight (Lbs/Hd): "&G18*100 -> Purchase Weight (Lbs/Hd): 0 | H88: Sales Price/Cwt of $Total
D89: Net Pay Weight | F89: ="Sales Price/Cwt "&IF(J11="",".00",TEXT(J11,"#.00")) -> Sales Price/Cwt .00 | H89: ="Purchase Price/Cwt "&IF(J18="",".00",TEXT(J18,"#.00")) -> Purchase Price/Cwt .00
C90: ADG (Lbs/day) | D90: with Shrink | F90: B/E Purchase Price ($/CWT) | H90: B/E Sales Price ($/CWT)
C91: =+C93*1.2 -> 0 | D91: =+C91*$E$84+$G$18*100*(1-$E$85) -> 0 | F91: =IF($G$18=0,0,(((D91*$J$11/100*$E$11)-($L$50-SUM($J$12:$J$13)-$L$18)-$L$65)/(100*$G$18))*100) -> 0 | H91: =IF($E$11=0,0,($L$67-SUM($J$12:$J$13))/(D91*$E$11/100)) -> 0
C92: =+C93*1.1 -> 0 | D92: =+C92*$E$84+$G$18*100*(1-$E$85) -> 0 | F92: =IF($G$18=0,0,(((D92*$J$11/100*$E$11)-($L$50-SUM($J$12:$J$13)-$L$18)-$L$65)/(100*$G$18))*100) -> 0 | H92: =IF($E$11=0,0,($L$67-SUM($J$12:$J$13))/(D92*$E$11/100)) -> 0
C93: =+E83 -> 0 | D93: =+C93*$E$84+$G$18*100*(1-$E$85) -> 0 | F93: =IF($G$18=0,0,(((D93*$J$11/100*$E$11)-($L$50-SUM($J$12:$J$13)-$L$18)-$L$65)/(100*$G$18))*100) -> 0 | H93: =IF($E$11=0,0,($L$67-SUM($J$12:$J$13))/(D93*$E$11/100)) -> 0
C94: =+C93*0.9 -> 0 | D94: =+C94*$E$84+$G$18*100*(1-$E$85) -> 0 | F94: =IF($G$18=0,0,(((D94*$J$11/100*$E$11)-($L$50-SUM($J$12:$J$13)-$L$18)-$L$65)/(100*$G$18))*100) -> 0 | H94: =IF($E$11=0,0,($L$67-SUM($J$12:$J$13))/(D94*$E$11/100)) -> 0
C95: =+C93*0.8 -> 0 | D95: =+C95*$E$84+$G$18*100*(1-$E$85) -> 0 | F95: =IF($G$18=0,0,(((D95*$J$11/100*$E$11)-($L$50-SUM($J$12:$J$13)-$L$18)-$L$65)/(100*$G$18))*100) -> 0 | H95: =IF($E$11=0,0,($L$67-SUM($J$12:$J$13))/(D95*$E$11/100)) -> 0
A97: Developed by Jason Johnson, Associate Professor and Extension Economist, Texas A&M AgriLife Extension, 254-968-4144.
A99: Information presented is prepared solely as a general guide and not intended to recognize or predict the costs and returns from any one operation. Brand names are mentioned only as examples and imply no endorsement.

Sheet Livestock Budget
A1: Estimated Costs and Returns per Animal or Breeding Female
A3: Livestock Enterprise
A5: Number of Head of Livestock | D5: 0
A7: Enter Your Values in the cells highlighed in MAROON. | H7: Enterprise
A8: REVENUE | C8: Head | D8: Quantity | E8: Units | F8: $/Unit | G8: Total | H8: Total
B9: Males Sold | C9: 0 | D9: 0 | E9: CWT | F9: 0 | G9: =IF($D$5=0,0,C9/$D$5*D9*F9) -> 0 | H9: =+G9*$D$5 -> 0
B10: Females Sold | C10: 0 | D10: 0 | E10: CWT | F10: 0 | G10: =IF($D$5=0,0,C10/$D$5*D10*F10) -> 0 | H10: =+G10*$D$5 -> 0
B11: Cull Breeding Females | C11: 0 | D11: 0 | E11: CWT | F11: 0 | G11: 0 | H11: 0
B12: Cull Breeding Males | C12: 0 | D12: 0 | E12: CWT | F12: 0 | G12: 0 | H12: 0
B13: Stocker or Feed Animal | C13: 0 | D13: 0 | E13: CWT | F13: 0 | G13: 0 | H13: 0
B14: Other Revenue | C14: 0 | D14: 0 | E14: CWT | F14: 0 | G14: 0 | H14: 0
B15: Other Revenue | C15: 0 | D15: 0 | E15: CWT | F15: 0 | G15: 0 | H15: 0
B16: Other Revenue | C16: 0 | D16: 0 | E16: CWT | F16: 0 | G16: 0 | H16: 0
A18: Total Revenue | G18: =+SUM(G9:G17) -> 0 | H18: =+SUM(H9:H17) -> 0
H20: Enterprise
A21: VARIABLE COSTS | D21: Quantity | E21: Units | F21: $/Unit | G21: Total | H21: Total
A22: Production Costs
B23: Animal Purchase Price, if applicable | D23: 0 | E23: Cwt | F23: 0 | G23: =D23*F23 -> 0 | H23: =+G23*$D$5 -> 0
B24: Pasture | C24: =+SUM(G25:G28) -> 0
C25: Pasture 1 | D25: 0 | E25: Acre | F25: 0 | G25: =D25*F25 -> 0 | H25: =+G25*$D$5 -> 0
C26: Pasture 2 | D26: 0 | E26: Acre | F26: 0 | G26: 0 | H26: 0
C27: Pasture 3 | D27: 0 | E27: Acre | F27: 0 | G27: 0 | H27: 0
C28: Pasture 4 | D28: 0 | E28: Acre | F28: 0 | G28: 0 | H28: 0
B29: Feed | C29: =SUM(G30:G37) -> 0
C30: Hay | D30: 0 | E30: Bales | F30: 0 | G30: =D30*F30 -> 0 | H30: =+G30*$D$5 -> 0
C31: Supplement | D31: 0 | E31: Cwt,lb,etc | F31: 0 | G31: =D31*F31 -> 0 | H31: =+G31*$D$5 -> 0
C32: Salt Minerals | D32: 0 | E32: Cwt | F32: 0 | G32: 0 | H32: 0
C33: Other Feed | D33: 0 | E33: Cwt,lb,etc | F33: 0 | G33: 0 | H33: 0
C34: Other Feed | D34: 0 | E34: Cwt,lb,etc | F34: 0 | G34: 0 | H34: 0
C35: Other Feed | D35: 0 | E35: Cwt,lb,etc | F35: 0 | G35: 0 | H35: 0
C36: Other Feed | D36: 0 | E36: Cwt,lb,etc | F36: 0 | G36: 0 | H36: 0
C37: Other Feed | D37: 0 | E37: Cwt,lb,etc | F37: 0 | G37: 0 | H37: 0
B38: Health | C38: =SUM(G39:G48) -> 0
C39: Vet/Medicine 1 | D39: 0 | E39: Visit,dose,cc's, etc. | F39: 0 | G39: =D39*F39 -> 0 | H39: =+G39*$D$5 -> 0
C40: Vet/Medicine 2 | D40: 0 | E40: Visit,dose,cc's, etc. | F40: 0 | G40: 0 | H40: 0
C41: Vet/Medicine 3 | D41: 0 | E41: Visit,dose,cc's, etc. | F41: 0 | G41: 0 | H41: 0
C42: Vet/Medicine 4 | D42: 0 | E42: Visit,dose,cc's, etc. | F42: 0 | G42: 0 | H42: 0
C43: Vet/Medicine 5 | D43: 0 | E43: Visit,dose,cc's, etc. | F43: 0 | G43: 0 | H43: 0
C44: Vet/Medicine 6 | D44: 0 | E44: Visit,dose,cc's, etc. | F44: 0 | G44: 0 | H44: 0
C45: Vet/Medicine 7 | D45: 0 | E45: Visit,dose,cc's, etc. | F45: 0 | G45: 0 | H45: 0
C46: Vet/Medicine 8 | D46: 0 | E46: Visit,dose,cc's, etc. | F46: 0 | G46: 0 | H46: 0
C47: Vet/Medicine 9 | D47: 0 | E47: Visit,dose,cc's, etc. | F47: 0 | G47: 0 | H47: 0
C48: Vet/Medicine 10 | D48: 0 | E48: Visit,dose,cc's, etc. | F48: 0 | G48: 0 | H48: 0
B50: Fuel, lube, repair | D50: 1 | E50: Head | F50: 0 | G50: 0 | H50: 0
B52: Labor | D52: 0 | E52: Hours | F52: 0 | G52: 0 | H52: 0
B54: Other Variable Expense | D54: 0 | E54: Cwt,lb,etc | F54: 0 | G54: 0 | H54: 0
B55: Other Variable Expense | D55: 0 | E55: Cwt,lb,etc | F55: 0 | G55: 0 | H55: 0
B56: Other Variable Expense | D56: 0 | E56: Cwt,lb,etc | F56: 0 | G56: 0 | H56: 0
B57: Other Variable Expense | D57: 0 | E57: Cwt,lb,etc | F57: 0 | G57: 0 | H57: 0
B58: Other Variable Expense | D58: 0 | E58: Cwt,lb,etc | F58: 0 | G58: 0 | H58: 0
B59: Other Variable Expense | D59: 0 | E59: Cwt,lb,etc | F59: 0 | G59: 0 | H59: 0
B61: Operating Interest | F61: 0 | G61: =+SUM(G23:G59)/2*F61 -> 0 | H61: 0
A63: Total Variable Costs | G63: =+SUM(G23:G62) -> 0 | H63: =+SUM(H23:H62) -> 0
A65: Planned Returns Above Variable Costs | G65: =+G18-G63 -> 0 | H65: =+H18-H63 -> 0
B67: Breakeven Price to Cover Variable Costs | E67: =IF((H101/100+C13*D13)=0,0,(G63-SUM(G11:G12,G14:G16))/(H101/100+C13*D13)) -> 0 | F67: =+E9 -> CWT
H69: Enterprise
A70: FIXED COSTS | D70: Quantity | E70: Units | F70: $/Unit | G70: Total | H70: Total
B71: Depreciation - Equipment | D71: 0 | E71: Head,$,etc | F71: 0 | G71: =D71*F71 -> 0 | H71: =+G71*$D$5 -> 0
B72: Depreciation - Livestock | D72: 0 | E72: Head,$,etc | F72: 0 | G72: =D72*F72 -> 0 | H72: 0
B73: Equipment Investment | D73: 0 | E73: Head,$,etc | F73: 0 | G73: 0 | H73: 0
B74: Insurance | D74: 0 | E74: Head,$,etc | F74: 0 | G74: 0 | H74: 0
B75: Management Fee | D75: 0 | E75: Head,$,etc | F75: 0 | G75: 0 | H75: 0
B76: Owner/Operator Labor | D76: 0 | E76: Head,$,etc | F76: 0 | G76: 0 | H76: 0
B77: Salaried Labor | D77: 0 | E77: Head,$,etc | F77: 0 | G77: 0 | H77: 0
B78: Other Fixed Expense | D78: 0 | E78: Head,$,etc | F78: 0 | G78: 0 | H78: 0
B79: Other Fixed Expense | D79: 0 | E79: Head,$,etc | F79: 0 | G79: 0 | H79: 0
B80: Other Fixed Expense | D80: 0 | E80: Head,$,etc | F80: 0 | G80: 0 | H80: 0
B81: Other Fixed Expense | D81: 0 | E81: Head,$,etc | F81: 0 | G81: 0 | H81: 0
B82: Other Fixed Expense | D82: 0 | E82: Head,$,etc | F82: 0 | G82: 0 | H82: 0
D84: Total Fixed Costs | G84: =+SUM(G71:G83) -> 0 | H84: =+SUM(H71:H83) -> 0
D86: Total Specified Costs | G86: =+G63+G84 -> 0 | H86: =+H63+H84 -> 0
D88: Returns Above Specifiied Costs | G88: =+G18-G86 -> 0 | H88: =+H18-H86 -> 0
B90: Breakeven Price to Cover Total Costs | E90: =IF((H101/100+C13*D13)=0,0,(G86-SUM(G11:G12,G14:G16))/(H101/100+C13*D13)) -> 0 | F90: =+F67 -> CWT
B93: Sensitivity Analysis for Your Breeding Herd or Flock Values
B94: Your Weaning Percent | C94: ="Your Gross Sales per "&F18 -> Your Gross Sales per | D94: Pounds Produced per AU | E94: ="Your Breakeven "&F19&" Pay Weight to Cover Total Cost" -> Your Breakeven Pay Weight to Cover Total Cost | G94: Your Average Breakeven Price to Cover Total Cost
B95: =+B96-0.03 -> 0.94 | C95: =+IF($B$97=0,0,YTotRet-$L$11-$L$12+($L$11+$L$12)*B95/$B$97) -> 0 | D95: =IF($B$97=0,0,$H$101*B95/$B$97+$H$102) -> 0 | E95: =IF($C$97=0,0,(YTotExp-(YTotRet+YTotExp-$G$9-$G$10))/(YPrice/100)/(B95-C9/D5)) -> 0 | G95: =IF(D95-$H$102=0,0,(YTotExp-(YTotRet+YTotExp-$G$9-$G$10))/(D95-$H$102)*100) -> 0
B96: =+B97-0.03 -> 0.97 | C96: =+IF($B$97=0,0,YTotRet-$L$11-$L$12+($L$11+$L$12)*B96/$B$97) -> 0 | D96: =IF($B$97=0,0,$H$101*B96/$B$97+$H$102) -> 0 | E96: =IF($C$97=0,0,(YTotExp-(YTotRet+YTotExp-$G$9-$G$10))/(YPrice/100)/(B96-C10/D5)) -> 0 | G96: =IF(D96-$H$102=0,0,(YTotExp-(YTotRet+YTotExp-$G$9-$G$10))/(D96-$H$102)*100) -> 0
B97: 1 | C97: =+YTotRet -> 0 | D97: =H101+H102 -> 0 | E97: =IF($C$97=0,0,(YTotExp-(YTotRet+YTotExp-$G$9-$G$10))/(YPrice/100)/(B97-C11/D5)) -> 0 | G97: =IF(D97-$H$102=0,0,(YTotExp-(YTotRet+YTotExp-$G$9-$G$10))/(D97-$H$102)*100) -> 0
B98: =+B97+0.03 -> 1.03 | C98: =+IF($B$97=0,0,YTotRet-$L$11-$L$12+($L$11+$L$12)*B98/$B$97) -> 0 | D98: =IF($B$97=0,0,$H$101*B98/$B$97+$H$102) -> 0 | E98: =IF($C$97=0,0,(YTotExp-(YTotRet+YTotExp-$G$9-$G$10))/(YPrice/100)/(B98-C12/D5)) -> 0 | G98: =IF(D98-$H$102=0,0,(YTotExp-(YTotRet+YTotExp-$G$9-$G$10))/(D98-$H$102)*100) -> 0
B99: =+B98+0.03 -> 1.06 | C99: =+IF($B$97=0,0,YTotRet-$L$11-$L$12+($L$11+$L$12)*B99/$B$97) -> 0 | D99: 0 | E99: =IF($C$97=0,0,(YTotExp-(YTotRet+YTotExp-$G$9-$G$10))/(YPrice/100)/(B99-C13/D5)) -> 0 | G99: =IF(D99-$H$102=0,0,(YTotExp-(YTotRet+YTotExp-$G$9-$G$10))/(D99-$H$102)*100) -> 0
C101: Your Male Price | F101: =+F9 -> 0 | H101: =(C9*D9+C10*D10)*100 -> 0
C102: Your Female Price | F102: =+F10 -> 0 | H102: =(C11*D11+C12*D12)*100 -> 0
C103: Your Weighted Average Price ($/cwt) | F103: =+IF((C9*D9+C10*D10)=0,F13,(G9+G10)/(C9*D9+C10*D10)) -> 0
C105: Your Stocker or Feeder Break Even Sensitivity Analysis
C106: Your Average Daily Gain | E106: 0 | F106: Pounds per Day
C107: =+"Your Animal"&IF(M25="Stocker"," Grazing"," Feeding")&" Days" -> Your Animal Feeding Days | E107: 0 | F107: Days
C108: Your Sale Shrink | E108: 0
C109: Average Daily Gain (Pounds/day) | D109: Net Pay Weight with Shrink (Pounds) | F109: =+"Purchase Weight (Pounds/Head): "&D23*100 -> Purchase Weight (Pounds/Head): 0 | H109: Sales Price/Cwt of $Total
F110: ="Sales Price "&IF(F13="",".00",TEXT(F13,"#.00")) -> Sales Price .00 | H110: ="Purchase Price "&IF(F23="",".00",TEXT(F23,"#.00")) -> Purchase Price .00
F111: B/E Purchase Price ($/CWT) | H111: B/E Sales Price ($/CWT)
C112: =+C114*1.2 -> 0 | D112: =+C112*$E$107+$D$23*100*(1-$E$108) -> 0 | F112: =IF($D$23=0,0,(((D112*$F$13/100*$C$13)-($G$63-SUM($F$14:$F$16)-$G$23)-$G$84)/(100*$D$23))*100) -> 0 | H112: =IF($C$13=0,0,($G$86-SUM($F$14:$F$16))/(D112*$C$13/100)) -> 0
C113: =+C114*1.1 -> 0 | D113: =+C113*$E$107+$D$23*100*(1-$E$108) -> 0 | F113: =IF($D$23=0,0,(((D113*$F$13/100*$C$13)-($G$63-SUM($F$14:$F$16)-$G$23)-$G$84)/(100*$D$23))*100) -> 0 | H113: =IF($C$13=0,0,($G$86-SUM($F$14:$F$16))/(D113*$C$13/100)) -> 0
C114: =+E106 -> 0 | D114: 0 | F114: 0 | H114: 0
C115: =+C114*0.9 -> 0 | D115: 0 | F115: 0 | H115: 0
C116: =+C114*0.8 -> 0 | D116: 0 | F116: 0 | H116: 0

Sheet Crop Budget
A1: Estimated Costs and Returns per Acre
A3: Crop Enterprise
A5: Number of Acres of Crop | D5: 0
A7: Enter Your Values in the cells highlighed in MAROON. | G7: Enterprise
A8: REVENUE | C8: Quantity | D8: Units | E8: $/Unit | F8: Total | G8: Total
B9: Primary Product | C9: 0 | D9: Cwt,lb,etc | E9: 0 | F9: =C9*E9 -> 0 | G9: =+F9*$D$5 -> 0
B10: Secondary Product | C10: 0 | D10: Cwt,lb,etc | E10: 0 | F10: =C10*E10 -> 0 | G10: =+F10*$D$5 -> 0
B11: Secondary Product | C11: 0 | D11: Cwt,lb,etc | E11: 0 | F11: 0 | G11: 0
B12: Secondary Product | C12: 0 | D12: Cwt,lb,etc | E12: 0 | F12: 0 | G12: 0
B13: Secondary Product | C13: 0 | D13: Cwt,lb,etc | E13: 0 | F13: 0 | G13: 0
B14: Secondary Product | C14: 0 | D14: Cwt,lb,etc | E14: 0 | F14: 0 | G14: 0
B15: Secondary Product | C15: 0 | D15: Cwt,lb,etc | E15: 0 | F15: 0 | G15: 0
B16: Secondary Product | C16: 0 | D16: Cwt,lb,etc | E16: 0 | F16: 0 | G16: 0
A18: Total Revenue | F18: =+SUM(F9:F16) -> 0 | G18: =+SUM(G9:G16) -> 0
G20: Enterprise
A21: VARIABLE COSTS | C21: Quantity | D21: Units | E21: $/Unit | F21: Total | G21: Total
A23: Custom Field and Harvest Operations
B24: Custom Field Operation 1 | C24: 0 | D24: Acre | E24: 0 | F24: =C24*E24 -> 0 | G24: =+F24*$D$5 -> 0
B25: Custom Field Operation 2 | C25: 0 | D25: Acre | E25: 0 | F25: 0 | G25: 0
B26: Custom Field Operation 3 | C26: 0 | D26: Acre | E26: 0 | F26: 0 | G26: 0
B27: Custom Field Operation 4 | C27: 0 | D27: Acre | E27: 0 | F27: 0 | G27: 0
B28: Custom Field Operation 5 | C28: 0 | D28: Acre | E28: 0 | F28: 0 | G28: 0
B29: Custom Field Operation 6 | C29: 0 | D29: Acre | E29: 0 | F29: 0 | G29: 0
A30: Machinery Expenses
B31: Diesel | C31: 0 | D31: Gallon | E31: 0 | F31: =C31*E31 -> 0 | G31: 0
B32: Gasoline | C32: 0 | D32: Gallon | E32: 0 | F32: 0 | G32: 0
B33: Lube | C33: 0 | D33: Acre | E33: 0 | F33: 0 | G33: 0
B34: Repairs | C34: 0 | D34: Acre | E34: 0 | F34: 0 | G34: 0
B35: Other Machinery Expense 1 | C35: 0 | D35: Acre | E35: 0 | F35: 0 | G35: 0
B36: Other Machinery Expense 2 | C36: 0 | D36: Acre | E36: 0 | F36: 0 | G36: 0
A37: Labor
B38: Labor 1 | C38: 0 | D38: Hour | E38: 0 | F38: =C38*E38 -> 0 | G38: 0
B39: Labor 2 | C39: 0 | D39: Hour | E39: 0 | F39: 0 | G39: 0
B40: Labor 3 | C40: 0 | D40: Hour | E40: 0 | F40: 0 | G40: 0
B41: Labor 4 | C41: 0 | D41: Hour | E41: 0 | F41: 0 | G41: 0
B42: Labor 5 | C42: 0 | D42: Hour | E42: 0 | F42: 0 | G42: 0
B43: Irrigation Labor | C43: 0 | D43: Hour | E43: 0 | F43: 0 | G43: 0
A44: Seed or Transplants
B45: Seed | C45: 0 | D45: Pound | E45: 0 | F45: =C45*E45 -> 0 | G45: 0
B46: Seed Treatment | C46: 0 | D46: Pound | E46: 0 | F46: 0 | G46: 0
B47: Seed Fee | C47: 0 | D47: Pound | E47: 0 | F47: 0 | G47: 0
B48: Transplants | C48: 0 | D48: Thousand | E48: 0 | F48: 0 | G48: 0
B49: Mulch | C49: 0 | D49: Foot | E49: 0 | F49: 0 | G49: 0
B50: Other Seed or Transplant | C50: 0 | D50: Pound | E50: 0 | F50: 0 | G50: 0
A51: Fertilizer and Lime
B52: Fertlizer 1 | C52: 0 | D52: Pound | E52: 0 | F52: =C52*E52 -> 0 | G52: 0
B53: Fertlizer 2 | C53: 0 | D53: Pound | E53: 0 | F53: 0 | G53: 0
B54: Fertlizer 3 | C54: 0 | D54: Pound | E54: 0 | F54: 0 | G54: 0
B55: Fertlizer 4 | C55: 0 | D55: Pound | E55: 0 | F55: 0 | G55: 0
B56: Fertlizer 5 | C56: 0 | D56: Pound | E56: 0 | F56: 0 | G56: 0
B57: Lime | C57: 0 | D57: Ton | E57: 0 | F57: 0 | G57: 0
B58: Other Soil Amendment 1 | C58: 0 | D58: Pound | E58: 0 | F58: 0 | G58: 0
B59: Other Soil Amendment 2 | C59: 0 | D59: Pound | E59: 0 | F59: 0 | G59: 0
A60: Herbicides
B61: Herbicide 1 | C61: 0 | D61: Lb,Oz,Acre | E61: 0 | F61: =C61*E61 -> 0 | G61: 0
B62: Herbicide 2 | C62: 0 | D62: Lb,Oz,Acre | E62: 0 | F62: 0 | G62: 0
B63: Herbicide 3 | C63: 0 | D63: Lb,Oz,Acre | E63: 0 | F63: 0 | G63: 0
B64: Herbicide 4 | C64: 0 | D64: Lb,Oz,Acre | E64: 0 | F64: 0 | G64: 0
B65: Herbicide 5 | C65: 0 | D65: Lb,Oz,Acre | E65: 0 | F65: 0 | G65: 0
B66: Herbicide 6 | C66: 0 | D66: Lb,Oz,Acre | E66: 0 | F66: 0 | G66: 0
A67: Insecticides
B68: Insecticide 1 | C68: 0 | D68: Lb,Oz,Acre | E68: 0 | F68: =C68*E68 -> 0 | G68: 0
B69: Insecticide 2 | C69: 0 | D69: Lb,Oz,Acre | E69: 0 | F69: 0 | G69: 0
B70: Insecticide 3 | C70: 0 | D70: Lb,Oz,Acre | E70: 0 | F70: 0 | G70: 0
B71: Insecticide 4 | C71: 0 | D71: Lb,Oz,Acre | E71: 0 | F71: 0 | G71: 0
B72: Insecticide 5 | C72: 0 | D72: Lb,Oz,Acre | E72: 0 | F72: 0 | G72: 0
B73: Insecticide 6 | C73: 0 | D73: Lb,Oz,Acre | E73: 0 | F73: 0 | G73: 0
A74: Fungicides
B75: Fungicide 1 | C75: 0 | D75: Lb,Oz,Acre | E75: 0 | F75: =C75*E75 -> 0 | G75: 0
B76: Fungicide 2 | C76: 0 | D76: Lb,Oz,Acre | E76: 0 | F76: 0 | G76: 0
B77: Fungicide 3 | C77: 0 | D77: Lb,Oz,Acre | E77: 0 | F77: 0 | G77: 0
B78: Fungicide 4 | C78: 0 | D78: Lb,Oz,Acre | E78: 0 | F78: 0 | G78: 0
B79: Fungicide 5 | C79: 0 | D79: Lb,Oz,Acre | E79: 0 | F79: 0 | G79: 0
B80: Fungicide 6 | C80: 0 | D80: Lb,Oz,Acre | E80: 0 | F80: 0 | G80: 0
A81: Growth Regulators
B82: Growth Regulator 1 | C82: 0 | D82: Lb,Oz,Acre | E82: 0 | F82: =C82*E82 -> 0 | G82: 0
B83: Growth Regulator 2 | C83: 0 | D83: Lb,Oz,Acre | E83: 0 | F83: 0 | G83: 0
B84: Growth Regulator 3 | C84: 0 | D84: Lb,Oz,Acre | E84: 0 | F84: 0 | G84: 0
B85: Growth Regulator 4 | C85: 0 | D85: Lb,Oz,Acre | E85: 0 | F85: 0 | G85: 0
B86: Growth Regulator 5 | C86: 0 | D86: Lb,Oz,Acre | E86: 0 | F86: 0 | G86: 0
B87: Growth Regulator 6 | C87: 0 | D87: Lb,Oz,Acre | E87: 0 | F87: 0 | G87: 0
A88: Other Chemicals
B89: Fumigant | C89: 0 | D89: Lb,Oz,Acre | E89: 0 | F89: =C89*E89 -> 0 | G89: 0
B90: Other Chemical 1 | C90: 0 | D90: Lb,Oz,Acre | E90: 0 | F90: 0 | G90: =+F90*$D$5 -> 0
B91: Other Chemical 2 | C91: 0 | D91: Lb,Oz,Acre | E91: 0 | F91: 0 | G91: 0
B92: Other Chemical 3 | C92: 0 | D92: Lb,Oz,Acre | E92: 0 | F92: 0 | G92: 0
B93: Other Chemical 4 | C93: 0 | D93: Lb,Oz,Acre | E93: 0 | F93: 0 | G93: 0
B94: Other Chemical 5 | C94: 0 | D94: Lb,Oz,Acre | E94: 0 | F94: 0 | G94: 0
A95: Irrigation
B96: Well Expense | C96: 0 | D96: Acre | E96: 0 | F96: =C96*E96 -> 0 | G96: =+F96*$D$5 -> 0
B97: Pump Fuel | C97: 0 | D97: Mcf,kWh,Gallon | E97: 0 | F97: 0 | G97: 0
B98: Pump Expense | C98: 0 | D98: Acre | E98: 0 | F98: 0 | G98: 0
B99: Irrigation Equipment Expense | C99: 0 | D99: Acre | E99: 0 | F99: 0 | G99: 0
B100: Repairs | C100: 0 | D100: Acre | E100: 0 | F100: 0 | G100: 0
B101: Drip Tape | C101: 0 | D101: Foot,Acre | E101: 0 | F101: 0 | G101: 0
B102: Water Cost | C102: 0 | D102: AcIn,Gallon | E102: 0 | F102: 0 | G102: 0
B103: Other Irrigation Expense 1 | C103: 0 | D103: Acre | E103: 0 | F103: 0 | G103: 0
B104: Other Irrigation Expense 2 | C104: 0 | D104: Acre | E104: 0 | F104: 0 | G104: 0
A105: Miscellaneous Expenses
B106: Crop Insurance | C106: 0 | D106: Acre | E106: 0 | F106: =C106*E106 -> 0 | G106: 0
B107: Other Variable Expense 1 | C107: 0 | D107: Enter Unit | E107: 0 | F107: 0 | G107: 0
B108: Other Variable Expense 2 | C108: 0 | D108: Enter Unit | E108: 0 | F108: 0 | G108: 0
B109: Other Variable Expense 3 | C109: 0 | D109: Enter Unit | E109: 0 | F109: 0 | G109: 0
B110: Other Variable Expense 4 | C110: 0 | D110: Enter Unit | E110: 0 | F110: 0 | G110: 0
B111: Other Variable Expense 5 | C111: 0 | D111: Enter Unit | E111: 0 | F111: 0 | G111: 0
B112: Other Variable Expense 6 | C112: 0 | D112: Enter Unit | E112: 0 | F112: 0 | G112: 0
B113: Other Variable Expense 7 | C113: 0 | D113: Enter Unit | E113: 0 | F113: 0 | G113: 0
B114: Other Variable Expense 8 | C114: 0 | D114: Enter Unit | E114: 0 | F114: 0 | G114: 0
B116: Operating Interest | E116: 0 | F116: =+SUM(F23:F115)/2*E116 -> 0 | G116: =+F116*$D$6 -> 0
A118: Total Variable Costs | F118: =+SUM(F23:F116) -> 0 | G118: =+SUM(G23:G116) -> 0
A120: Planned Returns Above Variable Costs | F120: =+F18-F118 -> 0 | G120: =+G18-G118 -> 0
B122: Breakeven Price to Cover Variable Costs | E122: =+IF(C9=0,0,F118-SUM(F10:F16)/C9) -> 0 | F122: =+D9 -> Cwt,lb,etc
G124: Enterprise
A125: FIXED COSTS | C125: Quantity | D125: Units | E125: $/Unit | F125: Total | G125: Total
B126: Land Rent or Expense | C126: 0 | D126: Acre | E126: 0 | F126: =C126*E126 -> 0 | G126: =+F126*$D$6 -> 0
B127: Depreciation - Equipment | C127: 0 | D127: Acre,$,etc | E127: 0 | F127: =C127*E127 -> 0 | G127: 0
B128: Equipment Investment | C128: 0 | D128: Acre,$,etc | E128: 0 | F128: 0 | G128: 0
B129: Insurance | C129: 0 | D129: Acre,$,etc | E129: 0 | F129: 0 | G129: 0
B130: Management Fee | C130: 0 | D130: Acre,$,etc | E130: 0 | F130: 0 | G130: 0
B131: Owner/Operator Labor | C131: 0 | D131: Acre,$,etc | E131: 0 | F131: 0 | G131: 0
B132: Salaried Labor | C132: 0 | D132: Acre,$,etc | E132: 0 | F132: 0 | G132: 0
B133: Other Fixed Expense | C133: 0 | D133: Acre,$,etc | E133: 0 | F133: 0 | G133: 0
B134: Other Fixed Expense | C134: 0 | D134: Acre,$,etc | E134: 0 | F134: 0 | G134: 0
B135: Other Fixed Expense | C135: 0 | D135: Acre,$,etc | E135: 0 | F135: 0 | G135: 0
B136: Other Fixed Expense | C136: 0 | D136: Acre,$,etc | E136: 0 | F136: 0 | G136: 0
B137: Other Fixed Expense | C137: 0 | D137: Acre,$,etc | E137: 0 | F137: 0 | G137: 0
D139: Total Fixed Costs | F139: =+SUM(F126:F137) -> 0 | G139: =+SUM(G126:G137) -> 0
D141: Total Specified Costs | F141: =+F118+F139 -> 0 | G141: =+G118+G139 -> 0
D143: Returns Above Specifiied Costs | F143: =+F18-F141 -> 0 | G143: =+G18-G141 -> 0
B145: Breakeven Price to Cover Total Costs | E145: =+IF(C9=0,0,F141-SUM(F10:F16)/C9) -> 0 | F145: =+D9 -> Cwt,lb,etc
B147: Breakeven Prices for Your Crop
E148: To Cover | G148: To Cover
B149: Yield | C149: Yield | E149: Variable | G149: Total
B150: Percent | C150: =+D9 -> Cwt,lb,etc | E150: Costs | G150: Costs
B151: 0.75 | C151: =+$C$153*B151 -> 0 | E151: =+IF(C151=0,0,($F$118-SUM($F$10:$F$16))/C151) -> 0 | G151: =+IF(C151=0,0,($F$141-SUM($F$10:$F$16))/C151) -> 0
B152: 0.9 | C152: =+$C$153*B152 -> 0 | E152: 0 | G152: =+IF(C152=0,0,($F$141-SUM($F$10:$F$16))/C152) -> 0
B153: 1 | C153: =+C9 -> 0 | E153: =+IF(C153=0,0,($F$118-SUM($F$10:$F$16))/C153) -> 0 | G153: =+IF(C153=0,0,($F$141-SUM($F$10:$F$16))/C153) -> 0
B154: 1.1 | C154: 0 | E154: =+IF(C154=0,0,($F$118-SUM($F$10:$F$16))/C154) -> 0 | G154: =+IF(C154=0,0,($F$141-SUM($F$10:$F$16))/C154) -> 0
B155: 1.25 | C155: 0 | E155: 0 | G155: =+IF(C155=0,0,($F$141-SUM($F$10:$F$16))/C155) -> 0

Sheet Comparative Returns - Cash Rent
A1: Comparative Returns - Cash Rent
B3: Returns Above Total Specified Expenses | E3: Total Direct Expenses | H3: Break-Even Yield to Cover Total Costs at Price Entered
B4: Total | C4: Variable | E4: Total | F4: Variable | H4: Price | I4: Units | J4: Total | K4: Variable
A5: FORAGE CROPS
A7: =+CoastalEstablishFarmland!A3 -> Coastal Bermudagrass Establishment - Farmland | B7: =+CoastalEstablishFarmland!TotRet -> -140.6314386 | C7: =+CoastalEstablishFarmland!VarRet -> -133.3907011 | E7: =+CoastalEstablishFarmland!TotExp -> 140.6314386 | F7: =+CoastalEstablishFarmland!VarExp -> 133.3907011 | H7: =+CoastalEstablishFarmland!Price -> 0 | I7: =+CoastalEstablishFarmland!Unit ->  | J7: =+IF($H7=0,0,E7/$H7) -> 0 | K7: 0
A8: =+CoastalEstablishNative!A3 -> Coastal Bermudagrass Establishment - Native Prairie | B8: =+CoastalEstablishNative!TotRet -> -311.1125221 | C8: =+CoastalEstablishNative!VarRet -> -299.7045126 | E8: =+CoastalEstablishNative!TotExp -> 311.1125221 | F8: =+CoastalEstablishNative!VarExp -> 299.7045126 | H8: =+CoastalEstablishNative!Price -> 0 | I8: =+CoastalEstablishNative!Unit ->  | J8: 0 | K8: 0
A9: =+CoastalHay!A3 -> Coastal Bermudagrass Hay | B9: =+CoastalHay!TotRet -> 31.6594622 | C9: =+CoastalHay!VarRet -> 40.15079134 | E9: =+CoastalHay!TotExp -> 298.3405378 | F9: =+CoastalHay!VarExp -> 289.8492087 | H9: =+CoastalHay!Price -> 55 | I9: =+CoastalHay!Unit -> Roll | J9: 5.424373415 | K9: 5.269985612
A10: =+CoastalPasture!A3 -> Coastal Bermudagrass Pasture | B10: =+CoastalPasture!TotRet -> 56.45260514 | C10: =+CoastalPasture!VarRet -> 56.45260514 | E10: =+CoastalPasture!TotExp -> 53.54739486 | F10: =+CoastalPasture!VarExp -> 53.54739486 | H10: =+CoastalPasture!Price -> 22 | I10: =+CoastalPasture!Unit -> AUM | J10: 2.433972494 | K10: 2.433972494
A11: =+SmallGrainGrazing!A3 -> Small Grain with Grazing | B11: =+SmallGrainGrazing!TotRet -> -23.87349984 | C11: =+SmallGrainGrazing!VarRet -> 26.6746262 | E11: =+SmallGrainGrazing!TotExp -> 175.0734998 | F11: =+SmallGrainGrazing!VarExp -> 124.5253738 | H11: =+SmallGrainGrazing!Price -> 0.4 | I11: =+SmallGrainGrazing!Unit -> Pound | J11: 437.6837496 | K11: 311.3134345
A12: =+CornSilageDryland!A3 -> RR Corn Silage - Dryland | B12: =+CornSilageDryland!TotRet -> 69.71276337 | C12: =+CornSilageDryland!VarRet -> 118.8048949 | E12: =+CornSilageDryland!TotExp -> 359.2872366 | F12: =+CornSilageDryland!VarExp -> 310.1951051 | H12: =+CornSilageDryland!Price -> 35.75 | I12: =+CornSilageDryland!Unit -> Ton | J12: 10.04999263 | K12: 8.676786156
A13: =+CornSilageIrrigated!A3 -> RR Corn Silage - Irrigated | B13: =+CornSilageIrrigated!TotRet -> 91.56575962 | C13: =+CornSilageIrrigated!VarRet -> 160.6578912 | E13: =+CornSilageIrrigated!TotExp -> 694.9342404 | F13: =+CornSilageIrrigated!VarExp -> 625.8421088 | H13: =+CornSilageIrrigated!Price -> 35.75 | I13: =+CornSilageIrrigated!Unit -> Ton | J13: 19.43872001 | K13: 17.50607297
A15: FIELD CROPS
A17: =+Barley!A3 -> Malting Barley | B17: =+Barley!TotRet -> 36.56898649 | C17: =+Barley!VarRet -> 104.9124239 | E17: =+Barley!TotExp -> 233.4310135 | F17: =+Barley!VarExp -> 165.0875761 | H17: =+Barley!Price -> 4.5 | I17: =+Barley!Unit -> Bushel | J17: =+IF($H17=0,0,E17/$H17) -> 51.87355856 | K17: 36.68612801
A18: =+Canola!A3 -> Canola | B18: =+Canola!TotRet -> 14.29180774 | C18: =+Canola!VarRet -> 82.63524519 | E18: =+Canola!TotExp -> 231.7081923 | F18: =+Canola!VarExp -> 163.3647548 | H18: =+Canola!Price -> 0.164 | I18: =+Canola!Unit -> Pound | J18: 1412.854831 | K18: 996.1265537
A19: =+Corn!A3 -> Herbicide Resistant Corn | B19: =+Corn!TotRet -> -132.5591927 | C19: =+Corn!VarRet -> -5.920242665 | E19: =+Corn!TotExp -> 479.0591927 | F19: =+Corn!VarExp -> 352.4202427 | H19: =+Corn!Price -> 3.85 | I19: =+Corn!Unit -> Bushel | J19: 124.4309592 | K19: 91.53772537
A20: =+CornReducedTill!A3 -> Herbicide Resistant Corn - Reduced Tillage | B20: =+CornReducedTill!TotRet -> -120.3097719 | C20: =+CornReducedTill!VarRet -> 0.7137877906 | E20: =+CornReducedTill!TotExp -> 466.8097719 | F20: =+CornReducedTill!VarExp -> 345.7862122 | H20: =+CornReducedTill!Price -> 3.85 | I20: =+CornReducedTill!Unit -> Bushel | J20: 121.2492914 | K20: 89.81460057
A21: =+Cotton!A3 -> Stacked Cotton | B21: =+Cotton!TotRet -> -93.51132336 | C21: =+Cotton!VarRet -> 11.47316783 | E21: =+Cotton!TotExp -> 478.0113234 | F21: =+Cotton!VarExp -> 373.0268322 | H21: =+Cotton!Price -> 0.67 | I21: =+Cotton!Unit -> Pound | J21: =+IF($H21=0,0,E21/$H21) -> 713.4497364 | K21: =+IF($H21=0,0,F21/$H21) -> 556.7564659
A22: =+OatsGrain!A3 -> Oats for Grain | B22: =+OatsGrain!TotRet -> -24.11492932 | C22: =+OatsGrain!VarRet -> 46.41249032 | E22: =+OatsGrain!TotExp -> 259.1149293 | F22: =+OatsGrain!VarExp -> 188.5875097 | H22: =+OatsGrain!Price -> 2.35 | I22: =+OatsGrain!Unit -> Bushel | J22: =+IF($H22=0,0,E22/$H22) -> 110.2616721 | K22: =+IF($H22=0,0,F22/$H22) -> 80.25000412
A23: =+Sorghum!A3 -> Grain Sorghum | B23: =+Sorghum!TotRet -> 35.14333911 | C23: =+Sorghum!VarRet -> 109.8224568 | E23: =+Sorghum!TotExp -> 234.8566609 | F23: =+Sorghum!VarExp -> 160.1775432 | H23: =+Sorghum!Price -> 6 | I23: =+Sorghum!Unit -> CWT | J23: 39.14277681 | K23: 26.6962572
A24: =+Wheat!A3 -> Hard Red Winter Wheat | B24: =+Wheat!TotRet -> -66.33543724 | C24: =+Wheat!VarRet -> 0.8625462173 | E24: =+Wheat!TotExp -> 255.3354372 | F24: =+Wheat!VarExp -> 188.1374538 | H24: =+Wheat!Price -> 4.2 | I24: =+Wheat!Unit -> Bushel | J24: 60.79415172 | K24: 44.79463185
A26: LIVESTOCK
A28: =+CowCalfImprove!A3 -> Cow-Calf Improved Pasture | B28: =+CowCalfImprove!TotRet -> -132.0358364 | C28: =+CowCalfImprove!VarRet -> 186.4588188 | E28: =+CowCalfImprove!TotExp -> 638.6358364 | F28: =+CowCalfImprove!VarExp -> 320.1411812 | H28: =+CowCalfImprove!Price -> 134.4247788 | I28: =+CowCalfImprove!Unit -> CWT | J28: =+IF($H28=0,0,E28/$H28) -> 4.750878835 | K28: 2.381563757
A29: =CowCalfNative!A3 -> Cow-Calf Native Pasture | B29: =CowCalfNative!TotRet -> -287.971446 | C29: =CowCalfNative!VarRet -> 130.5232092 | E29: =CowCalfNative!TotExp -> 794.571446 | F29: =CowCalfNative!VarExp -> 376.0767908 | H29: =CowCalfNative!Price -> 134.4247788 | I29: =CowCalfNative!Unit -> CWT | J29: =IF(H29=0,0,E29/H29) -> 5.910900158 | K29: =IF(H29=0,0,F29/H29) -> 2.797674612
A30: =+StockersNative!A3 -> Stockers on Native Pasture | B30: =+StockersNative!TotRet -> 70.87158791 | C30: =+StockersNative!VarRet -> 101.8548201 | E30: =+StockersNative!TotExp -> 930.6884121 | F30: =+StockersNative!VarExp -> 899.7051799 | H30: =+StockersNative!Price -> 140 | I30: =+StockersNative!Unit -> CWT | J30: 6.647774372 | K30: 6.426465571

Sheet Your Returns - Cash Rent
A1: Your Returns - Cash Rent
B3: Quantity | C3: Returns Above Total Specified Expenses | F3: Total Direct Expenses | I3: Break-Even Yield to Cover Total Costs at Price Entered
B4: Acres, AUs, or Head | C4: Total | D4: Variable | F4: Total | G4: Variable | I4: Price | J4: Units | K4: Total | L4: Variable
A5: FORAGE CROPS
A7: =+CoastalEstablishFarmland!A3 -> Coastal Bermudagrass Establishment - Farmland | B7: =+CoastalEstablishFarmland!E7 -> 0 | C7: =+CoastalEstablishFarmland!YTotRet -> 0 | D7: =+CoastalEstablishFarmland!YVarRet -> 0 | F7: =+CoastalEstablishFarmland!YTotExp -> 0 | G7: =+CoastalEstablishFarmland!YVarExp -> 0 | I7: =+CoastalEstablishFarmland!YPrice -> 0 | J7: =+CoastalEstablishFarmland!Unit ->  | K7: =+IF($I7=0,0,F7/$I7) -> 0 | L7: 0
A8: =+CoastalEstablishNative!A3 -> Coastal Bermudagrass Establishment - Native Prairie | B8: =+CoastalEstablishNative!E7 -> 0 | C8: =+CoastalEstablishNative!YTotRet -> 0 | D8: =+CoastalEstablishNative!YVarRet -> 0 | F8: =+CoastalEstablishNative!YTotExp -> 0 | G8: =+CoastalEstablishNative!YVarExp -> 0 | I8: =+CoastalEstablishNative!YPrice -> 0 | J8: =+CoastalEstablishNative!Unit ->  | K8: 0 | L8: 0
A9: =+CoastalHay!A3 -> Coastal Bermudagrass Hay | B9: =+CoastalHay!E7 -> 0 | C9: =+CoastalHay!YTotRet -> 0 | D9: =+CoastalHay!YVarRet -> 0 | F9: =+CoastalHay!YTotExp -> 0 | G9: =+CoastalHay!YVarExp -> 0 | I9: =+CoastalHay!YPrice -> 0 | J9: =+CoastalHay!Unit -> Roll | K9: 0 | L9: 0
A10: =+CoastalPasture!A3 -> Coastal Bermudagrass Pasture | B10: =+CoastalPasture!E7 -> 0 | C10: =+CoastalPasture!YTotRet -> 0 | D10: =+CoastalPasture!YVarRet -> 0 | F10: =+CoastalPasture!YTotExp -> 0 | G10: =+CoastalPasture!YVarExp -> 0 | I10: =+CoastalPasture!YPrice -> 0 | J10: =+CoastalPasture!Unit -> AUM | K10: 0 | L10: 0
A11: =+SmallGrainGrazing!A3 -> Small Grain with Grazing | B11: =+SmallGrainGrazing!E7 -> 0 | C11: =+SmallGrainGrazing!YTotRet -> 0 | D11: =+SmallGrainGrazing!YVarRet -> 0 | F11: =+SmallGrainGrazing!YTotExp -> 0 | G11: =+SmallGrainGrazing!YVarExp -> 0 | I11: =+SmallGrainGrazing!YPrice -> 0 | J11: =+SmallGrainGrazing!Unit -> Pound | K11: 0 | L11: 0
A12: =+CornSilageDryland!A3 -> RR Corn Silage - Dryland | B12: =+CornSilageDryland!E7 -> 0 | C12: =+CornSilageDryland!YTotRet -> 0 | D12: =+CornSilageDryland!YVarRet -> 0 | F12: =+CornSilageDryland!YTotExp -> 0 | G12: =+CornSilageDryland!YVarExp -> 0 | I12: =+CornSilageDryland!YPrice -> 0 | J12: =+CornSilageDryland!Unit -> Ton | K12: 0 | L12: 0
A13: =+CornSilageIrrigated!A3 -> RR Corn Silage - Irrigated | B13: =+CornSilageIrrigated!E7 -> 0 | C13: =+CornSilageIrrigated!YTotRet -> 0 | D13: =+CornSilageIrrigated!YVarRet -> 0 | F13: =+CornSilageIrrigated!YTotExp -> 0 | G13: =+CornSilageIrrigated!YVarExp -> 0 | I13: =+CornSilageIrrigated!YPrice -> 0 | J13: =+CornSilageIrrigated!Unit -> Ton | K13: 0 | L13: 0
A15: FIELD CROPS
A17: =+Barley!A3 -> Malting Barley | B17: =+Barley!E7 -> 0 | C17: =+Barley!YTotRet -> 0 | D17: =+Barley!YVarRet -> 0 | F17: =+Barley!YTotExp -> 0 | G17: =+Barley!YVarExp -> 0 | I17: =+Barley!YPrice -> 0 | J17: =+Barley!Unit -> Bushel | K17: =+IF($I17=0,0,F17/$I17) -> 0 | L17: 0
A18: =+Canola!A3 -> Canola | B18: =+Canola!E7 -> 0 | C18: =+Canola!YTotRet -> 0 | D18: =+Canola!YVarRet -> 0 | F18: =+Canola!YTotExp -> 0 | G18: =+Canola!YVarExp -> 0 | I18: =+Canola!YPrice -> 0 | J18: =+Canola!Unit -> Pound | K18: 0 | L18: 0
A19: =+Corn!A3 -> Herbicide Resistant Corn | B19: =+Corn!E7 -> 0 | C19: =+Corn!YTotRet -> 0 | D19: =+Corn!YVarRet -> 0 | F19: =+Corn!YTotExp -> 0 | G19: =+Corn!YVarExp -> 0 | I19: =+Corn!YPrice -> 0 | J19: =+Corn!Unit -> Bushel | K19: 0 | L19: 0
A20: =+CornReducedTill!A3 -> Herbicide Resistant Corn - Reduced Tillage | B20: =+CornReducedTill!E7 -> 0 | C20: =+CornReducedTill!YTotRet -> 0 | D20: =+CornReducedTill!YVarRet -> 0 | F20: =+CornReducedTill!YTotExp -> 0 | G20: =+CornReducedTill!YVarExp -> 0 | I20: =+CornReducedTill!YPrice -> 0 | J20: =+CornReducedTill!Unit -> Bushel | K20: 0 | L20: 0
A21: =+Cotton!A3 -> Stacked Cotton | B21: =+Cotton!E7 -> 0 | C21: =+Cotton!YTotRet -> 0 | D21: =+Cotton!YVarRet -> 0 | F21: =+Cotton!YTotExp -> 0 | G21: =+Cotton!YVarExp -> 0 | I21: =+Cotton!YPrice -> 0 | J21: =+Cotton!Unit -> Pound | K21: =+IF($I21=0,0,F21/$I21) -> 0 | L21: =+IF($I21=0,0,G21/$I21) -> 0
A22: =+OatsGrain!A3 -> Oats for Grain | B22: =+OatsGrain!E7 -> 0 | C22: =+OatsGrain!YTotRet -> 0 | D22: =+OatsGrain!YVarRet -> 0 | F22: =+OatsGrain!YTotExp -> 0 | G22: =+OatsGrain!YVarExp -> 0 | I22: =+OatsGrain!YPrice -> 0 | J22: =+OatsGrain!Unit -> Bushel | K22: =+IF($I22=0,0,F22/$I22) -> 0 | L22: =+IF($I22=0,0,G22/$I22) -> 0
A23: =+Sorghum!A3 -> Grain Sorghum | B23: =+Sorghum!E7 -> 0 | C23: =+Sorghum!YTotRet -> 0 | D23: =+Sorghum!YVarRet -> 0 | F23: =+Sorghum!YTotExp -> 0 | G23: =+Sorghum!YVarExp -> 0 | I23: =+Sorghum!YPrice -> 0 | J23: =+Sorghum!Unit -> CWT | K23: 0 | L23: 0
A24: =+Wheat!A3 -> Hard Red Winter Wheat | B24: =+Wheat!E7 -> 0 | C24: =+Wheat!YTotRet -> 0 | D24: =+Wheat!YVarRet -> 0 | F24: =+Wheat!YTotExp -> 0 | G24: =+Wheat!YVarExp -> 0 | I24: =+Wheat!YPrice -> 0 | J24: =+Wheat!Unit -> Bushel | K24: 0 | L24: 0
A26: LIVESTOCK
A28: =+CowCalfImprove!A3 -> Cow-Calf Improved Pasture | B28: =+CowCalfImprove!E7 -> 0 | C28: =+CowCalfImprove!YTotRet -> 0 | D28: =+CowCalfImprove!YVarRet -> 0 | F28: =+CowCalfImprove!YTotExp -> 0 | G28: =+CowCalfImprove!YVarExp -> 0 | I28: =+CowCalfImprove!YPrice -> 0 | J28: =+CowCalfImprove!Unit -> CWT | K28: =+IF($I28=0,0,F28/$I28) -> 0 | L28: 0
A29: =CowCalfNative!A3 -> Cow-Calf Native Pasture | B29: =CowCalfNative!E7 -> 0 | C29: =CowCalfNative!YTotRet -> 0 | D29: =CowCalfNative!YVarRet -> 0 | F29: =CowCalfNative!YTotExp -> 0 | G29: =CowCalfNative!YVarExp -> 0 | I29: =CowCalfNative!YPrice -> 0 | J29: =CowCalfNative!Unit -> CWT | K29: =IF(I29=0,0,F29/I29) -> 0 | L29: =IF(I29=0,0,G29/I29) -> 0
A30: =+StockersNative!A3 -> Stockers on Native Pasture | B30: =+StockersNative!E7 -> 0 | C30: =+StockersNative!YTotRet -> 0 | D30: =+StockersNative!YVarRet -> 0 | F30: =+StockersNative!YTotExp -> 0 | G30: =+StockersNative!YVarExp -> 0 | I30: =+StockersNative!YPrice -> 0 | J30: =+StockersNative!Unit -> CWT | K30: 0 | L30: 0
A32: OTHER BUDGETS
A34: =+'Livestock Budget'!A3 -> Livestock Enterprise | B34: =+'Livestock Budget'!D5 -> 0 | C34: =+'Livestock Budget'!YTotRet -> 0 | D34: =+'Livestock Budget'!YVarRet -> 0 | F34: =+'Livestock Budget'!YTotExp -> 0 | G34: =+'Livestock Budget'!YVarExp -> 0 | I34: =+'Livestock Budget'!YPrice -> 0 | J34: =+'Livestock Budget'!Unit -> CWT | K34: =+IF($I34=0,0,F34/$I34) -> 0 | L34: =+IF($I34=0,0,G34/$I34) -> 0
A35: ='Crop Budget'!A3 -> Crop Enterprise | B35: ='Crop Budget'!D5 -> 0 | C35: ='Crop Budget'!YTotRet -> 0 | D35: ='Crop Budget'!YVarRet -> 0 | F35: ='Crop Budget'!YTotExp -> 0 | G35: ='Crop Budget'!YVarExp -> 0 | I35: ='Crop Budget'!YPrice -> 0 | J35: ='Crop Budget'!Unit -> Cwt,lb,etc | K35: =IF(I35=0,0,F35/I35) -> 0 | L35: =IF(I35=0,0,G35/I35) -> 0
